{"text_format":"1","workbook":"xlsx","n_sheets":13,"sheets":["1","Data","Shapes","Temp","viz","viz2","Missing","Colors","Stat","vp","Cursed","Dis","Ivls"],"not_rendered":{"charts":0,"images":0,"macros":1,"external_links":0,"defined_names":2,"comments":3,"pivot_tables":1},"unopened":[],"bounds":{"document_bytes":16777216,"sheet_cells":100000,"rows_first":2000,"rows_last":500,"rows_between":2000,"halvings":0,"cell_chars":16384,"cell_head_chars":4096},"cells_cut":0,"cells_raw":0,"read":"whole","date_system":"1900"}

{"sheet":"1","index":0,"n_rows":229,"n_cols":24,"rows_kept":229,"cut":false,"hidden":false,"merged":[[37,1,55,1],[56,1,74,1],[119,1,129,1],[130,1,131,1],[106,1,118,1],[83,1,98,1],[99,1,105,1],[24,0,129,0],[19,1,23,1],[1,0,23,0],[165,1,169,1],[170,1,176,1],[130,0,207,0],[75,1,82,1],[180,1,191,1],[192,1,201,1],[177,1,179,1],[1,1,18,1],[202,1,207,1],[147,1,164,1],[132,1,146,1],[25,1,32,1],[33,1,36,1],[0,5,0,12],[82,5,82,6],[76,5,76,6],[75,5,75,6],[77,5,77,6],[78,5,78,6],[81,5,81,6],[80,5,80,6],[79,5,79,6]]}
["CL","Group","Rule","Spec","Voice","Subrules",null,null,null,null,null,null,null,null,"Comment",null,"IDs"]
["Rhythm","Rhythm","Beginning is non-standard",null,null,"1/8 note",null,null,null,null,null,null,null,null,null,null,230]
[null,null,"Misuse of rest",null,null,"wrong starting rest","rest inside","late entrance",null,null,null,null,null,null,null,null,138,517,527]
[null,null,"Missing rest",null,null,"/no starting rest",null,null,null,null,null,null,null,null,null,null,237]
[null,null,"Simultaneous entries of voices",null,null,"/simultaneous",null,null,null,null,null,null,null,null,null,null,530]
[null,null,"Same rhythm in adjacent measures",null,null,"/same",null,null,null,null,null,null,null,null,null,null,247]
[null,null,"Identical rhythm in two parts",null,null,"/same",null,null,null,null,null,null,null,null,null,null,549]
[null,null,"Identical rhythm in all parts",null,null,"/same",null,null,null,null,null,null,null,null,"For any species except species 1",null,215]
[null,null,"Non-permitted rhythm",null,null,"1/2. downbeat","1/2. upbeat","1/4 syncope","rhythm stagnation","whole inside",null,null,null,null,null,null,233,234,235,236,160]
[null,null,"Wrong usage of eighth notes",null,null,"1st beat","2nd beat","3rd beat","4th beat","isolated","1/8 syncope",">2 x 1/8","leap",null,null,null,226,227,228,229,231,232,255,88]
[null,null,"Anapaest",null,null,"tie forward","inside",null,null,null,null,null,null,null,"1/2 after 1/4 or 1/8 in measure",null,239,240]
[null,null,"Wrong note value for this species",null,null,"/value",null,null,null,null,null,null,null,null,"Except last note",null,514]
[null,null,"Wrong time signature for this species",null,null,"/measure len",null,null,null,null,null,null,null,null,null,null,525]
[null,null,"Wrong positioning of note for this species",null,null,"/position",null,null,null,null,null,null,null,null,null,null,515]
[null,null,"Note lasts for too many measures",null,null,">2",null,null,null,null,null,null,null,null,null,null,41]
[null,null,"The length of last note is not full measure",null,null,"/not full measure",null,null,null,null,null,null,null,null,null,null,267]
[null,null,"Wrong suspension rhythm",null,null,"sus wrong length","prep < sus","prep wrong length",null,null,null,null,null,null,"Suspension preparation and suspension",null,244,427,274]
[null,null,"Need more suspensions",null,null,"each 3 meas.",null,null,null,null,null,null,null,null,null,null,341]
[null,null,"Too many notes in one measure",null,null,"5 notes after sus.","5 notes without sus.",">5 notes",null,null,null,null,null,null,null,null,301,245,246]
[null,"Repeats and ties","Note repeat",null,null,"cantus","inside measure",null,null,null,null,null,null,null,null,null,30,516]
[null,null,"Simultaneous repeats of notes in multiple parts",null,null,"/multivoice",null,null,null,null,null,null,null,null,null,null,557]
[null,null,"Note is repeated: in 10 notes",10,null,1,2,">2",null,null,null,null,null,null,"Note repeat happens several times",null,93,94,95]
[null,null,"Note is repeated: in 10 notes",2,null,1,2,">2",null,null,null,null,null,null,"Note repeat happens several times",null,93,94,95]
[null,null,"Frequent interruption of syncopation: within 10 notes",4,null,1,2,">2",null,null,null,null,null,null,"Except interruption of syncopation between penultimate and last measure",null,188,189,190]
["Melody","Border","Leading tone is unresolved",null,null,"need up","need stepwise",null,null,null,null,null,null,null,null,null,197,198]
[null,"Compensated leap","Uncompensated leap: compensation deviation to 2nd",null,"E","3rd","4th","5th",">5th","late >3",">5th long",null,null,null,"Compensation can be deviated one 2nd interval above last leap note",null,42,43,44,45,191,386]
[null,null,"Uncompensated leap: compensation deviation to 3rd",1240,"E","3rd","4th","5th",">5th","late >3",null,null,null,null,"Compensation can be deviated one 3rd interval above last leap note",null,120,121,122,123,192]
[null,null,"Uncompensated leap: compensation deviation to 3rd",35,"E","3rd","4th","5th",">5th","late >3",null,null,null,null,"Compensation can be deviated one 3rd interval above last leap note",null,120,121,122,123,192]
[null,null,"Compensation after 3rd",null,"E","3rd","4th","5th",">5th",null,null,null,null,null,"Compensation has a gap of one 3rd below last leap note",null,53,54,55,56]
[null,null,"Compensated to 3rd prepared",null,"E","-","4th","5th",">5th",null,null,null,null,null,"Prepared within 5 notes",null,100,101,102,103]
[null,null,"Compensated to 3rd",null,"E","-","4th","5th",">5th",null,null,null,null,null,null,null,104,105,106,107]
[null,null,"8ve compensated to 4th",null,"E","8ve",null,null,null,null,null,null,null,null,null,null,304]
[null,null,"C5P last 4 measures, 8 notes",null,"E","3rd","4th","5th",">5th",null,null,null,null,null,"Compensated to 5th, precompensated within 6 notes",null,144,145,146,147]
[null,"Uncompensated leap","Uncompensated leap: precompensated",null,"E","3rd","4th","5th",">5th",null,null,null,null,null,null,null,112,113,114,115]
[null,null,"Precompensated last 2 leaps",null,"E","3rd","4th","5th",">5th",null,null,null,null,null,"Leap within last XX notes in cantus/counterpoint",null,204,205,206,207]
[null,null,"Uncompensated child leap",null,"E","3rd","4th","5th",">5th",null,null,null,null,null,"After longer leap or before longer/same/one-note-smaller leap.",null,116,117,118,119]
[null,null,"Uncompensated leap",null,"E","3rd","4th","5th",">5th","start 3rd",null,null,null,null,"If no other uncompensated rules worked.",null,124,125,126,127,1]
[null,"Change of melodic direction around leap","No change of direction after the leap: close + neigh",35,"E","3rd","4th","5th",">5th",null,null,null,null,null,"There is immediate melody direction change before leap. After leap there is neighbor tone, then ending leap note repeats and then there is movement inside leap.",null,510,511,512,513]
[null,null,"No change of direction after the leap: close + 1skip",null,"E","3rd","4th","5th",">5th",null,null,null,null,null,"There is immediate melody direction change before leap, but after leap melody direction changes only after one note, which goes in the same direction as leap",null,128,129,130,131]
[null,null,"No change of direction after the leap: close + 2skip",null,"E","3rd","4th","5th",">5th",null,null,null,null,null,"There is immediate melody direction change before leap, but after leap melody direction changes only after two notes, which go in the same direction as leap",null,140,141,142,143]
[null,null,"No change of direction after the leap: close + >2skip",null,"E","3rd","4th","5th",">5th",null,null,null,null,null,"There is immediate melody direction change before leap, but after leap melody direction changes after more than two notes, which go in the same direction as leap",null,108,109,110,111]
[null,null,"No change of direction before the leap: neigh + close",35,"E","3rd","4th","5th",">5th",null,null,null,null,null,"There is immediate melody direction change after leap. Before leap there is neighbor tone, then ending leap note repeats and then there is movement inside leap.",null,506,507,508,509]
[null,null,"No change of direction before the leap: 1skip + close",null,"E","3rd","4th","5th",">5th",null,null,null,null,null,"There is immediate melody direction change after leap, but before leap melody direction changes after one note, which goes in the same direction as leap",null,59,60,61,62]
[null,null,"No change of direction before the leap: >1skip + close",null,"E","3rd","4th","5th",">5th",null,null,null,null,null,"There is immediate melody direction change after leap, but before leap melody direction changes after more than one note, which go in the same direction as leap",null,132,133,134,135]
[null,null,"No change of direction before and after the leap: 1skip + 1skip",null,"E","3rd","4th","5th",">5th",null,null,null,null,null,"There is one note going in the same direction before and after leap",null,63,64,65,66]
[null,null,"No change of direction before and after the leap: 1skip + >1skip",null,"E","3rd","4th","5th",">5th",null,null,null,null,null,"There is one note going in the same direction before leap and more than one note going in the same direction after leap",null,391,392,393,394]
[null,null,"No change of direction before and after the leap: >1skip + 1skip",null,"E","3rd","4th","5th",">5th",null,null,null,null,null,"There is more than one note going in the same direction before leap and one note going in the same direction after leap",null,148,149,150,151]
[null,null,"No change of direction before and after the leap: >1skip + >1skip",null,"E","3rd","4th","5th",">5th",null,null,null,null,null,"There is more than one note going in the same direction before leap and more than one note going in the same direction after leap",null,398,399,400,401]
[null,null,"No change of direction before and after the leap: neigh + neigh",35,"E","3rd","4th","5th",">5th",null,null,null,null,null,"Before and after leap there is neighbor tone, then ending leap note repeats and then there is movement inside leap.",null,414,415,416,417]
[null,null,"No change of direction before the leap between measures: 1skip + close",null,"E","3rd","4th","5th",">5th",null,null,null,null,null,"There is immediate melody direction change after leap, but before leap melody direction changes after one note, which goes in the same direction as leap",null,476,477,478,479]
[null,null,"No change of direction before the leap between measures: >1skip + close",null,"E","3rd","4th","5th",">5th",null,null,null,null,null,"There is immediate melody direction change after leap, but before leap melody direction changes after more than one note, which go in the same direction as leap",null,25,26,27,28]
[null,null,"No change of direction before the leap between measures: 1skip + 1skip",null,"E","3rd","4th","5th",">5th",null,null,null,null,null,"Turns around leap on measure border. There is one note going in the same direction before and after leap",null,460,461,462,463]
[null,null,"No change of direction before the leap between measures: 1skip + >1skip",null,"E","3rd","4th","5th",">5th",null,null,null,null,null,"Turns around leap on measure border. There is one note going in the same direction before leap and more than one note going in the same direction after leap",null,464,465,466,467]
[null,null,"No change of direction before the leap between measures: >1skip + 1skip",null,"E","3rd","4th","5th",">5th",null,null,null,null,null,"Turns around leap on measure border. There is more than one note going in the same direction before leap and one note going in the same direction after leap",null,468,469,470,471]
[null,null,"No change of direction before the leap between measures: >1skip + >1skip",null,"E","3rd","4th","5th",">5th",null,null,null,null,null,"Turns around leap on measure border. There is more than one note going in the same direction before leap and more than one note going in the same direction after leap",null,472,473,474,475]
[null,null,"Leap back",null,"E","<=6th",">6th","overflow",null,null,null,null,null,null,null,null,8,22,58]
[null,"Leaps","Non-permitted melodic interval: ascending",null,null,":m6",":maj6",":m7",":maj7",":8ve",":greater than 8ve",null,null,null,null,null,175,176,177,178,179,180]
[null,null,"Non-permitted melodic interval: descending",null,null,":m6",":maj6",":m7",":maj7",":8ve",":greater than 8ve",null,null,null,null,null,181,182,183,184,185,186]
[null,null,"Abuse of disjunct motion: within 9 notes",0,null,">7 leaps",">30 leaped",">8 leaps",">36 leaped",null,null,null,null,null,null,null,493,494,495,496]
[null,null,"Abuse of disjunct motion: within 9 notes",1,null,">6 leaps",">30 leaped",">8 leaps",">36 leaped",null,null,null,null,null,null,null,493,494,495,496]
[null,null,"Abuse of disjunct motion: within 9 notes",2,null,">6 leaps",">22 leaped",">7 leaps",">30 leaped",null,null,null,null,null,null,null,493,494,495,496]
[null,null,"Abuse of disjunct motion: within 9 notes",3,null,">6 leaps",">22 leaped",">7 leaps",">30 leaped",null,null,null,null,null,null,null,493,494,495,496]
[null,null,"Abuse of disjunct motion: within 9 notes",4,null,">7 leaps",">30 leaped",">8 leaps",">36 leaped",null,null,null,null,null,null,null,493,494,495,496]
[null,null,"Abuse of disjunct motion: within 9 notes",5,null,">7 leaps",">30 leaped",">8 leaps",">36 leaped",null,null,null,null,null,null,null,493,494,495,496]
[null,null,"Abuse of disjunct motion: within 14 notes",0,null,">9 leaps",">40 leaped",">10 leaps",">46 leaped",null,null,null,null,null,null,null,497,498,499,500]
[null,null,"Abuse of disjunct motion: within 14 notes",1,null,">8 leaps",">40 leaped",">10 leaps",">46 leaped",null,null,null,null,null,null,null,497,498,499,500]
[null,null,"Abuse of disjunct motion: within 14 notes",2,null,">8 leaps",">32 leaped",">9 leaps",">34 leaped",null,null,null,null,null,null,null,497,498,499,500]
[null,null,"Abuse of disjunct motion: within 14 notes",3,null,">8 leaps",">32 leaped",">9 leaps",">34 leaped",null,null,null,null,null,null,null,497,498,499,500]
[null,null,"Abuse of disjunct motion: within 14 notes",4,null,">9 leaps",">40 leaped",">10 leaps",">46 leaped",null,null,null,null,null,null,null,497,498,499,500]
[null,null,"Abuse of disjunct motion: within 14 notes",5,null,">9 leaps",">40 leaped",">10 leaps",">46 leaped",null,null,null,null,null,null,null,497,498,499,500]
[null,null,"Consecutive leaps",120,null,3,"more than 3",null,null,null,null,null,null,null,"0x3rd ignored",null,501,502]
[null,null,"Consecutive leaps",34,null,3,"more than 3",null,null,null,null,null,null,null,"1x3rd ignored",null,501,502]
[null,null,"Consecutive leaps",5,null,4,"more than 4",null,null,null,null,null,null,null,"1x3rd ignored",null,501,502]
[null,null,"Consecutive unidirectional leaps",1230,null,"Two 3rds","Three 3rds","Two >3rds",null,null,null,null,null,null,null,null,503,504,505]
[null,null,"Consecutive unidirectional leaps",45,null,"Two 3rds","Three 3rds","Two >3rds",null,null,null,null,null,null,null,null,503,504,505]
[null,"Stepwise motion","Abuse of stepwise motion",0,"E",">7 in any direction",null,null,null,null,null,null,null,null,"There are more than AA notes going stepwize in the same direction in this cantus firmus",null,302]
[null,null,"Abuse of stepwise motion",14,"E",">10 in any direction",null,null,null,null,null,null,null,null,null,null,302]
[null,null,"Abuse of stepwise motion",2,"E",">14 in any direction",null,null,null,null,null,null,null,null,null,null,302]
[null,null,"Abuse of stepwise motion",35,"E",">14 in any direction",null,null,null,null,null,null,null,null,null,null,302]
[null,null,"Abuse of unidirectional stepwise motion",0,"E",">4 in one direction",null,null,null,null,null,null,null,null,null,null,303]
[null,null,"Abuse of unidirectional stepwise motion",14,"E",">7 in one direction",null,null,null,null,null,null,null,null,null,null,303]
[null,null,"Abuse of unidirectional stepwise motion",2,"E",">7 in one direction",null,null,null,null,null,null,null,null,null,null,303]
[null,null,"Abuse of unidirectional stepwise motion",35,"E",">7 in one direction",null,null,null,null,null,null,null,null,null,null,303]
[null,"Melodic repeats","Repetition - 2 notes are repeated: immediate",104,"E","uniform","same rhythm","any rhythm",null,null,null,null,null,null,"Two adjacent notes are immediately repeated",null,402,403,404]
[null,null,"Repetition - 2 notes are repeated: immediate",3,"E","uniform","same rhythm","any rhythm",null,null,null,null,null,null,"Two adjacent notes are immediately repeated",null,402,403,404]
[null,null,"Repetition - 2 notes are repeated: immediate",2,"E","uniform","same rhythm","any rhythm",null,null,null,null,null,null,"Two adjacent notes are immediately repeated",null,402,403,404]
[null,null,"Repetition - 2 notes are repeated: immediate IM",23,"E","uniform","same rhythm","any rhythm",null,null,null,null,null,null,"Two adjacent notes are immediately repeated inside one measure",null,411,412,413]
[null,null,"Repetition - 2 notes are repeated: immediate",5,"E","uniform","same rhythm","any rhythm",null,null,null,null,null,null,"Two adjacent notes are immediately repeated",null,402,403,404]
[null,null,"Repetition - 2 notes are repeated: immediate IM",5,"E","uniform","same rhythm","any rhythm",null,null,null,null,null,null,"Two adjacent notes are immediately repeated inside one measure",null,411,412,413]
[null,null,"Repetition - 3 notes are repeated 2 times",null,"E","adjacent","symmetric",null,null,null,null,null,null,null,"Repeat with the same rhythm (last note length is ignored)",null,311,405]
[null,null,"Repetition - 3 notes are repeated 3 times",null,"E","adjacent","symmetric",null,null,null,null,null,null,null,"Repeat with the same rhythm (last note length is ignored)",null,313,407]
[null,null,"Repetition - 4 notes are repeated 2 times",null,"E","adjacent","symmetric",null,null,null,null,null,null,null,"Repeat with the same rhythm (last note length is ignored)",null,312,406]
[null,null,"Repetition - 4 notes are repeated 3 times",null,"E","adjacent","symmetric",null,null,null,null,null,null,null,"Repeat with the same rhythm (last note length is ignored)",null,314,408]
[null,null,"Melodic climax",null,"E","early 50%","early <5","early <3","late 3",null,null,null,null,null,null,null,193,79,78,21]
[null,null,"Melodic climax is repeated",null,"E","in lower part","in upper part",null,null,null,null,null,null,null,null,null,305,12]
[null,null,"Frequent return to the tonic",null,null,"3 within 6","4 within 12",null,null,null,null,null,null,null,"More than AA tonic notes within BB adjacent notes",null,70,71]
[null,null,"Octave leap to the leading tone",null,null,"/LT 8ve leap",null,null,null,null,null,null,null,null,null,null,348]
[null,null,"Frequent return to the same note",null,"E",">3 in 7 notes",">4 in 9 notes",null,null,null,null,null,null,null,"Same note repeats more than AA times within BB adjacent notes",null,10,39]
[null,null,"Notes stagnation",null,"E","5 notes <3 pitches","7 notes <4 pitches","17 notes <6 pitches",null,null,null,null,null,null,null,null,344,345,346]
[null,"Tritone","Tritone: adjacent",10,null,":resolved",":unresolved",null,null,null,null,null,null,null,"Melodic adjacent tritone",null,2,31]
[null,null,"Audible tritone: framed",10,null,":resolved",":unresolved",null,null,null,null,null,null,null,"Melodic tritone with one intermediate note, framed by two melody direction changes or leaps",null,371,372]
[null,null,"Tritone: adjacent",2345,null,":resolved",":unresolved",null,null,null,null,null,null,null,"Melodic adjacent tritone, not accented or framed",null,368,369]
[null,null,"Tritone: adjacent framed",2345,null,":resolved",":unresolved",null,null,null,null,null,null,null,"Melodic adjacent tritone, framed by two melody direction changes",null,365,366]
[null,null,"Tritone: adjacent accented",2345,null,":resolved",":unresolved",null,null,null,null,null,null,null,"Melodic adjacent tritone, last note is long or repeated",null,360,361]
[null,null,"Audible tritone: framed",2345,null,":resolved",":unresolved",null,null,null,null,null,null,null,"Tritone within measure with intermediate notes, framed by two melody direction changes",null,18,19]
[null,null,"Audible tritone: accented",2345,null,":resolved",":unresolved",null,null,null,null,null,null,null,"Tritone within measure with intermediate notes, last note is long or repeated",null,342,343]
[null,"Range","Skipped notes",null,null,1,">1",">1 joined",null,null,null,null,null,null,"Skipped notes that do not appear within this voice",null,67,68,69]
[null,null,"Out of vocal range",null,null,"/out of range",null,null,null,null,null,null,null,null,null,null,522]
[null,null,"Wrong order of vocal ranges",null,null,"/above higher",null,null,null,null,null,null,null,null,null,null,523]
[null,null,"Imbalance between vocal ranges",null,null,">7 quarters",">12 quarters",null,null,null,null,null,null,null,"One voice is in its highest third of range, while the other voice is in its lowest third range for AA quarters",null,524,526]
[null,null,"Voices are too far apart",null,"EN","> 12 semitones","> 16 semitones",null,null,null,null,null,null,null,null,null,293,294]
[null,null,"Voices are too far apart",null,"B","> 12 semitones","> 16 semitones",null,null,null,null,null,null,null,null,null,293,294]
[null,null,"Stagnation",0,"E","5 notes <m3","7 notes <4th","11 notes <5th","15 notes <m6",null,null,null,null,null,null,null,434,435,436,437]
[null,null,"Stagnation",1,"E","5 notes <m3","7 notes <4th","11 notes <5th","15 notes <m6",null,null,null,null,null,null,null,434,435,436,437]
[null,null,"Stagnation",2,"E","5 notes <m3","8 notes <4th","11 notes <5th","17 notes <m6",null,null,null,null,null,null,null,434,435,436,437]
[null,null,"Stagnation",3,"E","5 notes <m3","9 notes <4th","12 notes <5th","19 notes <m6",null,null,null,null,null,null,null,434,435,436,437]
[null,null,"Stagnation",4,"E","5 notes <m3","7 notes <4th","11 notes <5th","15 notes <m6",null,null,null,null,null,null,null,434,435,436,437]
[null,null,"Stagnation",5,"E","5 notes <m3","9 notes <4th","14 notes <5th","19 notes <m6",null,null,null,null,null,null,null,434,435,436,437]
[null,null,"No melody development",null,"E","12 notes <12","15 notes <15",null,null,null,null,null,null,null,null,null,15,16]
[null,"Melodic minor","bVII note",null,null,":before the tonic","10 after VII#",null,null,null,null,null,null,null,null,null,74,200]
[null,null,"bVII note near VI# note",null,null,"4 notes before","4 notes after","immediate",null,null,null,null,null,null,null,null,349,350,203]
[null,null,"VI# note without close VII# note",null,null,"within 2 notes",null,null,null,null,null,null,null,null,"There is no VII# note before or after VI# chord tone in close proximity",null,199]
[null,null,"VI# should be surrounded by ascending stepwise motion",10,null,"/VI#",null,null,null,null,null,null,null,null,"Chord tone VI# is not surrounded by stepwise diatonic ascending movement",null,201]
[null,null,"VIIb should be surrounded by descending stepwise motion",10,null,"/VIIb",null,null,null,null,null,null,null,null,"Chord tone VII natural is not surrounded by stepwise diatonic descending movement",null,202]
[null,null,"VI# should be surrounded by ascending stepwise motion",2345,null,"/VI#",null,null,null,null,null,null,null,null,"Chord tone VI# is not surrounded by stepwise diatonic ascending movement",null,201]
[null,null,"VIIb should be surrounded by descending stepwise motion",2345,null,"/VIIb",null,null,null,null,null,null,null,null,"Chord tone VII natural is not surrounded by stepwise diatonic descending movement",null,202]
[null,null,"Note is not part of the mode",null,null,"/wrong alteration",null,null,null,null,null,null,null,null,null,null,521]
[null,null,"Chromaticism: close",null,null,"VI<->VI#","VII<->VII#",null,null,null,null,null,null,null,"These two notes are tightly close",null,152,153]
[null,null,"Chromaticism: far",null,null,"VI<->VI#","VII<->VII#",null,null,null,null,null,null,null,"These two notes are one note apart and are in neighboring harmonies",null,158,159]
[null,null,"Dim or aug melodic interval",null,null,"VI<->VII#","VI#<->III","VII#-III","III-VII#","III-VII#-I down",null,null,null,null,null,null,154,155,156,157,432]
["Harmony","Melodic minor","False chromatic relation: in outer voices",null,null,"VI<->VI#","VII<->VII#",null,null,null,null,null,null,null,"These two notes are harmonic tones in neighboring harmonies, but are in different voices",null,377,378]
[null,null,"False chromatic relation: in non-outer voices",null,null,"VI<->VI#","VII<->VII#",null,null,null,null,null,null,null,"These two notes are harmonic tones in neighboring harmonies, but are in different voices",null,164,165]
[null,"Harmony","Repeating functions in a row",null,null,">4 T",">4 D",">4 S",null,null,null,null,null,null,"More than AA consecutive harmonies all have this letter",null,17,428,429]
[null,null,"Missing functions in a row",null,null,">5 without T",">5 without D",">6 without S",null,null,null,null,null,null,"More than AA consecutive harmonies do not have this letter",null,20,430,431]
[null,null,"Too many tonic chords",null,null,">2 within 9 mea.",null,null,null,null,null,null,null,null,null,null,310]
[null,null,"Convoluted harmony",null,null,"/convoluted",null,null,null,null,null,null,null,null,"Cannot detect harmony",null,555]
[null,null,"Ambiguous harmony",null,null,"/ambiguous",null,null,null,null,null,null,null,null,"Chord should have at least one chord tone starting on the first beat of this chord",null,558]
[null,null,"Incomplete harmony",null,null,"any - no 3rd","penultimate",null,null,null,null,null,null,null,null,null,559,172]
[null,null,"Two consecutive incomplete harmonies",null,">2","/2",null,null,null,null,null,null,null,null,null,null,251]
[null,null,"Augmented chord",null,null,"DTIII",null,null,null,null,null,null,null,null,null,null,375]
[null,null,"Six-four chord",null,null,":suggestive",":audible","real",null,null,null,null,null,null,null,null,196,383,433]
[null,null,"7th chord",null,"<3","/7th",null,null,null,null,null,null,null,null,null,null,194]
[null,null,"7th chord",null,">2","/7th",null,null,null,null,null,null,null,null,null,null,194]
[null,null,"Cadential progression",null,null,"V-I",null,null,null,null,null,null,null,null,null,null,48]
[null,null,"Modulating progression",null,null,"IV-VII (m)","VII-III (m)","II-III (m)",null,null,null,null,null,null,null,null,308,309,139]
[null,null,"Harmonic progression",null,null,"non-ideal","bad","2 x bad","3 x bad",null,null,null,null,null,null,null,77,57,92,23]
[null,null,"Repeated harmony",null,null,"in changed inversion",":in same inversion",":three times",null,null,null,null,null,null,"Harmonic stagnation",null,418,99,321]
[null,"Perfect consonance","Doubling of a tritone note",null,null,"/doubling",null,null,null,null,null,null,null,null,null,null,222]
[null,null,"Doubling of leading-tone",null,"<5","/LT doubling",null,null,null,null,null,null,null,null,null,null,324]
[null,null,"Doubling of leading-tone",null,">4EB","/LT doubling",null,null,null,null,null,null,null,null,null,null,324]
[null,null,"Doubling of leading-tone",null,">4N","/LT doubling",null,null,null,null,null,null,null,null,null,null,324]
[null,null,"Culmination on 5th: long downbeat",null,null,"/culmination",null,null,null,null,null,null,null,null,"Local culmination in upper voice within 4 measures in sp5. Sounds empty except last measure",null,325]
[null,null,"Culmination on 8ve / unison: long downbeat",null,null,"/culmination",null,null,null,null,null,null,null,null,"Local culmination in upper voice within 4 measures in sp5. Sounds empty except last measure",null,326]
[null,null,"Consecutive 5ths",null,null,"parallel",null,null,null,null,null,null,null,null,null,null,84]
[null,null,"Consecutive 5ths",null,"E","contrary",null,null,null,null,null,null,null,null,null,null,85]
[null,null,"Consecutive 8ves or unisons",null,null,"parallel",null,null,null,null,null,null,null,null,null,null,481]
[null,null,"Consecutive 8ves or unisons",null,"E","contrary",null,null,null,null,null,null,null,null,null,null,482]
[null,null,"Parallel 5ths: < measure apart",null,"<5","upbeat contrary","last contrary","non-chord","downbeat","sus harm","upbeat","different beats","2 oblique",null,"Two same non-close perfect consonances in neighboring measures less one measure length apart",null,248,376,249,316,385,250,259,224]
[null,null,"Parallel 5ths: < measure apart",null,">4","upbeat contrary","last contrary","non-chord","downbeat","sus harm","upbeat","different beats","2 oblique",null,"Two same non-close perfect consonances in neighboring measures less one measure length apart",null,248,376,249,316,385,250,259,224]
[null,null,"Parallel 8ves / unisons: < measure apart",null,"<5","upbeat contrary","last contrary","non-chord","downbeat","sus harm","upbeat","different beats","2 oblique",null,"Two same non-close perfect consonances in neighboring measures less than one measure length apart",null,484,485,488,490,491,492,260,225]
[null,null,"Parallel 8ves / unisons: < measure apart",null,">4","upbeat contrary","last contrary","non-chord","downbeat","sus harm","upbeat","different beats","2 oblique",null,"Two same non-close perfect consonances in neighboring measures less than one measure length apart",null,484,485,488,490,491,492,260,225]
[null,null,"Unison",null,null,":on downbeat",":follows m2",":follows M2",null,null,null,null,null,null,null,null,91,275,277]
[null,null,"Similar motion to 5th in outer voices",null,null,"stepw. cadence","leap cadence","downbeat, not cadence","upbeat, not cadence",null,null,null,null,null,null,null,208,212,210,166]
[null,null,"Similar motion to unison",null,null,"stepw. cadence","leap cadence","downbeat, not cadence","upbeat, not cadence",null,null,null,null,null,null,null,72,73,76,167]
[null,null,"Similar motion to 8ve in outer voices",null,null,"stepw. cadence","leap cadence","downbeat, not cadence","upbeat, not cadence",null,null,null,null,null,null,null,209,213,211,168]
[null,"Suspension","Suspension resolution sounds simultaneously with suspension",null,null,":above sus",":below sus",":2nd",null,null,null,null,null,null,null,null,216,217,218]
[null,null,"Wrong resolution of suspension",null,null,":up",":unresolved",":by leap","short",":wrong beat","on beat 2","on beat 4",null,null,null,null,219,220,221,291,286,419,420]
[null,null,"Suspension resolution ornament",null,null,"leap to resolution","chatty","leap from sus",null,null,null,null,null,null,null,null,296,292,295]
[null,null,"Wrong usage of sus. in 2nd sp.",null,null,"I -> LT penultimate measure","not I -> LT penultimate measure",null,null,null,null,null,null,null,null,null,387,388]
[null,null,"Suspension prepared by dissonance",null,null,"/diss. prep",null,null,null,null,null,null,null,null,null,null,458]
[null,"Border","Non-permitted first note",null,null,"V","III syncope","III","Other",null,null,null,null,null,null,null,532,533,534,535]
[null,null,"Non-permitted last note",null,"EB","V","III","Other",null,null,null,null,null,null,"For this rule E voice means highest voice, B means lowest voice, N means non-outer voice",null,536,537,538]
[null,null,"Non-permitted last note",null,"N","V","III","Other",null,null,null,null,null,null,"For this rule E voice means highest voice, B means lowest voice, N means non-outer voice",null,536,537,538]
[null,null,"Non-permitted first harmony",null,null,"not T",null,null,null,null,null,null,null,null,null,null,137]
[null,null,"Non-permitted last harmony",null,null,"not T",null,null,null,null,null,null,null,null,null,null,531]
[null,null,"Non-permitted first harmonic interval",null,null,"M2","m7","M9","m2","M7","m9",null,null,null,null,null,241,242,243,252,253,254]
[null,null,"Penultimate chord",null,null,":no leading-tone",":no V or VII chord",null,null,null,null,null,null,null,null,null,47,335]
[null,"Consecutive 3rds, 4ths and 6ths","Too many consecutive harmonic 3rds",null,null,"> 3",null,null,null,null,null,null,null,null,"More than AA 3rds in a row",null,89]
[null,null,"Too many consecutive harmonic 4ths",null,null,"> 3",null,null,null,null,null,null,null,null,"More than AA 4ths in a row",null,238]
[null,null,"Too many consecutive harmonic 6ths",null,null,"> 3",null,null,null,null,null,null,null,null,"More than AA 6ths in a row",null,90]
[null,"Dissonance","Unresolved harmonic tritone",null,null,"/unresolved",null,null,null,null,null,null,null,null,null,null,379]
[null,null,"Consecutive tritones",null,null,"parallel",null,null,null,null,null,null,null,null,null,null,162]
[null,null,"Consecutive tritones",null,"<6","contrary",null,null,null,null,null,null,null,null,null,null,163]
[null,null,"Consecutive tritones",null,"6E","contrary",null,null,null,null,null,null,null,null,null,null,163]
[null,null,"Misuse of a non-chord tone",null,null,":on downbeat",":longer than previous chord tone",":first note",null,null,null,null,null,null,null,null,83,223,551]
[null,null,"Neighbor tone should be surrounded by chord tones",null,null,"/wrong neighbor",null,null,null,null,null,null,null,null,null,null,170]
[null,null,"Harmonic 4th",null,null,":with lowest voice",null,null,null,null,null,null,null,null,null,null,171]
[null,null,"Harmonic tritone",null,null,":with lowest voice","in archaic mode",null,null,null,null,null,null,null,null,null,331,195]
[null,null,"Non-chord tone approached by leap",null,null,"/leap",null,null,null,null,null,null,null,null,null,null,36]
[null,null,"Non-chord tone left by leap",null,null,"/leap",null,null,null,null,null,null,null,null,null,null,187]
[null,null,"Similar motion to tritone",null,null,"tritone",null,null,null,null,null,null,null,null,null,null,161]
[null,null,"Similar motion to dissonance between outer voices",null,null,"m7","M7","m9","M9",null,null,null,null,null,null,null,169,276,173,174]
[null,"Voice motion","Voice overlapping",null,null,"adjacent (touch)","adjacent voices","non-adjacent","direct 2nd",null,null,null,null,null,null,null,29,24,548,136]
[null,null,"Voice crossing is prohibited",null,null,"first measure","last measure","any",null,null,null,null,null,null,null,null,541,542,543]
[null,null,"Voice crossing is too long",null,"<5","> 1.5 measures","> 2.5 measures",null,null,null,null,null,null,null,null,null,518,519]
[null,null,"Voice crossing is too long",null,">4","> 1.5 measures","> 2.5 measures",null,null,null,null,null,null,null,null,null,518,519]
[null,null,"Voice crossing between non-adjacent voices",null,null,"/non-adjacent",null,null,null,null,null,null,null,null,null,null,520]
[null,null,"2nd interval during voice crossing",null,null,"/2nd interval",null,null,null,null,null,null,null,null,null,null,544]
[null,null,"Similar motion with crossing voices",null,null,":one voice leaps",":both voices leap",null,null,null,null,null,null,null,null,null,546,547]
[null,null,"Consecutive 2nd intervals during voice crossing",null,null,"/Two 2nd intervals",null,null,null,null,null,null,null,null,"Two consecutive harmonic 2nd intervals",null,545]
[null,null,"Similar motion in all parts",null,null,"/same direction",null,null,null,null,null,null,null,null,null,null,214]
[null,null,"Parallel motion in all parts",null,">2","two times",null,null,null,null,null,null,null,null,null,null,550]
[null,"Nonchord tones","Cambiata",null,null,"/any",null,null,null,null,null,null,null,null,null,null,256]
[null,null,"Double-neighbor tone",null,null,"/any","approached by leap",":left by leap",null,null,null,null,null,null,null,null,258,3,97]
[null,null,"Passing dissonance on first beat",null,null,"/any",null,null,null,null,null,null,null,null,"In upper voice only",null,282]
[null,null,"Neighbor tone dissonance on first beat",null,null,"chord repeat",null,null,null,null,null,null,null,null,null,null,257]
[null,null,"Anticipation",null,">2","/any",null,null,null,null,null,null,null,null,null,null,287]
[null,null,"Anticipation",null,"<3","/any",null,null,null,null,null,null,null,null,null,null,287]
[]
[null,"Legend:"]
[]
[null,"Bold text","Rule violation is prohibited"]
[null,"Normal text","Rule can be violated"]
[null,"Strikethrough","Rule is ignored and not checked"]
[null,"Italic text","Rule or subrule name is parsed for parameter"]
[null,"Underlined","Rule is automatically tested in continuous integration"]
[null,"Back color","Shows rule severity and penalty (red is highest penalty). Use only colors from palette in Colors tab"]
[]
[null,"Keyboard shortcuts:"]
[]
[null,"Ctrl+D ","Compile"]
[]
[null,"How to use:"]
[]
[null,"Interval names:"]
[null,"Minor","m2, m3, m6, m7, m9, m10, m13, m14"]
[null,"Major","M2, M3, M6, M7, M9, M10, M13, M14"]
[null,"Perfect","4th, 5th, 8ve, 11th, 12th, 15th"]
[null,"Tritone","b5"]

{"sheet":"Data","index":1,"n_rows":417,"n_cols":26,"rows_kept":417,"cut":false,"hidden":false,"merged":[]}
["Rid","Class","Group","Rule","Subrule","VIZ","VI","VC","VH","VS","VT","FQ","CF","GFP","IFP","DEU","MEI","ER","UE","R","Severity","Flag","Spec","Voice","GComment","Comment"]
[1,"Melody","Uncompensated leap","Uncompensated leap","start 3rd","5",null,"1",null,null,null,{"$f":"VLOOKUP($A2, Stat!$A$1:$C$1000, 2,0)","v":15},{"$f":"VLOOKUP($A2, Stat!$A$1:$C$1000, 3,0)","v":1},1,null,null,null,null,null,null,0,-1,null,"E","If no other uncompensated rules worked."]
[2,"Melody","Tritone","Tritone: adjacent",":resolved","13",null,"1",null,null,null,{"$f":"VLOOKUP($A3, Stat!$A$1:$C$1000, 2,0)","v":8},{"$f":"VLOOKUP($A3, Stat!$A$1:$C$1000, 3,0)","v":2},1,null,null,null,null,null,null,50,-1,10,null,"Melodic adjacent tritone","Search 4 quarters for resolution if penultimate measure"]
[3,"Harmony","Nonchord tones","Double-neighbor tone","approached by leap",null,null,"1",null,null,null,{"$f":"VLOOKUP($A4, Stat!$A$1:$C$1000, 2,0)","v":0},{"$f":"VLOOKUP($A4, Stat!$A$1:$C$1000, 3,0)","v":0},null,null,null,null,null,null,null,0,-1,null,null,null,"There is a leap before first note of double-neighbour tone group"]
[8,"Melody","Change of melodic direction around leap","Leap back","<=6th","5",null,"1",null,null,null,{"$f":"VLOOKUP($A5, Stat!$A$1:$C$1000, 2,0)","v":491},{"$f":"VLOOKUP($A5, Stat!$A$1:$C$1000, 3,0)","v":1},null,null,null,null,null,null,null,0,-1,null,"E",null,"After leap there is an immediate returning leap in the opposite direction. This returning leap is a 6th or shorter"]
[10,"Melody","Melodic repeats","Frequent return to the same note",">3 in 7 notes","9",null,"1",null,null,"Stagnation",{"$f":"VLOOKUP($A6, Stat!$A$1:$C$1000, 2,0)","v":39},{"$f":"VLOOKUP($A6, Stat!$A$1:$C$1000, 3,0)","v":1},null,1,null,null,null,null,null,0,-1,null,"E","Same note repeats more than AA times within BB adjacent notes"]
[12,"Melody","Melodic repeats","Melodic climax is repeated","in upper part",null,null,"1",null,null,null,{"$f":"VLOOKUP($A7, Stat!$A$1:$C$1000, 2,0)","v":108},{"$f":"VLOOKUP($A7, Stat!$A$1:$C$1000, 3,0)","v":39},1,null,null,null,"21,78,79,193",null,null,100,0,null,"E",null,"Multiple culminations in higher voice"]
[15,"Melody","Range","No melody development","12 notes <12","9",null,"1",null,null,"Stagnation",{"$f":"VLOOKUP($A8, Stat!$A$1:$C$1000, 2,0)","v":36},{"$f":"VLOOKUP($A8, Stat!$A$1:$C$1000, 3,0)","v":2},null,1,null,1,null,null,null,0,1,null,"E",null,"Averaged melody direction within AA notes is less than BB deci-semitones"]
[16,"Melody","Range","No melody development","15 notes <15","9",null,"1",null,null,"Stagnation",{"$f":"VLOOKUP($A9, Stat!$A$1:$C$1000, 2,0)","v":20},{"$f":"VLOOKUP($A9, Stat!$A$1:$C$1000, 3,0)","v":1},null,1,null,null,null,null,null,0,1,null,"E",null,"Averaged melody direction within AA notes is less than BB deci-semitones"]
[17,"Harmony","Harmony","Repeating functions in a row",">4 T","9",null,"1",null,null,"Weak prog.",{"$f":"VLOOKUP($A10, Stat!$A$1:$C$1000, 2,0)","v":6},{"$f":"VLOOKUP($A10, Stat!$A$1:$C$1000, 3,0)","v":0},null,1,null,null,null,null,"17,20,23,48,57,77,92,99,428,429,430,431",0,-1,null,null,"More than AA consecutive harmonies all have this letter"]
[18,"Melody","Tritone","Audible tritone: framed",":resolved","13",null,"1",null,null,null,{"$f":"VLOOKUP($A11, Stat!$A$1:$C$1000, 2,0)","v":4},{"$f":"VLOOKUP($A11, Stat!$A$1:$C$1000, 3,0)","v":0},1,null,null,null,null,null,null,0,-1,2345,null,"Tritone within measure with intermediate notes, framed by two melody direction changes"]
[19,"Melody","Tritone","Audible tritone: framed",":unresolved","13",null,"1",null,null,null,{"$f":"VLOOKUP($A12, Stat!$A$1:$C$1000, 2,0)","v":33},{"$f":"VLOOKUP($A12, Stat!$A$1:$C$1000, 3,0)","v":21},1,null,null,null,"18",null,null,50,-1,2345,null,"Tritone within measure with intermediate notes, framed by two melody direction changes"]
[20,"Harmony","Harmony","Missing functions in a row",">5 without T","9",null,"1",null,null,"No T",{"$f":"VLOOKUP($A13, Stat!$A$1:$C$1000, 2,0)","v":5},{"$f":"VLOOKUP($A13, Stat!$A$1:$C$1000, 3,0)","v":0},null,1,null,null,null,null,"17,20,23,48,57,77,92,99,428,429,430,431",0,-1,null,null,"More than AA consecutive harmonies do not have this letter"]
[21,"Melody","Melodic repeats","Melodic climax","late 3",null,null,"1",null,null,null,{"$f":"VLOOKUP($A14, Stat!$A$1:$C$1000, 2,0)","v":198},{"$f":"VLOOKUP($A14, Stat!$A$1:$C$1000, 3,0)","v":1},null,null,null,1,null,null,null,0,1,null,"E",null,"Only for upper voice"]
[22,"Melody","Change of melodic direction around leap","Leap back",">6th","5",null,"1",null,null,null,{"$f":"VLOOKUP($A15, Stat!$A$1:$C$1000, 2,0)","v":24},{"$f":"VLOOKUP($A15, Stat!$A$1:$C$1000, 3,0)","v":12},1,null,null,null,null,null,null,0,-1,null,"E",null,"After leap there is an immediate returning leap in the opposite direction. This returning leap is longer than 6th"]
[23,"Harmony","Harmony","Harmonic progression","3 x bad","9",null,"1","4",null,"Weak prog.",{"$f":"VLOOKUP($A16, Stat!$A$1:$C$1000, 2,0)","v":19},{"$f":"VLOOKUP($A16, Stat!$A$1:$C$1000, 3,0)","v":1},null,null,null,null,null,null,"17,20,23,48,57,77,92,99,428,429,430,431",0,-1,null,null,null,"Three consecutive harmonic progressions each with penalty 2"]
[24,"Harmony","Voice motion","Voice overlapping","adjacent voices","10",null,"1",null,null,"Overlap",{"$f":"VLOOKUP($A17, Stat!$A$1:$C$1000, 2,0)","v":54},{"$f":"VLOOKUP($A17, Stat!$A$1:$C$1000, 3,0)","v":9},1,null,null,null,null,null,null,50,0]
[29,"Harmony","Voice motion","Voice overlapping","adjacent (touch)","10",null,"1",null,null,"Overlap",null,null,null,null,null,null,null,null,null,50,-1]
[25,"Melody","Change of melodic direction around leap","No change of direction before the leap between measures: >1skip + close","3rd",5,null,"1",null,null,null,null,null,1,null,null,null,null,null,null,50,-1,null,"E","There is immediate melody direction change after leap, but before leap melody direction changes after more than one note, which go in the same direction as leap"]
[26,"Melody","Change of melodic direction around leap","No change of direction before the leap between measures: >1skip + close","4th",5,null,"1",null,null,null,null,null,1,null,null,null,null,null,null,50,-1,null,"E","There is immediate melody direction change after leap, but before leap melody direction changes after more than one note, which go in the same direction as leap"]
[27,"Melody","Change of melodic direction around leap","No change of direction before the leap between measures: >1skip + close","5th",5,null,"1",null,null,null,null,null,1,null,null,null,null,null,null,100,-1,null,"E","There is immediate melody direction change after leap, but before leap melody direction changes after more than one note, which go in the same direction as leap"]
[28,"Melody","Change of melodic direction around leap","No change of direction before the leap between measures: >1skip + close",">5th",5,null,"1",null,null,null,null,null,1,null,null,null,null,null,null,100,0,null,"E","There is immediate melody direction change after leap, but before leap melody direction changes after more than one note, which go in the same direction as leap"]
[30,"Rhythm","Repeats and ties","Note repeat","cantus","11",null,"1",null,null,"Repeated note",{"$f":"VLOOKUP($A23, Stat!$A$1:$C$1000, 2,0)","v":0},{"$f":"VLOOKUP($A23, Stat!$A$1:$C$1000, 3,0)","v":0},1,null,null,null,null,null,null,100,-1,null,null,null,"Slurs are prohibited in cantus"]
[31,"Melody","Tritone","Tritone: adjacent",":unresolved","13",null,"1",null,null,null,{"$f":"VLOOKUP($A24, Stat!$A$1:$C$1000, 2,0)","v":29},{"$f":"VLOOKUP($A24, Stat!$A$1:$C$1000, 3,0)","v":3},null,null,null,null,"2",null,null,100,-1,10,null,"Melodic adjacent tritone"]
[36,"Harmony","Dissonance","Non-chord tone approached by leap","/leap",null,null,"1",null,null,null,null,null,null,null,null,null,"276,169",null,null,100,-1,null,null,null,"Leap to harmonic upbeat dissonance"]
[39,"Melody","Melodic repeats","Frequent return to the same note",">4 in 9 notes","9",null,"1",null,null,"Stagnation",{"$f":"VLOOKUP($A26, Stat!$A$1:$C$1000, 2,0)","v":21},{"$f":"VLOOKUP($A26, Stat!$A$1:$C$1000, 3,0)","v":0},null,null,null,null,null,null,null,50,0,null,"E","Same note repeats more than AA times within BB adjacent notes"]
[41,"Rhythm","Rhythm","Note lasts for too many measures",">2",null,null,"1",null,null,null,{"$f":"VLOOKUP($A27, Stat!$A$1:$C$1000, 2,0)","v":15},{"$f":"VLOOKUP($A27, Stat!$A$1:$C$1000, 3,0)","v":12},1,null,null,null,null,null,null,50,-1,null,null,null,"Note crosses more than two measures"]
[42,"Melody","Compensated leap","Uncompensated leap: compensation deviation to 2nd","3rd","5",null,"1",null,null,null,{"$f":"VLOOKUP($A28, Stat!$A$1:$C$1000, 2,0)","v":199},{"$f":"VLOOKUP($A28, Stat!$A$1:$C$1000, 3,0)","v":0},null,null,999,null,null,null,null,0,-1,null,"E","Compensation can be deviated one 2nd interval above last leap note"]
[43,"Melody","Compensated leap","Uncompensated leap: compensation deviation to 2nd","4th","5",null,"1",null,null,null,{"$f":"VLOOKUP($A29, Stat!$A$1:$C$1000, 2,0)","v":88},{"$f":"VLOOKUP($A29, Stat!$A$1:$C$1000, 3,0)","v":0},null,null,999,null,null,null,null,0,-1,null,"E","Compensation can be deviated one 2nd interval above last leap note"]
[44,"Melody","Compensated leap","Uncompensated leap: compensation deviation to 2nd","5th","5",null,"1",null,null,null,{"$f":"VLOOKUP($A30, Stat!$A$1:$C$1000, 2,0)","v":76},{"$f":"VLOOKUP($A30, Stat!$A$1:$C$1000, 3,0)","v":0},null,null,999,null,null,null,null,0,-1,null,"E","Compensation can be deviated one 2nd interval above last leap note"]
[45,"Melody","Compensated leap","Uncompensated leap: compensation deviation to 2nd",">5th","5",null,"1",null,null,null,{"$f":"VLOOKUP($A31, Stat!$A$1:$C$1000, 2,0)","v":3},{"$f":"VLOOKUP($A31, Stat!$A$1:$C$1000, 3,0)","v":0},null,null,999,null,null,null,null,0,1,null,"E","Compensation can be deviated one 2nd interval above last leap note"]
[47,"Harmony","Border","Penultimate chord",":no leading-tone","1",null,"1",null,null,null,{"$f":"VLOOKUP($A32, Stat!$A$1:$C$1000, 2,0)","v":108},{"$f":"VLOOKUP($A32, Stat!$A$1:$C$1000, 3,0)","v":5},null,null,null,null,null,null,null,50,-1,null,null,null,"no leading tone is allowed if last bass notes are V-I"]
[48,"Harmony","Harmony","Cadential progression","V-I","1",null,"1",null,null,null,{"$f":"VLOOKUP($A33, Stat!$A$1:$C$1000, 2,0)","v":1},{"$f":"VLOOKUP($A33, Stat!$A$1:$C$1000, 3,0)","v":1},1,null,null,null,null,null,"17,20,23,48,57,77,92,99,428,429,430,431",50,-1,null,null,null,"Bass note going from V note to I octave in outer voices in D-T progression before cadence"]
[53,"Melody","Compensated leap","Compensation after 3rd","3rd","5",null,"1",null,null,null,{"$f":"VLOOKUP($A34, Stat!$A$1:$C$1000, 2,0)","v":44},{"$f":"VLOOKUP($A34, Stat!$A$1:$C$1000, 3,0)","v":0},null,null,null,null,null,null,null,0,-1,null,"E","Compensation has a gap of one 3rd below last leap note"]
[54,"Melody","Compensated leap","Compensation after 3rd","4th","5",null,"1",null,null,null,{"$f":"VLOOKUP($A35, Stat!$A$1:$C$1000, 2,0)","v":28},{"$f":"VLOOKUP($A35, Stat!$A$1:$C$1000, 3,0)","v":0},null,null,null,null,null,null,null,0,-1,null,"E","Compensation has a gap of one 3rd below last leap note"]
[55,"Melody","Compensated leap","Compensation after 3rd","5th","5",null,"1",null,null,null,{"$f":"VLOOKUP($A36, Stat!$A$1:$C$1000, 2,0)","v":41},{"$f":"VLOOKUP($A36, Stat!$A$1:$C$1000, 3,0)","v":0},null,null,null,null,null,null,null,0,-1,null,"E","Compensation has a gap of one 3rd below last leap note"]
[56,"Melody","Compensated leap","Compensation after 3rd",">5th","5",null,"1",null,null,null,{"$f":"VLOOKUP($A37, Stat!$A$1:$C$1000, 2,0)","v":32},{"$f":"VLOOKUP($A37, Stat!$A$1:$C$1000, 3,0)","v":0},null,null,null,null,null,null,null,0,-1,null,"E","Compensation has a gap of one 3rd below last leap note"]
[57,"Harmony","Harmony","Harmonic progression","bad","9",null,"1",null,null,"Weak prog.",{"$f":"VLOOKUP($A38, Stat!$A$1:$C$1000, 2,0)","v":535},{"$f":"VLOOKUP($A38, Stat!$A$1:$C$1000, 3,0)","v":1},null,null,null,null,null,null,"17,20,23,48,57,77,92,99,428,429,430,431",0,-1,null,null,null,"See harmonic progressions with penalty 2"]
[58,"Melody","Change of melodic direction around leap","Leap back","overflow","5",null,"1",null,null,null,{"$f":"VLOOKUP($A39, Stat!$A$1:$C$1000, 2,0)","v":175},{"$f":"VLOOKUP($A39, Stat!$A$1:$C$1000, 3,0)","v":33},1,null,null,null,null,null,null,0,-1,null,"E",null,"After leap there is an immediate returning leap in the opposite direction. This returning leap is longer than initial leap"]
[59,"Melody","Change of melodic direction around leap","No change of direction before the leap: 1skip + close","3rd","5",null,"1",null,null,null,{"$f":"VLOOKUP($A40, Stat!$A$1:$C$1000, 2,0)","v":170},{"$f":"VLOOKUP($A40, Stat!$A$1:$C$1000, 3,0)","v":0},null,null,null,null,null,null,null,0,-1,null,"E","There is immediate melody direction change after leap, but before leap melody direction changes after one note, which goes in the same direction as leap"]
[60,"Melody","Change of melodic direction around leap","No change of direction before the leap: 1skip + close","4th","5",null,"1",null,null,null,{"$f":"VLOOKUP($A41, Stat!$A$1:$C$1000, 2,0)","v":44},{"$f":"VLOOKUP($A41, Stat!$A$1:$C$1000, 3,0)","v":6},null,null,null,null,null,null,null,0,-1,null,"E","There is immediate melody direction change after leap, but before leap melody direction changes after one note, which goes in the same direction as leap"]
[61,"Melody","Change of melodic direction around leap","No change of direction before the leap: 1skip + close","5th","5",null,"1",null,null,null,{"$f":"VLOOKUP($A42, Stat!$A$1:$C$1000, 2,0)","v":38},{"$f":"VLOOKUP($A42, Stat!$A$1:$C$1000, 3,0)","v":5},null,null,null,null,null,null,null,0,-1,null,"E","There is immediate melody direction change after leap, but before leap melody direction changes after one note, which goes in the same direction as leap"]
[62,"Melody","Change of melodic direction around leap","No change of direction before the leap: 1skip + close",">5th","5",null,"1",null,null,null,{"$f":"VLOOKUP($A43, Stat!$A$1:$C$1000, 2,0)","v":23},{"$f":"VLOOKUP($A43, Stat!$A$1:$C$1000, 3,0)","v":10},1,null,null,null,null,null,null,50,0,null,"E","There is immediate melody direction change after leap, but before leap melody direction changes after one note, which goes in the same direction as leap"]
[63,"Melody","Change of melodic direction around leap","No change of direction before and after the leap: 1skip + 1skip","3rd","5",null,"1",null,null,null,{"$f":"VLOOKUP($A44, Stat!$A$1:$C$1000, 2,0)","v":18},{"$f":"VLOOKUP($A44, Stat!$A$1:$C$1000, 3,0)","v":5},1,null,null,null,"59,414,506",null,null,0,-1,null,"E","There is one note going in the same direction before and after leap"]
[64,"Melody","Change of melodic direction around leap","No change of direction before and after the leap: 1skip + 1skip","4th","5",null,"1",null,null,null,{"$f":"VLOOKUP($A45, Stat!$A$1:$C$1000, 2,0)","v":6},{"$f":"VLOOKUP($A45, Stat!$A$1:$C$1000, 3,0)","v":2},1,null,null,null,"60,415,507",null,null,0,-1,null,"E","There is one note going in the same direction before and after leap"]
[65,"Melody","Change of melodic direction around leap","No change of direction before and after the leap: 1skip + 1skip","5th","5",null,"1",null,null,null,{"$f":"VLOOKUP($A46, Stat!$A$1:$C$1000, 2,0)","v":7},{"$f":"VLOOKUP($A46, Stat!$A$1:$C$1000, 3,0)","v":2},1,null,null,null,"61,416,508",null,null,50,0,null,"E","There is one note going in the same direction before and after leap"]
[66,"Melody","Change of melodic direction around leap","No change of direction before and after the leap: 1skip + 1skip",">5th","5",null,"1",null,null,null,{"$f":"VLOOKUP($A47, Stat!$A$1:$C$1000, 2,0)","v":2},{"$f":"VLOOKUP($A47, Stat!$A$1:$C$1000, 3,0)","v":2},1,null,null,null,"62,417,509",null,null,100,0,null,"E","There is one note going in the same direction before and after leap"]
[67,"Melody","Range","Skipped notes","1",null,null,"1",null,null,null,{"$f":"VLOOKUP($A48, Stat!$A$1:$C$1000, 2,0)","v":174},{"$f":"VLOOKUP($A48, Stat!$A$1:$C$1000, 3,0)","v":45},1,null,null,null,null,null,null,0,-1,null,null,"Skipped notes that do not appear within this voice"]
[68,"Melody","Range","Skipped notes",">1",null,null,"1",null,null,null,{"$f":"VLOOKUP($A49, Stat!$A$1:$C$1000, 2,0)","v":20},{"$f":"VLOOKUP($A49, Stat!$A$1:$C$1000, 3,0)","v":10},1,null,null,null,null,null,null,0,-1,null,null,"Skipped notes that do not appear within this voice"]
[69,"Melody","Range","Skipped notes",">1 joined",null,null,"1",null,null,null,{"$f":"VLOOKUP($A50, Stat!$A$1:$C$1000, 2,0)","v":69},{"$f":"VLOOKUP($A50, Stat!$A$1:$C$1000, 3,0)","v":24},1,null,null,null,null,null,null,0,-1,null,null,"Skipped notes that do not appear within this voice"]
[70,"Melody","Melodic repeats","Frequent return to the tonic","3 within 6",9,null,"1",null,null,"Many tonics",null,null,null,null,null,null,null,null,null,50,-1,null,null,"More than AA tonic notes within BB adjacent notes","AA tonic note equivalents within BB notes. Less weight is assigned to a tonic note in species 3,5 if all conditions meet:  There is no leap above M3 to this tonic note. This tonic note is not a local culmination. This tonic note is not longer than previous note. This tonic note is not downbeat. Tonic note length is less than half note."]
[71,"Melody","Melodic repeats","Frequent return to the tonic","4 within 12",9,null,"1",null,null,"Many tonics",null,null,null,null,null,null,null,null,null,50,-1,null,null,"More than AA tonic notes within BB adjacent notes","AA tonic note equivalents within BB notes. Less weight is assigned to a tonic note in species 3,5 if all conditions meet:  There is no leap above M3 to this tonic note. This tonic note is not a local culmination. This tonic note is not longer than previous note. This tonic note is not downbeat. Tonic note length is less than half note."]
[72,"Harmony","Perfect consonance","Similar motion to unison","stepw. cadence","7","3",null,null,null,"!fn!",null,null,1,null,null,null,null,null,null,0,-1,null,null,null,"Direct movement to unison with stepwize motion in higher voice to last measure"]
[73,"Harmony","Perfect consonance","Similar motion to unison","leap cadence","7","3",null,null,null,"!fn!",null,null,1,null,null,null,null,null,null,50,0,null,null,null,"Direct movement to unison with leaping motion in higher voice to last measure"]
[74,"Melody","Melodic minor","bVII note",":before the tonic","8",null,"1",null,null,"VIIb, not LT",{"$f":"VLOOKUP($A55, Stat!$A$1:$C$1000, 2,0)","v":31},{"$f":"VLOOKUP($A55, Stat!$A$1:$C$1000, 3,0)","v":4},1,null,null,null,null,null,null,50,-1,null,null,null,"Before tonic note: next (or second to next in cadence) in melodic minor, if both notes are chord tones"]
[76,"Harmony","Perfect consonance","Similar motion to unison","downbeat, not cadence","7","3",null,null,null,"!fn!",null,null,1,null,null,null,null,null,null,100,0,null,null,null,"Direct movement to unison: not in cadence"]
[77,"Harmony","Harmony","Harmonic progression","non-ideal","9",null,"1",null,null,"Weak prog.",{"$f":"VLOOKUP($A57, Stat!$A$1:$C$1000, 2,0)","v":612},{"$f":"VLOOKUP($A57, Stat!$A$1:$C$1000, 3,0)","v":0},null,null,null,null,null,null,"17,20,23,48,57,77,92,99,428,429,430,431",0,-1,null,null,null,"See harmonic progressions with penalty 1"]
[78,"Melody","Melodic repeats","Melodic climax","early <3",null,null,"1",null,null,null,{"$f":"VLOOKUP($A58, Stat!$A$1:$C$1000, 2,0)","v":71},{"$f":"VLOOKUP($A58, Stat!$A$1:$C$1000, 3,0)","v":1},null,null,null,1,null,null,null,0,1,null,"E",null,"Only for upper voice"]
[79,"Melody","Melodic repeats","Melodic climax","early <5",null,null,"1",null,null,null,{"$f":"VLOOKUP($A59, Stat!$A$1:$C$1000, 2,0)","v":94},{"$f":"VLOOKUP($A59, Stat!$A$1:$C$1000, 3,0)","v":0},null,null,null,1,null,null,null,0,1,null,"E",null,"Only for upper voice"]
[83,"Harmony","Dissonance","Misuse of a non-chord tone",":on downbeat",null,null,"1",null,null,null,{"$f":"VLOOKUP($A60, Stat!$A$1:$C$1000, 2,0)","v":219},{"$f":"VLOOKUP($A60, Stat!$A$1:$C$1000, 3,0)","v":21},null,null,null,null,"169",null,null,100,-1]
[84,"Harmony","Perfect consonance","Consecutive 5ths","parallel","7","1",null,null,null,"!fn!",{"$f":"VLOOKUP($A61, Stat!$A$1:$C$1000, 2,0)","v":32},{"$f":"VLOOKUP($A61, Stat!$A$1:$C$1000, 3,0)","v":5},1,null,null,null,null,null,null,100,0]
[85,"Harmony","Perfect consonance","Consecutive 5ths","contrary","7","1",null,null,null,"!fn!",{"$f":"VLOOKUP($A62, Stat!$A$1:$C$1000, 2,0)","v":0},{"$f":"VLOOKUP($A62, Stat!$A$1:$C$1000, 3,0)","v":0},1,null,null,null,null,null,null,50,0,null,"E"]
[88,"Rhythm","Rhythm","Wrong usage of eighth notes","leap","5",null,"1",null,null,null,{"$f":"VLOOKUP($A63, Stat!$A$1:$C$1000, 2,0)","v":47},{"$f":"VLOOKUP($A63, Stat!$A$1:$C$1000, 3,0)","v":12},1,null,null,null,null,null,null,50,-1,null,null,null,"Leap from or to 1/8 note"]
[89,"Harmony","Consecutive 3rds, 4ths and 6ths","Too many consecutive harmonic 3rds","> 3","9","1","1",null,null,"Consec. 3rds",{"$f":"VLOOKUP($A64, Stat!$A$1:$C$1000, 2,0)","v":27},{"$f":"VLOOKUP($A64, Stat!$A$1:$C$1000, 3,0)","v":0},null,null,null,null,null,null,null,50,-1,null,null,"More than AA 3rds in a row"]
[90,"Harmony","Consecutive 3rds, 4ths and 6ths","Too many consecutive harmonic 6ths","> 3","9","1","1",null,null,"Consec. 6ths",null,null,null,null,null,null,null,null,null,50,-1,null,null,"More than AA 6ths in a row"]
[91,"Harmony","Perfect consonance","Unison",":on downbeat","2","1","1",null,null,null,{"$f":"VLOOKUP($A66, Stat!$A$1:$C$1000, 2,0)","v":6},{"$f":"VLOOKUP($A66, Stat!$A$1:$C$1000, 3,0)","v":2},1,null,null,null,null,null,null,50,-1,null,null,null,"Downbeat unison is not allowed inside counterpoint - only as first or last interval of counterpoint: except >4 voices or between two lowest voices in 4 voices."]
[92,"Harmony","Harmony","Harmonic progression","2 x bad","9",null,"1",null,null,"Weak prog.",{"$f":"VLOOKUP($A67, Stat!$A$1:$C$1000, 2,0)","v":103},{"$f":"VLOOKUP($A67, Stat!$A$1:$C$1000, 3,0)","v":1},null,null,null,null,null,null,"17,20,23,48,57,77,92,99,428,429,430,431",0,-1,null,null,null,"Two consecutive harmonic progressions each with penalty 2"]
[93,"Rhythm","Repeats and ties","Note is repeated: in 10 notes","1",null,null,"1",null,null,null,{"$f":"VLOOKUP($A68, Stat!$A$1:$C$1000, 2,0)","v":36},{"$f":"VLOOKUP($A68, Stat!$A$1:$C$1000, 3,0)","v":0},null,null,null,1,null,null,null,0,-1,2,null,"Note repeat happens several times"]
[94,"Rhythm","Repeats and ties","Note is repeated: in 10 notes","2",null,null,"1",null,null,null,{"$f":"VLOOKUP($A69, Stat!$A$1:$C$1000, 2,0)","v":6},{"$f":"VLOOKUP($A69, Stat!$A$1:$C$1000, 3,0)","v":0},null,null,null,1,"93",null,null,50,-1,2,null,"Note repeat happens several times"]
[95,"Rhythm","Repeats and ties","Note is repeated: in 10 notes",">2",null,null,"1",null,null,null,{"$f":"VLOOKUP($A70, Stat!$A$1:$C$1000, 2,0)","v":22},{"$f":"VLOOKUP($A70, Stat!$A$1:$C$1000, 3,0)","v":0},null,null,null,1,"93,94",null,null,50,-1,2,null,"Note repeat happens several times"]
[97,"Harmony","Nonchord tones","Double-neighbor tone",":left by leap",null,null,"1",null,null,null,{"$f":"VLOOKUP($A71, Stat!$A$1:$C$1000, 2,0)","v":3},{"$f":"VLOOKUP($A71, Stat!$A$1:$C$1000, 3,0)","v":0},null,null,null,null,null,null,null,50,-1,null,null,null,"There is a leap after last note of double-neighbour tone"]
[99,"Harmony","Harmony","Repeated harmony",":in same inversion","1",null,"1",null,null,null,{"$f":"VLOOKUP($A72, Stat!$A$1:$C$1000, 2,0)","v":28},{"$f":"VLOOKUP($A72, Stat!$A$1:$C$1000, 3,0)","v":1},null,null,null,null,null,null,"17,20,23,48,57,77,92,99,428,429,430,431",50,-1,null,null,"Harmonic stagnation","Chord is repeated with same inversion"]
[100,"Melody","Compensated leap","Compensated to 3rd prepared","-","5",null,"1",null,null,null,{"$f":"VLOOKUP($A73, Stat!$A$1:$C$1000, 2,0)","v":0},{"$f":"VLOOKUP($A73, Stat!$A$1:$C$1000, 3,0)","v":0},null,null,null,null,null,null,null,0,-1,null,"E","Prepared within 5 notes"]
[101,"Melody","Compensated leap","Compensated to 3rd prepared","4th","5",null,"1",null,null,null,{"$f":"VLOOKUP($A74, Stat!$A$1:$C$1000, 2,0)","v":94},{"$f":"VLOOKUP($A74, Stat!$A$1:$C$1000, 3,0)","v":0},null,null,null,null,null,null,null,0,-1,null,"E","Prepared within 5 notes"]
[102,"Melody","Compensated leap","Compensated to 3rd prepared","5th","5",null,"1",null,null,null,{"$f":"VLOOKUP($A75, Stat!$A$1:$C$1000, 2,0)","v":69},{"$f":"VLOOKUP($A75, Stat!$A$1:$C$1000, 3,0)","v":0},null,null,null,null,null,null,null,0,-1,null,"E","Prepared within 5 notes"]
[103,"Melody","Compensated leap","Compensated to 3rd prepared",">5th","5",null,"1",null,null,null,{"$f":"VLOOKUP($A76, Stat!$A$1:$C$1000, 2,0)","v":39},{"$f":"VLOOKUP($A76, Stat!$A$1:$C$1000, 3,0)","v":0},null,null,null,null,null,null,null,0,-1,null,"E","Prepared within 5 notes"]
[104,"Melody","Compensated leap","Compensated to 3rd","-","5",null,"1",null,null,null,{"$f":"VLOOKUP($A77, Stat!$A$1:$C$1000, 2,0)","v":0},{"$f":"VLOOKUP($A77, Stat!$A$1:$C$1000, 3,0)","v":0},null,null,null,null,null,null,null,0,-1,null,"E"]
[105,"Melody","Compensated leap","Compensated to 3rd","4th","5",null,"1",null,null,null,{"$f":"VLOOKUP($A78, Stat!$A$1:$C$1000, 2,0)","v":0},{"$f":"VLOOKUP($A78, Stat!$A$1:$C$1000, 3,0)","v":0},null,null,null,null,null,null,null,0,-1,null,"E"]
[106,"Melody","Compensated leap","Compensated to 3rd","5th","5",null,"1",null,null,null,{"$f":"VLOOKUP($A79, Stat!$A$1:$C$1000, 2,0)","v":0},{"$f":"VLOOKUP($A79, Stat!$A$1:$C$1000, 3,0)","v":0},null,null,null,null,null,null,null,0,-1,null,"E"]
[107,"Melody","Compensated leap","Compensated to 3rd",">5th","5",null,"1",null,null,null,{"$f":"VLOOKUP($A80, Stat!$A$1:$C$1000, 2,0)","v":0},{"$f":"VLOOKUP($A80, Stat!$A$1:$C$1000, 3,0)","v":0},null,null,null,null,null,null,null,0,-1,null,"E"]
[108,"Melody","Change of melodic direction around leap","No change of direction after the leap: close + >2skip","3rd","5",null,"1",null,null,null,{"$f":"VLOOKUP($A81, Stat!$A$1:$C$1000, 2,0)","v":73},{"$f":"VLOOKUP($A81, Stat!$A$1:$C$1000, 3,0)","v":0},null,null,null,null,"128,140,510",null,null,0,-1,null,"E","There is immediate melody direction change before leap, but after leap melody direction changes after more than two notes, which go in the same direction as leap"]
[109,"Melody","Change of melodic direction around leap","No change of direction after the leap: close + >2skip","4th","5",null,"1",null,null,null,{"$f":"VLOOKUP($A82, Stat!$A$1:$C$1000, 2,0)","v":11},{"$f":"VLOOKUP($A82, Stat!$A$1:$C$1000, 3,0)","v":5},1,null,null,null,"129,141,511",null,null,0,-1,null,"E","There is immediate melody direction change before leap, but after leap melody direction changes after more than two notes, which go in the same direction as leap"]
[110,"Melody","Change of melodic direction around leap","No change of direction after the leap: close + >2skip","5th","5",null,"1",null,null,null,{"$f":"VLOOKUP($A83, Stat!$A$1:$C$1000, 2,0)","v":9},{"$f":"VLOOKUP($A83, Stat!$A$1:$C$1000, 3,0)","v":3},1,null,null,null,"130,142,512",null,null,100,0,null,"E","There is immediate melody direction change before leap, but after leap melody direction changes after more than two notes, which go in the same direction as leap"]
[111,"Melody","Change of melodic direction around leap","No change of direction after the leap: close + >2skip",">5th","5",null,"1",null,null,null,{"$f":"VLOOKUP($A84, Stat!$A$1:$C$1000, 2,0)","v":2},{"$f":"VLOOKUP($A84, Stat!$A$1:$C$1000, 3,0)","v":1},1,null,null,null,"131,143,513",null,null,100,0,null,"E","There is immediate melody direction change before leap, but after leap melody direction changes after more than two notes, which go in the same direction as leap"]
[112,"Melody","Uncompensated leap","Uncompensated leap: precompensated","3rd","5",null,"1",null,null,null,{"$f":"VLOOKUP($A85, Stat!$A$1:$C$1000, 2,0)","v":151},{"$f":"VLOOKUP($A85, Stat!$A$1:$C$1000, 3,0)","v":0},null,null,null,null,"144,120,42",null,null,0,-1,null,"E"]
[113,"Melody","Uncompensated leap","Uncompensated leap: precompensated","4th","5",null,"1",null,null,null,{"$f":"VLOOKUP($A86, Stat!$A$1:$C$1000, 2,0)","v":19},{"$f":"VLOOKUP($A86, Stat!$A$1:$C$1000, 3,0)","v":0},null,null,null,null,"145,121,43",null,null,0,-1,null,"E"]
[114,"Melody","Uncompensated leap","Uncompensated leap: precompensated","5th","5",null,"1",null,null,null,{"$f":"VLOOKUP($A87, Stat!$A$1:$C$1000, 2,0)","v":8},{"$f":"VLOOKUP($A87, Stat!$A$1:$C$1000, 3,0)","v":0},null,null,null,null,"146,122,44",null,null,50,0,null,"E"]
[115,"Melody","Uncompensated leap","Uncompensated leap: precompensated",">5th","5",null,"1",null,null,null,{"$f":"VLOOKUP($A88, Stat!$A$1:$C$1000, 2,0)","v":24},{"$f":"VLOOKUP($A88, Stat!$A$1:$C$1000, 3,0)","v":0},null,null,null,null,"147,123,45",null,null,100,0,null,"E"]
[116,"Melody","Uncompensated leap","Uncompensated child leap","3rd","5",null,"1",null,null,null,{"$f":"VLOOKUP($A89, Stat!$A$1:$C$1000, 2,0)","v":43},{"$f":"VLOOKUP($A89, Stat!$A$1:$C$1000, 3,0)","v":0},null,null,null,null,"144,120,42",null,null,0,-1,null,"E","After longer leap or before longer/same/one-note-smaller leap."]
[117,"Melody","Uncompensated leap","Uncompensated child leap","4th","5",null,"1",null,null,null,{"$f":"VLOOKUP($A90, Stat!$A$1:$C$1000, 2,0)","v":45},{"$f":"VLOOKUP($A90, Stat!$A$1:$C$1000, 3,0)","v":0},null,null,null,null,"145,121,43",null,null,0,-1,null,"E","After longer leap or before longer/same/one-note-smaller leap."]
[118,"Melody","Uncompensated leap","Uncompensated child leap","5th","5",null,"1",null,null,null,{"$f":"VLOOKUP($A91, Stat!$A$1:$C$1000, 2,0)","v":25},{"$f":"VLOOKUP($A91, Stat!$A$1:$C$1000, 3,0)","v":0},null,null,null,null,"146,122,44",null,null,0,-1,null,"E","After longer leap or before longer/same/one-note-smaller leap."]
[119,"Melody","Uncompensated leap","Uncompensated child leap",">5th","5",null,"1",null,null,null,{"$f":"VLOOKUP($A92, Stat!$A$1:$C$1000, 2,0)","v":20},{"$f":"VLOOKUP($A92, Stat!$A$1:$C$1000, 3,0)","v":0},null,null,null,null,"147,123,45",null,null,0,-1,null,"E","After longer leap or before longer/same/one-note-smaller leap."]
[120,"Melody","Compensated leap","Uncompensated leap: compensation deviation to 3rd","3rd","5",null,"1",null,null,null,{"$f":"VLOOKUP($A93, Stat!$A$1:$C$1000, 2,0)","v":84},{"$f":"VLOOKUP($A93, Stat!$A$1:$C$1000, 3,0)","v":0},null,null,999,null,null,null,null,0,-1,35,"E","Compensation can be deviated one 3rd interval above last leap note"]
[121,"Melody","Compensated leap","Uncompensated leap: compensation deviation to 3rd","4th","5",null,"1",null,null,null,{"$f":"VLOOKUP($A94, Stat!$A$1:$C$1000, 2,0)","v":58},{"$f":"VLOOKUP($A94, Stat!$A$1:$C$1000, 3,0)","v":0},null,null,999,null,null,null,null,0,-1,35,"E","Compensation can be deviated one 3rd interval above last leap note"]
[122,"Melody","Compensated leap","Uncompensated leap: compensation deviation to 3rd","5th","5",null,"1",null,null,null,{"$f":"VLOOKUP($A95, Stat!$A$1:$C$1000, 2,0)","v":23},{"$f":"VLOOKUP($A95, Stat!$A$1:$C$1000, 3,0)","v":0},null,null,999,null,null,null,null,0,-1,35,"E","Compensation can be deviated one 3rd interval above last leap note"]
[123,"Melody","Compensated leap","Uncompensated leap: compensation deviation to 3rd",">5th","5",null,"1",null,null,null,{"$f":"VLOOKUP($A96, Stat!$A$1:$C$1000, 2,0)","v":0},{"$f":"VLOOKUP($A96, Stat!$A$1:$C$1000, 3,0)","v":0},null,null,999,null,null,null,null,50,0,35,"E","Compensation can be deviated one 3rd interval above last leap note","Possible in species 3,5 when immediate with short notes"]
[124,"Melody","Uncompensated leap","Uncompensated leap","3rd","5",null,"1",null,null,null,{"$f":"VLOOKUP($A97, Stat!$A$1:$C$1000, 2,0)","v":36},{"$f":"VLOOKUP($A97, Stat!$A$1:$C$1000, 3,0)","v":1},null,null,null,null,"144,120,42",null,null,0,-1,null,"E","If no other uncompensated rules worked."]
[125,"Melody","Uncompensated leap","Uncompensated leap","4th","5",null,"1",null,null,null,{"$f":"VLOOKUP($A98, Stat!$A$1:$C$1000, 2,0)","v":39},{"$f":"VLOOKUP($A98, Stat!$A$1:$C$1000, 3,0)","v":1},null,null,null,null,"145,121,43",null,null,0,-1,null,"E","If no other uncompensated rules worked.","Possible in cantus"]
[126,"Melody","Uncompensated leap","Uncompensated leap","5th","5",null,"1",null,null,null,{"$f":"VLOOKUP($A99, Stat!$A$1:$C$1000, 2,0)","v":60},{"$f":"VLOOKUP($A99, Stat!$A$1:$C$1000, 3,0)","v":1},null,null,null,null,"146,122,44",null,null,50,0,null,"E","If no other uncompensated rules worked."]
[127,"Melody","Uncompensated leap","Uncompensated leap",">5th","5",null,"1",null,null,null,{"$f":"VLOOKUP($A100, Stat!$A$1:$C$1000, 2,0)","v":88},{"$f":"VLOOKUP($A100, Stat!$A$1:$C$1000, 3,0)","v":1},null,null,null,null,"147,123,45",null,null,100,0,null,"E","If no other uncompensated rules worked."]
[128,"Melody","Change of melodic direction around leap","No change of direction after the leap: close + 1skip","3rd","5",null,"1",null,null,null,{"$f":"VLOOKUP($A101, Stat!$A$1:$C$1000, 2,0)","v":126},{"$f":"VLOOKUP($A101, Stat!$A$1:$C$1000, 3,0)","v":0},null,null,null,null,"510",null,null,0,-1,null,"E","There is immediate melody direction change before leap, but after leap melody direction changes only after one note, which goes in the same direction as leap"]
[129,"Melody","Change of melodic direction around leap","No change of direction after the leap: close + 1skip","4th","5",null,"1",null,null,null,{"$f":"VLOOKUP($A102, Stat!$A$1:$C$1000, 2,0)","v":55},{"$f":"VLOOKUP($A102, Stat!$A$1:$C$1000, 3,0)","v":9},null,null,null,null,"511",null,null,0,-1,null,"E","There is immediate melody direction change before leap, but after leap melody direction changes only after one note, which goes in the same direction as leap"]
[130,"Melody","Change of melodic direction around leap","No change of direction after the leap: close + 1skip","5th","5",null,"1",null,null,null,{"$f":"VLOOKUP($A103, Stat!$A$1:$C$1000, 2,0)","v":38},{"$f":"VLOOKUP($A103, Stat!$A$1:$C$1000, 3,0)","v":5},null,null,null,null,"512",null,null,0,-1,null,"E","There is immediate melody direction change before leap, but after leap melody direction changes only after one note, which goes in the same direction as leap"]
[131,"Melody","Change of melodic direction around leap","No change of direction after the leap: close + 1skip",">5th","5",null,"1",null,null,null,{"$f":"VLOOKUP($A104, Stat!$A$1:$C$1000, 2,0)","v":27},{"$f":"VLOOKUP($A104, Stat!$A$1:$C$1000, 3,0)","v":12},1,null,null,null,"513",null,null,50,0,null,"E","There is immediate melody direction change before leap, but after leap melody direction changes only after one note, which goes in the same direction as leap"]
[132,"Melody","Change of melodic direction around leap","No change of direction before the leap: >1skip + close","3rd","5",null,"1",null,null,null,{"$f":"VLOOKUP($A105, Stat!$A$1:$C$1000, 2,0)","v":185},{"$f":"VLOOKUP($A105, Stat!$A$1:$C$1000, 3,0)","v":0},null,null,null,null,null,null,null,0,-1,null,"E","There is immediate melody direction change after leap, but before leap melody direction changes after more than one note, which go in the same direction as leap"]
[133,"Melody","Change of melodic direction around leap","No change of direction before the leap: >1skip + close","4th","5",null,"1",null,null,null,{"$f":"VLOOKUP($A106, Stat!$A$1:$C$1000, 2,0)","v":70},{"$f":"VLOOKUP($A106, Stat!$A$1:$C$1000, 3,0)","v":7},null,null,null,null,null,null,null,0,-1,null,"E","There is immediate melody direction change after leap, but before leap melody direction changes after more than one note, which go in the same direction as leap"]
[134,"Melody","Change of melodic direction around leap","No change of direction before the leap: >1skip + close","5th","5",null,"1",null,null,null,{"$f":"VLOOKUP($A107, Stat!$A$1:$C$1000, 2,0)","v":36},{"$f":"VLOOKUP($A107, Stat!$A$1:$C$1000, 3,0)","v":6},null,null,null,null,null,null,null,0,-1,null,"E","There is immediate melody direction change after leap, but before leap melody direction changes after more than one note, which go in the same direction as leap"]
[135,"Melody","Change of melodic direction around leap","No change of direction before the leap: >1skip + close",">5th","5",null,"1",null,null,null,{"$f":"VLOOKUP($A108, Stat!$A$1:$C$1000, 2,0)","v":13},{"$f":"VLOOKUP($A108, Stat!$A$1:$C$1000, 3,0)","v":4},1,null,null,null,null,null,null,100,0,null,"E","There is immediate melody direction change after leap, but before leap melody direction changes after more than one note, which go in the same direction as leap"]
[136,"Harmony","Voice motion","Voice overlapping","direct 2nd",7,3,null,null,null,"!fn!",null,null,null,null,null,null,null,null,null,100,0,null,null,null,"Similar movement to harmonic second interval"]
[137,"Harmony","Border","Non-permitted first harmony","not T",1,null,"1",null,null,null,null,null,null,null,null,null,null,null,null,50,-1,null,null,null,"Also prohibits T6"]
[138,"Rhythm","Rhythm","Misuse of rest","wrong starting rest",null,null,"1",null,null,null,null,null,null,null,null,null,null,null,null,50,-1,null,null,null,"Wrong starting rest length"]
[140,"Melody","Change of melodic direction around leap","No change of direction after the leap: close + 2skip","3rd","5",null,"1",null,null,null,{"$f":"VLOOKUP($A112, Stat!$A$1:$C$1000, 2,0)","v":69},{"$f":"VLOOKUP($A112, Stat!$A$1:$C$1000, 3,0)","v":1},null,null,null,null,"128,510",null,null,0,-1,null,"E","There is immediate melody direction change before leap, but after leap melody direction changes only after two notes, which go in the same direction as leap"]
[141,"Melody","Change of melodic direction around leap","No change of direction after the leap: close + 2skip","4th","5",null,"1",null,null,null,{"$f":"VLOOKUP($A113, Stat!$A$1:$C$1000, 2,0)","v":29},{"$f":"VLOOKUP($A113, Stat!$A$1:$C$1000, 3,0)","v":1},null,null,null,null,"129,511",null,null,0,-1,null,"E","There is immediate melody direction change before leap, but after leap melody direction changes only after two notes, which go in the same direction as leap"]
[142,"Melody","Change of melodic direction around leap","No change of direction after the leap: close + 2skip","5th","5",null,"1",null,null,null,{"$f":"VLOOKUP($A114, Stat!$A$1:$C$1000, 2,0)","v":13},{"$f":"VLOOKUP($A114, Stat!$A$1:$C$1000, 3,0)","v":3},1,null,null,null,"130,512",null,null,50,0,null,"E","There is immediate melody direction change before leap, but after leap melody direction changes only after two notes, which go in the same direction as leap"]
[143,"Melody","Change of melodic direction around leap","No change of direction after the leap: close + 2skip",">5th","5",null,"1",null,null,null,{"$f":"VLOOKUP($A115, Stat!$A$1:$C$1000, 2,0)","v":6},{"$f":"VLOOKUP($A115, Stat!$A$1:$C$1000, 3,0)","v":4},1,null,null,null,"131,513",null,null,100,0,null,"E","There is immediate melody direction change before leap, but after leap melody direction changes only after two notes, which go in the same direction as leap"]
[144,"Melody","Compensated leap","C5P last 4 measures, 8 notes","3rd","5",null,"1",null,null,null,{"$f":"VLOOKUP($A116, Stat!$A$1:$C$1000, 2,0)","v":0},{"$f":"VLOOKUP($A116, Stat!$A$1:$C$1000, 3,0)","v":0},null,null,null,null,null,null,null,0,-1,null,"E","Compensated to 5th, precompensated within 6 notes"]
[145,"Melody","Compensated leap","C5P last 4 measures, 8 notes","4th","5",null,"1",null,null,null,{"$f":"VLOOKUP($A117, Stat!$A$1:$C$1000, 2,0)","v":92},{"$f":"VLOOKUP($A117, Stat!$A$1:$C$1000, 3,0)","v":0},null,null,null,null,null,null,null,0,-1,null,"E","Compensated to 5th, precompensated within 6 notes"]
[146,"Melody","Compensated leap","C5P last 4 measures, 8 notes","5th","5",null,"1",null,null,null,{"$f":"VLOOKUP($A118, Stat!$A$1:$C$1000, 2,0)","v":127},{"$f":"VLOOKUP($A118, Stat!$A$1:$C$1000, 3,0)","v":0},null,null,null,null,null,null,null,0,-1,null,"E","Compensated to 5th, precompensated within 6 notes"]
[147,"Melody","Compensated leap","C5P last 4 measures, 8 notes",">5th","5",null,"1",null,null,null,{"$f":"VLOOKUP($A119, Stat!$A$1:$C$1000, 2,0)","v":40},{"$f":"VLOOKUP($A119, Stat!$A$1:$C$1000, 3,0)","v":0},null,null,null,null,null,null,null,0,-1,null,"E","Compensated to 5th, precompensated within 6 notes"]
[148,"Melody","Change of melodic direction around leap","No change of direction before and after the leap: >1skip + 1skip","3rd","5",null,"1",null,null,null,{"$f":"VLOOKUP($A120, Stat!$A$1:$C$1000, 2,0)","v":20},{"$f":"VLOOKUP($A120, Stat!$A$1:$C$1000, 3,0)","v":1},null,null,null,null,132,null,null,0,-1,null,"E","There is more than one note going in the same direction before leap and one note going in the same direction after leap"]
[149,"Melody","Change of melodic direction around leap","No change of direction before and after the leap: >1skip + 1skip","4th","5",null,"1",null,null,null,{"$f":"VLOOKUP($A121, Stat!$A$1:$C$1000, 2,0)","v":5},{"$f":"VLOOKUP($A121, Stat!$A$1:$C$1000, 3,0)","v":2},1,null,null,null,133,null,null,0,-1,null,"E","There is more than one note going in the same direction before leap and one note going in the same direction after leap"]
[150,"Melody","Change of melodic direction around leap","No change of direction before and after the leap: >1skip + 1skip","5th","5",null,"1",null,null,null,{"$f":"VLOOKUP($A122, Stat!$A$1:$C$1000, 2,0)","v":4},{"$f":"VLOOKUP($A122, Stat!$A$1:$C$1000, 3,0)","v":2},1,null,null,null,134,null,null,100,0,null,"E","There is more than one note going in the same direction before leap and one note going in the same direction after leap"]
[151,"Melody","Change of melodic direction around leap","No change of direction before and after the leap: >1skip + 1skip",">5th","5",null,"1",null,null,null,{"$f":"VLOOKUP($A123, Stat!$A$1:$C$1000, 2,0)","v":0},{"$f":"VLOOKUP($A123, Stat!$A$1:$C$1000, 3,0)","v":0},1,null,null,null,135,null,null,100,0,null,"E","There is more than one note going in the same direction before leap and one note going in the same direction after leap"]
[152,"Melody","Melodic minor","Chromaticism: close","VI<->VI#","8",null,"1",null,null,"!srn!",{"$f":"VLOOKUP($A124, Stat!$A$1:$C$1000, 2,0)","v":1},{"$f":"VLOOKUP($A124, Stat!$A$1:$C$1000, 3,0)","v":1},1,null,null,null,null,null,null,100,-1,null,null,"These two notes are tightly close","Chromatic"]
[153,"Melody","Melodic minor","Chromaticism: close","VII<->VII#","8",null,"1",null,null,"!srn!",{"$f":"VLOOKUP($A125, Stat!$A$1:$C$1000, 2,0)","v":3},{"$f":"VLOOKUP($A125, Stat!$A$1:$C$1000, 3,0)","v":2},1,null,null,null,null,null,null,100,-1,null,null,"These two notes are tightly close","Chromatic"]
[154,"Melody","Melodic minor","Dim or aug melodic interval","VI<->VII#","8",null,"1",null,null,"!srn!",{"$f":"VLOOKUP($A126, Stat!$A$1:$C$1000, 2,0)","v":15},{"$f":"VLOOKUP($A126, Stat!$A$1:$C$1000, 3,0)","v":3},1,null,null,null,null,null,null,50,-1,null,null,null,"Augmented / diminished"]
[155,"Melody","Melodic minor","Dim or aug melodic interval","VI#<->III","8",null,"1",null,null,"!srn!",{"$f":"VLOOKUP($A127, Stat!$A$1:$C$1000, 2,0)","v":4},{"$f":"VLOOKUP($A127, Stat!$A$1:$C$1000, 3,0)","v":1},1,null,null,null,null,null,null,100,-1,null,null,null,"Augmented / diminished"]
[156,"Melody","Melodic minor","Dim or aug melodic interval","VII#-III","8",null,"1",null,null,"!srn!",{"$f":"VLOOKUP($A128, Stat!$A$1:$C$1000, 2,0)","v":7},{"$f":"VLOOKUP($A128, Stat!$A$1:$C$1000, 3,0)","v":3},1,null,null,null,null,null,null,100,-1,null,null,null,"Augmented / diminished"]
[157,"Melody","Melodic minor","Dim or aug melodic interval","III-VII#","8",null,"1",null,null,"!srn!",{"$f":"VLOOKUP($A129, Stat!$A$1:$C$1000, 2,0)","v":3},{"$f":"VLOOKUP($A129, Stat!$A$1:$C$1000, 3,0)","v":1},1,null,null,null,null,null,null,100,-1,null,null,null,"Augmented / diminished"]
[158,"Melody","Melodic minor","Chromaticism: far","VI<->VI#","8",null,"1",null,null,"!srn!",{"$f":"VLOOKUP($A130, Stat!$A$1:$C$1000, 2,0)","v":7},{"$f":"VLOOKUP($A130, Stat!$A$1:$C$1000, 3,0)","v":3},1,null,null,null,null,null,null,50,-1,null,null,"These two notes are one note apart and are in neighboring harmonies"]
[159,"Melody","Melodic minor","Chromaticism: far","VII<->VII#","8",null,"1",null,null,"!srn!",{"$f":"VLOOKUP($A131, Stat!$A$1:$C$1000, 2,0)","v":3},{"$f":"VLOOKUP($A131, Stat!$A$1:$C$1000, 3,0)","v":1},1,null,null,null,null,null,null,50,-1,null,null,"These two notes are one note apart and are in neighboring harmonies"]
[160,"Rhythm","Rhythm","Non-permitted rhythm","whole inside",null,null,"1",null,null,null,null,null,null,null,null,null,null,null,null,50,-1,null,null,null,"Whole or longer note in measure in species 2 or 4. In species 5 allowed only if other voices move"]
[164,"Harmony","Melodic minor","False chromatic relation: in non-outer voices","VI<->VI#","1",null,null,null,null,null,{"$f":"VLOOKUP($A133, Stat!$A$1:$C$1000, 2,0)","v":25},{"$f":"VLOOKUP($A133, Stat!$A$1:$C$1000, 3,0)","v":4},1,null,null,null,null,null,null,50,-1,null,null,"These two notes are harmonic tones in neighboring harmonies, but are in different voices"]
[165,"Harmony","Melodic minor","False chromatic relation: in non-outer voices","VII<->VII#",null,null,null,null,null,null,{"$f":"VLOOKUP($A134, Stat!$A$1:$C$1000, 2,0)","v":30},{"$f":"VLOOKUP($A134, Stat!$A$1:$C$1000, 3,0)","v":6},1,null,null,null,null,null,null,50,-1,null,null,"These two notes are harmonic tones in neighboring harmonies, but are in different voices"]
[169,"Harmony","Dissonance","Similar motion to dissonance between outer voices","m7","7","3",null,null,null,"!fn!",{"$f":"VLOOKUP($A135, Stat!$A$1:$C$1000, 2,0)","v":904},{"$f":"VLOOKUP($A135, Stat!$A$1:$C$1000, 3,0)","v":3},null,null,null,null,null,null,null,50,0,null,null,null,"Minor 7th"]
[170,"Harmony","Dissonance","Neighbor tone should be surrounded by chord tones","/wrong neighbor",null,null,"1",null,null,null,null,null,null,null,null,null,null,null,null,50,-1]
[171,"Harmony","Dissonance","Harmonic 4th",":with lowest voice",null,null,"1",null,null,null,null,null,null,null,null,null,null,null,null,50,-1,null,null,null,"4th interval is prohibited between two chord tones with bass"]
[172,"Harmony","Harmony","Incomplete harmony","penultimate",1,null,"1",null,null,null,null,null,null,null,null,null,null,null,null,50,-1,null,null,null,"Starting from 3 voices chords in penultimate measure should have all three chord tones on first beat or suspension resolution or PDD resolution note. In 2 voices - at least two chord tones."]
[173,"Harmony","Dissonance","Similar motion to dissonance between outer voices","m9",7,3,null,null,null,"!fn!",null,null,null,null,null,null,null,null,null,50,0,null,null,null,"Minor 9th"]
[174,"Harmony","Dissonance","Similar motion to dissonance between outer voices","M9",7,3,null,null,null,"!fn!",null,null,null,null,null,null,null,null,null,50,0,null,null,null,"Major 9th"]
[175,"Melody","Leaps","Non-permitted melodic interval: ascending",":m6","5",null,"1",null,null,null,{"$f":"VLOOKUP($A141, Stat!$A$1:$C$1000, 2,0)","v":64},{"$f":"VLOOKUP($A141, Stat!$A$1:$C$1000, 3,0)","v":7},1,null,null,null,null,null,null,0,-1]
[176,"Melody","Leaps","Non-permitted melodic interval: ascending",":maj6","5",null,"1",null,null,null,{"$f":"VLOOKUP($A142, Stat!$A$1:$C$1000, 2,0)","v":71},{"$f":"VLOOKUP($A142, Stat!$A$1:$C$1000, 3,0)","v":6},1,null,null,null,null,null,null,0,-1]
[177,"Melody","Leaps","Non-permitted melodic interval: ascending",":m7","5",null,"1",null,null,null,{"$f":"VLOOKUP($A143, Stat!$A$1:$C$1000, 2,0)","v":7},{"$f":"VLOOKUP($A143, Stat!$A$1:$C$1000, 3,0)","v":4},1,null,null,null,null,null,null,50,-1]
[178,"Melody","Leaps","Non-permitted melodic interval: ascending",":maj7","5",null,"1",null,null,null,{"$f":"VLOOKUP($A144, Stat!$A$1:$C$1000, 2,0)","v":6},{"$f":"VLOOKUP($A144, Stat!$A$1:$C$1000, 3,0)","v":4},1,null,null,null,null,null,null,100,-1]
[179,"Melody","Leaps","Non-permitted melodic interval: ascending",":8ve","5",null,"1",null,null,null,{"$f":"VLOOKUP($A145, Stat!$A$1:$C$1000, 2,0)","v":33},{"$f":"VLOOKUP($A145, Stat!$A$1:$C$1000, 3,0)","v":6},1,null,null,null,null,null,null,0,-1]
[180,"Melody","Leaps","Non-permitted melodic interval: ascending",":greater than 8ve","5",null,"1",null,null,null,{"$f":"VLOOKUP($A146, Stat!$A$1:$C$1000, 2,0)","v":6},{"$f":"VLOOKUP($A146, Stat!$A$1:$C$1000, 3,0)","v":6},1,null,null,null,null,null,null,100,0]
[181,"Melody","Leaps","Non-permitted melodic interval: descending",":m6","5",null,"1",null,null,null,{"$f":"VLOOKUP($A147, Stat!$A$1:$C$1000, 2,0)","v":53},{"$f":"VLOOKUP($A147, Stat!$A$1:$C$1000, 3,0)","v":8},1,null,null,null,null,null,null,0,-1]
[182,"Melody","Leaps","Non-permitted melodic interval: descending",":maj6","5",null,"1",null,null,null,{"$f":"VLOOKUP($A148, Stat!$A$1:$C$1000, 2,0)","v":36},{"$f":"VLOOKUP($A148, Stat!$A$1:$C$1000, 3,0)","v":5},1,null,null,null,null,null,null,0,-1]
[183,"Melody","Leaps","Non-permitted melodic interval: descending",":m7","5",null,"1",null,null,null,{"$f":"VLOOKUP($A149, Stat!$A$1:$C$1000, 2,0)","v":6},{"$f":"VLOOKUP($A149, Stat!$A$1:$C$1000, 3,0)","v":4},1,null,null,null,null,null,null,50,-1]
[184,"Melody","Leaps","Non-permitted melodic interval: descending",":maj7","5",null,"1",null,null,null,{"$f":"VLOOKUP($A150, Stat!$A$1:$C$1000, 2,0)","v":3},{"$f":"VLOOKUP($A150, Stat!$A$1:$C$1000, 3,0)","v":1},1,null,null,null,null,null,null,100,-1]
[185,"Melody","Leaps","Non-permitted melodic interval: descending",":8ve","5",null,"1",null,null,null,{"$f":"VLOOKUP($A151, Stat!$A$1:$C$1000, 2,0)","v":31},{"$f":"VLOOKUP($A151, Stat!$A$1:$C$1000, 3,0)","v":6},1,null,null,null,null,null,null,0,-1]
[186,"Melody","Leaps","Non-permitted melodic interval: descending",":greater than 8ve","5",null,"1",null,null,null,{"$f":"VLOOKUP($A152, Stat!$A$1:$C$1000, 2,0)","v":4},{"$f":"VLOOKUP($A152, Stat!$A$1:$C$1000, 3,0)","v":4},1,null,null,null,null,null,null,100,0]
[187,"Harmony","Dissonance","Non-chord tone left by leap","/leap",null,null,"1",null,null,null,{"$f":"VLOOKUP($A153, Stat!$A$1:$C$1000, 2,0)","v":195},{"$f":"VLOOKUP($A153, Stat!$A$1:$C$1000, 3,0)","v":8},null,null,null,null,"276,169",null,null,100,-1,null,null,null,"Leap from harmonic upbeat dissonance"]
[188,"Rhythm","Repeats and ties","Frequent interruption of syncopation: within 10 notes","1",null,null,"1",null,null,null,{"$f":"VLOOKUP($A154, Stat!$A$1:$C$1000, 2,0)","v":21},{"$f":"VLOOKUP($A154, Stat!$A$1:$C$1000, 3,0)","v":2},null,null,null,1,null,null,null,0,-1,4,null,"Except interruption of syncopation between penultimate and last measure","One syncopation is interrupted, resulting in two separate half notes"]
[189,"Rhythm","Repeats and ties","Frequent interruption of syncopation: within 10 notes","2",null,null,"1",null,null,null,{"$f":"VLOOKUP($A155, Stat!$A$1:$C$1000, 2,0)","v":15},{"$f":"VLOOKUP($A155, Stat!$A$1:$C$1000, 3,0)","v":0},null,null,null,1,"188",null,null,50,-1,4,null,"Except interruption of syncopation between penultimate and last measure"]
[190,"Rhythm","Repeats and ties","Frequent interruption of syncopation: within 10 notes",">2",null,null,"1",null,null,null,{"$f":"VLOOKUP($A156, Stat!$A$1:$C$1000, 2,0)","v":3},{"$f":"VLOOKUP($A156, Stat!$A$1:$C$1000, 3,0)","v":0},null,null,null,1,"188,189",null,null,50,-1,4,null,"Except interruption of syncopation between penultimate and last measure"]
[191,"Melody","Compensated leap","Uncompensated leap: compensation deviation to 2nd","late >3","5",null,"1",null,null,null,{"$f":"VLOOKUP($A157, Stat!$A$1:$C$1000, 2,0)","v":0},{"$f":"VLOOKUP($A157, Stat!$A$1:$C$1000, 3,0)","v":0},null,null,null,null,null,null,null,50,0,null,"E","Compensation can be deviated one 2nd interval above last leap note","Deviation after compensation note AA (1 for >5th)"]
[192,"Melody","Compensated leap","Uncompensated leap: compensation deviation to 3rd","late >3","5",null,"1",null,null,null,{"$f":"VLOOKUP($A158, Stat!$A$1:$C$1000, 2,0)","v":0},{"$f":"VLOOKUP($A158, Stat!$A$1:$C$1000, 3,0)","v":0},null,null,null,null,null,null,null,50,0,35,"E","Compensation can be deviated one 3rd interval above last leap note","Deviation after compensation note AA (2 for >5th)"]
[193,"Melody","Melodic repeats","Melodic climax","early 50%",null,null,"1",null,null,null,{"$f":"VLOOKUP($A159, Stat!$A$1:$C$1000, 2,0)","v":192},{"$f":"VLOOKUP($A159, Stat!$A$1:$C$1000, 3,0)","v":0},null,null,null,1,null,null,null,0,1,null,"E",null,"Only for upper voice"]
[196,"Harmony","Harmony","Six-four chord",":suggestive",1,null,"1",null,null,null,null,null,1,null,null,null,null,null,null,0,-1,null,null,null,"6/4 chord with repeating 5th on beat 2 or 4"]
[197,"Melody","Border","Leading tone is unresolved","need up",12,null,"1",null,null,"Res.",null,null,null,null,null,null,null,null,null,50,-1,null,null,null,"Leading tone has to resolve up stepwise"]
[198,"Melody","Border","Leading tone is unresolved","need stepwise",12,null,"1",null,null,"Res.",null,null,null,null,null,null,null,null,null,50,-1,null,null,null,"Leading tone has to resolve up or down stepwise"]
[199,"Melody","Melodic minor","VI# note without close VII# note","within 2 notes",null,null,"1",null,null,null,{"$f":"VLOOKUP($A163, Stat!$A$1:$C$1000, 2,0)","v":65},{"$f":"VLOOKUP($A163, Stat!$A$1:$C$1000, 3,0)","v":2},null,null,null,null,null,null,null,0,-1,null,null,"There is no VII# note before or after VI# chord tone in close proximity"]
[200,"Melody","Melodic minor","bVII note","10 after VII#","8",null,"1",null,null,"VII after VII#",{"$f":"VLOOKUP($A164, Stat!$A$1:$C$1000, 2,0)","v":28},{"$f":"VLOOKUP($A164, Stat!$A$1:$C$1000, 3,0)","v":7},null,null,null,null,null,null,null,0,-1,null,null,null,"AA notes after VII# note"]
[201,"Melody","Melodic minor","VI# should be surrounded by ascending stepwise motion","/VI#","8",null,"1",null,null,"VI# not asc.",{"$f":"VLOOKUP($A165, Stat!$A$1:$C$1000, 2,0)","v":9},{"$f":"VLOOKUP($A165, Stat!$A$1:$C$1000, 3,0)","v":2},null,null,null,null,null,null,null,0,-1,2345,null,"Chord tone VI# is not surrounded by stepwise diatonic ascending movement"]
[202,"Melody","Melodic minor","VIIb should be surrounded by descending stepwise motion","/VIIb",8,null,"1",null,null,"VII not desc.",null,null,null,null,null,null,null,null,null,0,-1,2345,null,"Chord tone VII natural is not surrounded by stepwise diatonic descending movement"]
[203,"Melody","Melodic minor","bVII note near VI# note","immediate",8,null,"1",null,null,"bVII<->VI#",null,null,null,null,null,null,null,null,null,50,-1,null,null,null,"Prohibited even if one or both notes are non-chord tones"]
[204,"Melody","Uncompensated leap","Precompensated last 2 leaps","3rd","5",null,"1",null,null,null,{"$f":"VLOOKUP($A168, Stat!$A$1:$C$1000, 2,0)","v":78},{"$f":"VLOOKUP($A168, Stat!$A$1:$C$1000, 3,0)","v":0},null,null,null,null,null,null,null,0,-1,null,"E","Leap within last XX notes in cantus/counterpoint"]
[205,"Melody","Uncompensated leap","Precompensated last 2 leaps","4th","5",null,"1",null,null,null,{"$f":"VLOOKUP($A169, Stat!$A$1:$C$1000, 2,0)","v":4},{"$f":"VLOOKUP($A169, Stat!$A$1:$C$1000, 3,0)","v":0},null,null,null,null,null,null,null,0,-1,null,"E","Leap within last XX notes in cantus/counterpoint"]
[206,"Melody","Uncompensated leap","Precompensated last 2 leaps","5th","5",null,"1",null,null,null,{"$f":"VLOOKUP($A170, Stat!$A$1:$C$1000, 2,0)","v":2},{"$f":"VLOOKUP($A170, Stat!$A$1:$C$1000, 3,0)","v":0},null,null,null,null,null,null,null,0,-1,null,"E","Leap within last XX notes in cantus/counterpoint"]
[207,"Melody","Uncompensated leap","Precompensated last 2 leaps",">5th","5",null,"1",null,null,null,{"$f":"VLOOKUP($A171, Stat!$A$1:$C$1000, 2,0)","v":8},{"$f":"VLOOKUP($A171, Stat!$A$1:$C$1000, 3,0)","v":0},null,null,null,null,null,null,null,0,-1,null,"E","Leap within last XX notes in cantus/counterpoint"]
[208,"Harmony","Perfect consonance","Similar motion to 5th in outer voices","stepw. cadence","7","3",null,null,null,"!fn!",{"$f":"VLOOKUP($A172, Stat!$A$1:$C$1000, 2,0)","v":1},{"$f":"VLOOKUP($A172, Stat!$A$1:$C$1000, 3,0)","v":1},1,null,null,null,null,null,null,100,0,null,null,null,"Direct movement to 5th with stepwize motion in higher voice to last measure"]
[209,"Harmony","Perfect consonance","Similar motion to 8ve in outer voices","stepw. cadence","7","3",null,null,null,"!fn!",{"$f":"VLOOKUP($A173, Stat!$A$1:$C$1000, 2,0)","v":26},{"$f":"VLOOKUP($A173, Stat!$A$1:$C$1000, 3,0)","v":3},1,null,null,null,null,null,null,0,-1,null,null,null,"Direct movement to 8va with stepwize motion in higher voice to last measure"]
[210,"Harmony","Perfect consonance","Similar motion to 5th in outer voices","downbeat, not cadence","7","3",null,null,null,"!fn!",{"$f":"VLOOKUP($A174, Stat!$A$1:$C$1000, 2,0)","v":19},{"$f":"VLOOKUP($A174, Stat!$A$1:$C$1000, 3,0)","v":9},1,null,null,null,null,null,null,100,0,null,null,null,"Direct movement to 5th: not in cadence"]
[211,"Harmony","Perfect consonance","Similar motion to 8ve in outer voices","downbeat, not cadence","7","3",null,null,null,"!fn!",{"$f":"VLOOKUP($A175, Stat!$A$1:$C$1000, 2,0)","v":8},{"$f":"VLOOKUP($A175, Stat!$A$1:$C$1000, 3,0)","v":4},1,null,null,null,null,null,null,100,0,null,null,null,"Direct movement to 8ve: not in cadence"]
[212,"Harmony","Perfect consonance","Similar motion to 5th in outer voices","leap cadence","7","3",null,null,null,"!fn!",{"$f":"VLOOKUP($A176, Stat!$A$1:$C$1000, 2,0)","v":5},{"$f":"VLOOKUP($A176, Stat!$A$1:$C$1000, 3,0)","v":1},1,null,null,null,null,null,null,100,0,null,null,null,"Direct movement to 5th with leaping motion in higher voice to last measure"]
[213,"Harmony","Perfect consonance","Similar motion to 8ve in outer voices","leap cadence","7","3",null,null,null,"!fn!",{"$f":"VLOOKUP($A177, Stat!$A$1:$C$1000, 2,0)","v":23},{"$f":"VLOOKUP($A177, Stat!$A$1:$C$1000, 3,0)","v":8},1,null,null,null,null,null,null,50,0,null,null,null,"Direct movement to 8va with leaping motion in higher voice to last measure"]
[216,"Harmony","Suspension","Suspension resolution sounds simultaneously with suspension",":above sus",null,"1","1",null,null,null,{"$f":"VLOOKUP($A178, Stat!$A$1:$C$1000, 2,0)","v":1},{"$f":"VLOOKUP($A178, Stat!$A$1:$C$1000, 3,0)","v":1},1,null,null,null,null,null,null,100,-1,null,null,null,"Suspension resolution is above suspension"]
[217,"Harmony","Suspension","Suspension resolution sounds simultaneously with suspension",":below sus",null,"1","1",null,null,null,{"$f":"VLOOKUP($A179, Stat!$A$1:$C$1000, 2,0)","v":5},{"$f":"VLOOKUP($A179, Stat!$A$1:$C$1000, 3,0)","v":4},1,null,null,null,null,null,null,100,-1,null,null,null,"Suspension resolution is below suspension. Exception: starting from 5 voices, if there is a chord tone between suspension and suspension resolution, which sound simultaneously."]
[218,"Harmony","Suspension","Suspension resolution sounds simultaneously with suspension",":2nd",null,"1","1",null,null,null,{"$f":"VLOOKUP($A180, Stat!$A$1:$C$1000, 2,0)","v":1},{"$f":"VLOOKUP($A180, Stat!$A$1:$C$1000, 3,0)","v":1},1,null,null,null,null,null,null,100,-1,null,null,null,"2nd interval between suspension and suspension resolution. Does not include 9th interval and above"]
[219,"Harmony","Suspension","Wrong resolution of suspension",":up","12",null,"1",null,null,"Sus.",{"$f":"VLOOKUP($A181, Stat!$A$1:$C$1000, 2,0)","v":24},{"$f":"VLOOKUP($A181, Stat!$A$1:$C$1000, 3,0)","v":4},1,null,null,null,null,null,null,100,-1,null,null,null,"Suspension resolution up except for leading note (LT stepwize resolution up to tonic is allowed)"]
[220,"Harmony","Suspension","Wrong resolution of suspension",":unresolved","12",null,"1",null,null,"Sus.",{"$f":"VLOOKUP($A182, Stat!$A$1:$C$1000, 2,0)","v":6},{"$f":"VLOOKUP($A182, Stat!$A$1:$C$1000, 3,0)","v":2},1,null,null,null,null,null,null,100,-1]
[221,"Harmony","Suspension","Wrong resolution of suspension",":by leap","12",null,"1",null,null,"Sus.",{"$f":"VLOOKUP($A183, Stat!$A$1:$C$1000, 2,0)","v":16},{"$f":"VLOOKUP($A183, Stat!$A$1:$C$1000, 3,0)","v":7},1,null,null,null,null,null,null,100,-1,null,null,null,"Suspension resolution by leap"]
[222,"Harmony","Perfect consonance","Doubling of a tritone note","/doubling",null,null,"1",null,null,null,null,null,null,null,null,null,null,null,null,50,-1,null,null,null,"Doubling of one of tritone notes is prohibited if both tritone notes are chord tones and both exist in voices in current measure"]
[223,"Harmony","Dissonance","Misuse of a non-chord tone",":longer than previous chord tone",null,null,"1",null,null,null,{"$f":"VLOOKUP($A185, Stat!$A$1:$C$1000, 2,0)","v":14},{"$f":"VLOOKUP($A185, Stat!$A$1:$C$1000, 3,0)","v":7},1,null,null,null,null,null,null,50,-1,null,null,null,"Dissonance is longer than previous note"]
[226,"Rhythm","Rhythm","Wrong usage of eighth notes","1st beat",null,null,"1",null,null,null,{"$f":"VLOOKUP($A186, Stat!$A$1:$C$1000, 2,0)","v":12},{"$f":"VLOOKUP($A186, Stat!$A$1:$C$1000, 3,0)","v":7},1,null,null,null,null,null,null,50,-1,null,null,null,"1/8 note on beat 1"]
[227,"Rhythm","Rhythm","Wrong usage of eighth notes","2nd beat",null,null,"1",null,null,null,{"$f":"VLOOKUP($A187, Stat!$A$1:$C$1000, 2,0)","v":47},{"$f":"VLOOKUP($A187, Stat!$A$1:$C$1000, 3,0)","v":5},1,null,null,null,null,null,null,0,-1,null,null,null,"1/8 note on beat 2"]
[228,"Rhythm","Rhythm","Wrong usage of eighth notes","3rd beat",null,null,"1",null,null,null,{"$f":"VLOOKUP($A188, Stat!$A$1:$C$1000, 2,0)","v":25},{"$f":"VLOOKUP($A188, Stat!$A$1:$C$1000, 3,0)","v":8},1,null,null,null,null,null,null,50,-1,null,null,null,"1/8 note on beat 3"]
[229,"Rhythm","Rhythm","Wrong usage of eighth notes","4th beat",null,null,"1",null,null,null,{"$f":"VLOOKUP($A189, Stat!$A$1:$C$1000, 2,0)","v":57},{"$f":"VLOOKUP($A189, Stat!$A$1:$C$1000, 3,0)","v":9},1,null,null,null,null,null,null,0,-1,null,null,null,"1/8 note on beat 4"]
[230,"Rhythm","Rhythm","Beginning is non-standard","1/8 note",null,null,"1",null,null,null,{"$f":"VLOOKUP($A190, Stat!$A$1:$C$1000, 2,0)","v":19},{"$f":"VLOOKUP($A190, Stat!$A$1:$C$1000, 3,0)","v":3},1,null,null,null,null,null,null,50,-1,null,null,null,"1/8 note in the first measure"]
[231,"Rhythm","Rhythm","Wrong usage of eighth notes","isolated",null,null,"1",null,null,null,{"$f":"VLOOKUP($A191, Stat!$A$1:$C$1000, 2,0)","v":4},{"$f":"VLOOKUP($A191, Stat!$A$1:$C$1000, 3,0)","v":3},1,null,null,null,null,null,null,50,-1,null,null,null,"1/8 note without pairing 1/8"]
[232,"Rhythm","Rhythm","Wrong usage of eighth notes","1/8 syncope",null,null,"1",null,null,null,{"$f":"VLOOKUP($A192, Stat!$A$1:$C$1000, 2,0)","v":3},{"$f":"VLOOKUP($A192, Stat!$A$1:$C$1000, 3,0)","v":3},1,null,null,null,null,null,null,50,-1,null,null,null,"1/8 note slurred forward to next beat"]
[233,"Rhythm","Rhythm","Non-permitted rhythm","1/2. downbeat",null,null,"1",null,null,null,{"$f":"VLOOKUP($A193, Stat!$A$1:$C$1000, 2,0)","v":23},{"$f":"VLOOKUP($A193, Stat!$A$1:$C$1000, 3,0)","v":4},1,null,null,null,null,null,null,0,-1,null,null,null,"Dotted half note on downbeat"]
[234,"Rhythm","Rhythm","Non-permitted rhythm","1/2. upbeat","11",null,"1",null,null,"Rhythm",{"$f":"VLOOKUP($A194, Stat!$A$1:$C$1000, 2,0)","v":8},{"$f":"VLOOKUP($A194, Stat!$A$1:$C$1000, 3,0)","v":8},1,null,null,null,null,null,null,50,-1,null,null,null,"Dotted half note on upbeat"]
[235,"Rhythm","Rhythm","Non-permitted rhythm","1/4 syncope",null,null,"1",null,null,null,{"$f":"VLOOKUP($A195, Stat!$A$1:$C$1000, 2,0)","v":22},{"$f":"VLOOKUP($A195, Stat!$A$1:$C$1000, 3,0)","v":19},1,null,null,null,null,null,null,50,-1,null,null,null,"1/4 on beat 2 or 4 is slurred to next note"]
[236,"Rhythm","Rhythm","Non-permitted rhythm","rhythm stagnation",null,null,"1",null,null,null,{"$f":"VLOOKUP($A196, Stat!$A$1:$C$1000, 2,0)","v":38},{"$f":"VLOOKUP($A196, Stat!$A$1:$C$1000, 3,0)","v":12},1,null,null,null,null,null,null,50,-1,null,null,null,"Downbeat full measure note inside counterpoint - not first or last note"]
[239,"Rhythm","Rhythm","Anapaest","tie forward","11",null,"1",null,null,"Anapaest",{"$f":"VLOOKUP($A197, Stat!$A$1:$C$1000, 2,0)","v":71},{"$f":"VLOOKUP($A197, Stat!$A$1:$C$1000, 3,0)","v":18},1,null,null,null,null,null,null,0,-1,null,null,"1/2 after 1/4 or 1/8 in measure","1/2 is slurred forward when there is only one sp5 voice, before penultimate measure"]
[240,"Rhythm","Rhythm","Anapaest","inside","11",null,"1",null,null,"Anapaest",{"$f":"VLOOKUP($A198, Stat!$A$1:$C$1000, 2,0)","v":11},{"$f":"VLOOKUP($A198, Stat!$A$1:$C$1000, 3,0)","v":9},1,null,null,null,"239",null,null,50,-1,null,null,"1/2 after 1/4 or 1/8 in measure","Before penultimate measure"]
[244,"Rhythm","Rhythm","Wrong suspension rhythm","sus wrong length",null,null,"1",null,null,null,{"$f":"VLOOKUP($A199, Stat!$A$1:$C$1000, 2,0)","v":3},{"$f":"VLOOKUP($A199, Stat!$A$1:$C$1000, 3,0)","v":3},1,null,null,null,null,null,null,100,-1,null,null,"Suspension preparation and suspension"]
[245,"Rhythm","Rhythm","Too many notes in one measure","5 notes without sus.","11",null,"1",null,null,"!srn!",{"$f":"VLOOKUP($A200, Stat!$A$1:$C$1000, 2,0)","v":36},{"$f":"VLOOKUP($A200, Stat!$A$1:$C$1000, 3,0)","v":10},1,null,null,null,null,null,null,50,-1]
[246,"Rhythm","Rhythm","Too many notes in one measure",">5 notes","11",null,"1",null,null,"!srn!",{"$f":"VLOOKUP($A201, Stat!$A$1:$C$1000, 2,0)","v":13},{"$f":"VLOOKUP($A201, Stat!$A$1:$C$1000, 3,0)","v":2},1,null,null,null,"245,301",null,null,100,-1]
[247,"Rhythm","Rhythm","Same rhythm in adjacent measures","/same","12",null,"1",null,null,"Rhythm repeat",{"$f":"VLOOKUP($A202, Stat!$A$1:$C$1000, 2,0)","v":48},{"$f":"VLOOKUP($A202, Stat!$A$1:$C$1000, 3,0)","v":16},1,null,null,null,null,null,null,50,-1,null,null,null,"Rhythm repeats in neighboring measures, while there are no croches or less than 4 notes in measure"]
[248,"Harmony","Perfect consonance","Parallel 5ths: < measure apart","upbeat contrary","7","1",null,null,null,"!fn!",{"$f":"VLOOKUP($A203, Stat!$A$1:$C$1000, 2,0)","v":9},{"$f":"VLOOKUP($A203, Stat!$A$1:$C$1000, 3,0)","v":1},1,null,null,null,null,null,null,0,-1,null,">4","Two same non-close perfect consonances in neighboring measures less one measure length apart","Contrary movement between the two intervals, second interval is on upbeat, both notes of second interval do not start simultaneously"]
[249,"Harmony","Perfect consonance","Parallel 5ths: < measure apart","non-chord","7","1",null,null,null,"!fn!",{"$f":"VLOOKUP($A204, Stat!$A$1:$C$1000, 2,0)","v":72},{"$f":"VLOOKUP($A204, Stat!$A$1:$C$1000, 3,0)","v":9},1,null,null,null,null,null,null,0,-1,null,">4","Two same non-close perfect consonances in neighboring measures less one measure length apart","One of intervals is created by non-chord tone or chord tone in melodic position, second interval is on upbeat, both notes of second interval do not start simultaneously, species 3 or 5"]
[250,"Harmony","Perfect consonance","Parallel 5ths: < measure apart","upbeat","7","1",null,null,null,"!fn!",{"$f":"VLOOKUP($A205, Stat!$A$1:$C$1000, 2,0)","v":18},{"$f":"VLOOKUP($A205, Stat!$A$1:$C$1000, 3,0)","v":5},1,null,null,null,"249",null,null,0,-1,null,">4","Two same non-close perfect consonances in neighboring measures less one measure length apart","If other rules for second interval on upbeat did not apply"]
[255,"Rhythm","Rhythm","Wrong usage of eighth notes",">2 x 1/8",null,null,"1",null,null,null,{"$f":"VLOOKUP($A206, Stat!$A$1:$C$1000, 2,0)","v":19},{"$f":"VLOOKUP($A206, Stat!$A$1:$C$1000, 3,0)","v":6},1,null,null,null,null,null,null,50,-1,null,null,null,"More than two 1/8 notes in measure"]
[256,"Harmony","Nonchord tones","Cambiata","/any",null,null,"1",null,null,null,{"$f":"VLOOKUP($A207, Stat!$A$1:$C$1000, 2,0)","v":37},{"$f":"VLOOKUP($A207, Stat!$A$1:$C$1000, 3,0)","v":0},null,null,null,null,null,1,null,0,-1,null,null,null,"Prohibit this rule to prevent detection of any cambiata, thus processing as usual notes"]
[258,"Harmony","Nonchord tones","Double-neighbor tone","/any",null,null,"1",null,null,null,{"$f":"VLOOKUP($A208, Stat!$A$1:$C$1000, 2,0)","v":35},{"$f":"VLOOKUP($A208, Stat!$A$1:$C$1000, 3,0)","v":0},null,null,null,null,null,1,null,0,-1,null,null,null,"Prohibit this rule to prevent detection of any double-neighbour tone"]
[267,"Rhythm","Rhythm","The length of last note is not full measure","/not full measure",null,null,"1",null,null,null,{"$f":"VLOOKUP($A209, Stat!$A$1:$C$1000, 2,0)","v":54},{"$f":"VLOOKUP($A209, Stat!$A$1:$C$1000, 3,0)","v":21},1,null,null,1,null,null,null,50,-1]
[274,"Rhythm","Rhythm","Wrong suspension rhythm","prep wrong length",null,null,"1",null,null,null,{"$f":"VLOOKUP($A210, Stat!$A$1:$C$1000, 2,0)","v":5},{"$f":"VLOOKUP($A210, Stat!$A$1:$C$1000, 3,0)","v":5},1,null,null,null,null,null,null,100,-1,null,null,"Suspension preparation and suspension","Suspension preparation is too short for this time signature"]
[275,"Harmony","Perfect consonance","Unison",":follows m2",8,1,"1",null,null,"m2 - unis.",{"$f":"VLOOKUP($A211, Stat!$A$1:$C$1000, 2,0)","v":10},{"$f":"VLOOKUP($A211, Stat!$A$1:$C$1000, 3,0)","v":2},1,null,null,null,null,null,null,50,-1,null,null,null,"Oblique motion from minor 2nd to unison"]
[276,"Harmony","Dissonance","Similar motion to dissonance between outer voices","M7",7,3,null,null,null,"!fn!",{"$f":"VLOOKUP($A212, Stat!$A$1:$C$1000, 2,0)","v":6},{"$f":"VLOOKUP($A212, Stat!$A$1:$C$1000, 3,0)","v":3},1,null,null,null,null,null,null,50,0,null,null,null,"Major 7th"]
[277,"Harmony","Perfect consonance","Unison",":follows M2",8,1,"1",null,null,"M2 - unis.",{"$f":"VLOOKUP($A213, Stat!$A$1:$C$1000, 2,0)","v":1},{"$f":"VLOOKUP($A213, Stat!$A$1:$C$1000, 3,0)","v":1},1,null,null,null,null,null,null,0,-1,null,null,null,"Oblique motion from major 2nd to unison"]
[282,"Harmony","Nonchord tones","Passing dissonance on first beat","/any",null,null,"1",null,null,null,{"$f":"VLOOKUP($A214, Stat!$A$1:$C$1000, 2,0)","v":50},{"$f":"VLOOKUP($A214, Stat!$A$1:$C$1000, 3,0)","v":1},null,null,null,null,null,1,null,50,-1,null,null,"In upper voice only","Set this rule to red to prevent PDD detection. Set to yellow to detect PDD only if there is no other way to explain harmony."]
[286,"Harmony","Suspension","Wrong resolution of suspension",":wrong beat",12,null,"1",null,null,"Sus.",{"$f":"VLOOKUP($A215, Stat!$A$1:$C$1000, 2,0)","v":7},{"$f":"VLOOKUP($A215, Stat!$A$1:$C$1000, 3,0)","v":7},1,null,null,null,null,null,null,50,-1,null,null,null,"Suspension is not resolved on allowed beat"]
[287,"Harmony","Nonchord tones","Anticipation","/any",null,null,"1",null,null,null,{"$f":"VLOOKUP($A216, Stat!$A$1:$C$1000, 2,0)","v":52},{"$f":"VLOOKUP($A216, Stat!$A$1:$C$1000, 3,0)","v":14},null,null,null,null,null,null,null,50,-1,null,"<3",null,"Prohibit this rule to prevent detection of any anticipation. By default allows stepwize anticipation in cadence with next note longer and previous note longer or equal"]
[291,"Harmony","Suspension","Wrong resolution of suspension","short",12,null,"1",null,null,"Sus.",{"$f":"VLOOKUP($A217, Stat!$A$1:$C$1000, 2,0)","v":2},{"$f":"VLOOKUP($A217, Stat!$A$1:$C$1000, 3,0)","v":1},1,null,null,null,null,null,null,50,-1,null,null,null,"If resolution note is shorter than 1/4"]
[292,"Harmony","Suspension","Suspension resolution ornament","chatty",12,null,"1",null,null,"Sus.",{"$f":"VLOOKUP($A218, Stat!$A$1:$C$1000, 2,0)","v":1},{"$f":"VLOOKUP($A218, Stat!$A$1:$C$1000, 3,0)","v":1},1,null,null,null,null,null,null,50,-1,null,null,null,"There are more than 2 notes in resolution ornament between suspension and resolution"]
[295,"Harmony","Suspension","Suspension resolution ornament","leap from sus",12,null,"1",null,null,"Sus.",{"$f":"VLOOKUP($A219, Stat!$A$1:$C$1000, 2,0)","v":0},{"$f":"VLOOKUP($A219, Stat!$A$1:$C$1000, 3,0)","v":0},1,null,null,null,null,null,null,50,-1,null,null,null,"Leap from suspension to resolution ornament is longer than 8ve"]
[296,"Harmony","Suspension","Suspension resolution ornament","leap to resolution",12,null,"1",null,null,"Sus.",{"$f":"VLOOKUP($A220, Stat!$A$1:$C$1000, 2,0)","v":0},{"$f":"VLOOKUP($A220, Stat!$A$1:$C$1000, 3,0)","v":0},1,null,null,null,null,null,null,50,-1,null,null,null,"Leap from resolution ornament to resolution is longer than 8va"]
[301,"Rhythm","Rhythm","Too many notes in one measure","5 notes after sus.",null,null,"1",null,null,null,{"$f":"VLOOKUP($A221, Stat!$A$1:$C$1000, 2,0)","v":22},{"$f":"VLOOKUP($A221, Stat!$A$1:$C$1000, 3,0)","v":3},1,null,null,null,null,null,null,0,-1,null,null,null,"5 notes in measure only allowed if first note is a suspension from previous measure"]
[302,"Melody","Stepwise motion","Abuse of stepwise motion",">14 in any direction",10,null,"1",null,null,"Abuse of stepwise motion",{"$f":"VLOOKUP($A222, Stat!$A$1:$C$1000, 2,0)","v":15},{"$f":"VLOOKUP($A222, Stat!$A$1:$C$1000, 3,0)","v":0},null,null,null,null,null,null,null,0,1,35,"E",null,"Stepwise motion more than AA notes in any direction"]
[303,"Melody","Stepwise motion","Abuse of unidirectional stepwise motion",">7 in one direction",10,null,"1",null,null,"Abuse of stepwise motion",{"$f":"VLOOKUP($A223, Stat!$A$1:$C$1000, 2,0)","v":6},{"$f":"VLOOKUP($A223, Stat!$A$1:$C$1000, 3,0)","v":0},null,null,null,null,null,null,null,50,0,35,"E",null,"Stepwise motion more than AA notes in one direction"]
[305,"Melody","Melodic repeats","Melodic climax is repeated","in lower part",null,null,"1",null,null,null,{"$f":"VLOOKUP($A224, Stat!$A$1:$C$1000, 2,0)","v":47},{"$f":"VLOOKUP($A224, Stat!$A$1:$C$1000, 3,0)","v":13},1,null,null,null,null,null,null,0,1,null,"E",null,"Multiple culminations in lower voice"]
[308,"Harmony","Harmony","Modulating progression","IV-VII (m)",1,null,"1",null,null,null,{"$f":"VLOOKUP($A225, Stat!$A$1:$C$1000, 2,0)","v":2},{"$f":"VLOOKUP($A225, Stat!$A$1:$C$1000, 3,0)","v":1},1,null,null,null,null,null,null,50,-1,null,null,null,"Prohibit VII (GBD) in root position after IV (DF#A) in root position in minor, because it is modulating"]
[309,"Harmony","Harmony","Modulating progression","VII-III (m)",1,null,"1",null,null,null,{"$f":"VLOOKUP($A226, Stat!$A$1:$C$1000, 2,0)","v":2},{"$f":"VLOOKUP($A226, Stat!$A$1:$C$1000, 3,0)","v":1},1,null,null,null,null,null,null,50,-1,null,null,null,"Prohibit III (CEG) in root position after VII (GBD) in root position in minor because it is modulating"]
[310,"Harmony","Harmony","Too many tonic chords",">2 within 9 mea.",1,null,"1",null,null,null,{"$f":"VLOOKUP($A227, Stat!$A$1:$C$1000, 2,0)","v":3},{"$f":"VLOOKUP($A227, Stat!$A$1:$C$1000, 3,0)","v":0},null,1,null,null,null,null,null,0,-1,null,null,null,"More than AA tonic chords within BB consecutive harmonies (except first and last tonic). At border without tonic - one more tonic is allowed. Inversion decreases 50%"]
[311,"Melody","Melodic repeats","Repetition - 3 notes are repeated 2 times","adjacent",3,null,"1",null,null,null,null,null,null,null,null,null,null,null,null,0,1,null,"E","Repeat with the same rhythm (last note length is ignored)"]
[312,"Melody","Melodic repeats","Repetition - 4 notes are repeated 2 times","adjacent",3,null,"1",null,null,null,null,null,null,null,null,null,null,null,null,0,1,null,"E","Repeat with the same rhythm (last note length is ignored)"]
[313,"Melody","Melodic repeats","Repetition - 3 notes are repeated 3 times","adjacent",3,null,"1",null,null,null,null,null,null,null,null,null,311.40499999999997,null,null,50,0,null,"E","Repeat with the same rhythm (last note length is ignored)"]
[314,"Melody","Melodic repeats","Repetition - 4 notes are repeated 3 times","adjacent",3,null,"1",null,null,null,null,null,null,null,null,null,312.40600000000001,null,null,50,0,null,"E","Repeat with the same rhythm (last note length is ignored)"]
[316,"Harmony","Perfect consonance","Parallel 5ths: < measure apart","downbeat",7,1,null,null,null,"!fn!",{"$f":"VLOOKUP($A232, Stat!$A$1:$C$1000, 2,0)","v":19},{"$f":"VLOOKUP($A232, Stat!$A$1:$C$1000, 3,0)","v":5},1,null,null,null,null,null,null,100,-1,null,">4","Two same non-close perfect consonances in neighboring measures less one measure length apart","Second interval is on downbeat"]
[321,"Harmony","Harmony","Repeated harmony",":three times",9,null,"1",null,null,"!rn!",{"$f":"VLOOKUP($A233, Stat!$A$1:$C$1000, 2,0)","v":7},{"$f":"VLOOKUP($A233, Stat!$A$1:$C$1000, 3,0)","v":1},1,null,null,null,null,null,null,50,-1,null,null,"Harmonic stagnation","Same chord is used 3 times consecutively"]
[324,"Harmony","Perfect consonance","Doubling of leading-tone","/LT doubling",2,null,"1",null,null,null,{"$f":"VLOOKUP($A234, Stat!$A$1:$C$1000, 2,0)","v":23},{"$f":"VLOOKUP($A234, Stat!$A$1:$C$1000, 3,0)","v":9},1,null,null,null,null,null,null,0,-1,null,">4N",null,"Leading tone harmonic octave for leaping notes and downbeat"]
[325,"Harmony","Perfect consonance","Culmination on 5th: long downbeat","/culmination",2,1,"1",null,null,null,{"$f":"VLOOKUP($A235, Stat!$A$1:$C$1000, 2,0)","v":0},{"$f":"VLOOKUP($A235, Stat!$A$1:$C$1000, 3,0)","v":0},1,null,null,null,null,null,null,0,-1,null,null,"Local culmination in upper voice within 4 measures in sp5. Sounds empty except last measure","Downbeat 5th 1/2 or longer"]
[326,"Harmony","Perfect consonance","Culmination on 8ve / unison: long downbeat","/culmination",2,1,"1",null,null,null,{"$f":"VLOOKUP($A236, Stat!$A$1:$C$1000, 2,0)","v":3},{"$f":"VLOOKUP($A236, Stat!$A$1:$C$1000, 3,0)","v":0},1,null,null,null,null,null,null,0,-1,null,null,"Local culmination in upper voice within 4 measures in sp5. Sounds empty except last measure","Downbeat octave 1/2 or longer"]
[331,"Harmony","Dissonance","Harmonic tritone",":with lowest voice",null,null,"1",null,null,null,{"$f":"VLOOKUP($A237, Stat!$A$1:$C$1000, 2,0)","v":0},{"$f":"VLOOKUP($A237, Stat!$A$1:$C$1000, 3,0)","v":0},1,null,null,null,null,null,null,50,-1,null,null,null,"Tritone is prohibited between two chord tones with bass in major and melodic minor."]
[335,"Harmony","Border","Penultimate chord",":no V or VII chord",1,null,"1",null,null,null,{"$f":"VLOOKUP($A238, Stat!$A$1:$C$1000, 2,0)","v":146},{"$f":"VLOOKUP($A238, Stat!$A$1:$C$1000, 3,0)","v":1},null,null,null,null,null,null,null,50,-1,null,null,null,"Penultimate harmony is not V or VII"]
[341,"Rhythm","Rhythm","Need more suspensions","each 3 meas.",null,null,"1",null,null,null,{"$f":"VLOOKUP($A239, Stat!$A$1:$C$1000, 2,0)","v":43},{"$f":"VLOOKUP($A239, Stat!$A$1:$C$1000, 3,0)","v":0},null,1,null,null,null,1,null,0,-1,null,null,null,"At least one suspension is needed each AA measures {sp5}"]
[342,"Melody","Tritone","Audible tritone: accented",":resolved","13",null,"1",null,null,null,{"$f":"VLOOKUP($A240, Stat!$A$1:$C$1000, 2,0)","v":0},{"$f":"VLOOKUP($A240, Stat!$A$1:$C$1000, 3,0)","v":0},null,null,null,null,null,null,null,0,-1,2345,null,"Tritone within measure with intermediate notes, last note is long or repeated"]
[343,"Melody","Tritone","Audible tritone: accented",":unresolved","13",null,"1",null,null,null,{"$f":"VLOOKUP($A241, Stat!$A$1:$C$1000, 2,0)","v":7},{"$f":"VLOOKUP($A241, Stat!$A$1:$C$1000, 3,0)","v":2},1,null,null,null,342,null,null,50,-1,2345,null,"Tritone within measure with intermediate notes, last note is long or repeated"]
[344,"Melody","Melodic repeats","Notes stagnation","5 notes <3 pitches",9,null,"1",null,null,"Stagnation",{"$f":"VLOOKUP($A242, Stat!$A$1:$C$1000, 2,0)","v":17},{"$f":"VLOOKUP($A242, Stat!$A$1:$C$1000, 3,0)","v":0},null,null,null,null,null,null,null,0,-1,null,"E",null,"AA consecutive notes use less than BB pitches"]
[345,"Melody","Melodic repeats","Notes stagnation","7 notes <4 pitches",9,null,"1",null,null,"Stagnation",{"$f":"VLOOKUP($A243, Stat!$A$1:$C$1000, 2,0)","v":27},{"$f":"VLOOKUP($A243, Stat!$A$1:$C$1000, 3,0)","v":0},null,null,null,null,null,null,null,0,-1,null,"E",null,"AA consecutive notes use less than BB pitches"]
[346,"Melody","Melodic repeats","Notes stagnation","17 notes <6 pitches",9,null,"1",null,null,"Stagnation",{"$f":"VLOOKUP($A244, Stat!$A$1:$C$1000, 2,0)","v":3},{"$f":"VLOOKUP($A244, Stat!$A$1:$C$1000, 3,0)","v":0},null,null,null,null,null,null,null,0,-1,null,"E",null,"AA consecutive notes use less than BB pitches"]
[348,"Melody","Melodic repeats","Octave leap to the leading tone","/LT 8ve leap",5,null,"1",null,null,null,{"$f":"VLOOKUP($A245, Stat!$A$1:$C$1000, 2,0)","v":2},{"$f":"VLOOKUP($A245, Stat!$A$1:$C$1000, 3,0)","v":2},1,null,null,null,null,null,null,50,-1,null,null,null,"Octave leap between leading tones"]
[349,"Melody","Melodic minor","bVII note near VI# note","4 notes before",8,null,"1",null,null,"VII near VI#",{"$f":"VLOOKUP($A246, Stat!$A$1:$C$1000, 2,0)","v":52},{"$f":"VLOOKUP($A246, Stat!$A$1:$C$1000, 3,0)","v":1},null,null,null,null,null,null,null,0,-1,null,null,null,"AA notes before VI#"]
[350,"Melody","Melodic minor","bVII note near VI# note","4 notes after",8,null,"1",null,null,"VII near VI#",{"$f":"VLOOKUP($A247, Stat!$A$1:$C$1000, 2,0)","v":43},{"$f":"VLOOKUP($A247, Stat!$A$1:$C$1000, 3,0)","v":0},null,null,null,null,null,null,null,0,-1,null,null,null,"AA notes after VI#"]
[360,"Melody","Tritone","Tritone: adjacent accented",":resolved","13",null,"1",null,null,null,{"$f":"VLOOKUP($A248, Stat!$A$1:$C$1000, 2,0)","v":1},{"$f":"VLOOKUP($A248, Stat!$A$1:$C$1000, 3,0)","v":0},1,null,null,null,368,null,null,50,-1,2345,null,"Melodic adjacent tritone, last note is long or repeated"]
[361,"Melody","Tritone","Tritone: adjacent accented",":unresolved","13",null,"1",null,null,null,{"$f":"VLOOKUP($A249, Stat!$A$1:$C$1000, 2,0)","v":8},{"$f":"VLOOKUP($A249, Stat!$A$1:$C$1000, 3,0)","v":3},1,null,null,null,"360,368,369",null,null,100,-1,2345,null,"Melodic adjacent tritone, last note is long or repeated"]
[365,"Melody","Tritone","Tritone: adjacent framed",":resolved","13",null,"1",null,null,null,{"$f":"VLOOKUP($A250, Stat!$A$1:$C$1000, 2,0)","v":18},{"$f":"VLOOKUP($A250, Stat!$A$1:$C$1000, 3,0)","v":4},null,null,null,null,null,null,null,50,-1,2345,null,"Melodic adjacent tritone, framed by two melody direction changes"]
[366,"Melody","Tritone","Tritone: adjacent framed",":unresolved","13",null,"1",null,null,null,{"$f":"VLOOKUP($A251, Stat!$A$1:$C$1000, 2,0)","v":20},{"$f":"VLOOKUP($A251, Stat!$A$1:$C$1000, 3,0)","v":5},null,null,null,null,365,null,null,100,-1,2345,null,"Melodic adjacent tritone, framed by two melody direction changes"]
[368,"Melody","Tritone","Tritone: adjacent",":resolved","13",null,"1",null,null,null,{"$f":"VLOOKUP($A252, Stat!$A$1:$C$1000, 2,0)","v":3},{"$f":"VLOOKUP($A252, Stat!$A$1:$C$1000, 3,0)","v":1},null,null,null,null,null,null,null,50,-1,2345,null,"Melodic adjacent tritone, not accented or framed"]
[369,"Melody","Tritone","Tritone: adjacent",":unresolved","13",null,"1",null,null,null,{"$f":"VLOOKUP($A253, Stat!$A$1:$C$1000, 2,0)","v":6},{"$f":"VLOOKUP($A253, Stat!$A$1:$C$1000, 3,0)","v":2},null,null,null,null,368,null,null,100,-1,2345,null,"Melodic adjacent tritone, not accented or framed"]
[371,"Melody","Tritone","Audible tritone: framed",":resolved","13",null,"1",null,null,null,{"$f":"VLOOKUP($A254, Stat!$A$1:$C$1000, 2,0)","v":19},{"$f":"VLOOKUP($A254, Stat!$A$1:$C$1000, 3,0)","v":2},null,null,null,null,null,null,null,0,-1,10,null,"Melodic tritone with one intermediate note, framed by two melody direction changes or leaps"]
[372,"Melody","Tritone","Audible tritone: framed",":unresolved","13",null,"1",null,null,null,{"$f":"VLOOKUP($A255, Stat!$A$1:$C$1000, 2,0)","v":38},{"$f":"VLOOKUP($A255, Stat!$A$1:$C$1000, 3,0)","v":2},null,null,null,null,371,null,null,50,-1,10,null,"Melodic tritone with one intermediate note, framed by two melody direction changes or leaps"]
[375,"Harmony","Harmony","Augmented chord","DTIII",1,null,"1",null,null,null,{"$f":"VLOOKUP($A256, Stat!$A$1:$C$1000, 2,0)","v":11},{"$f":"VLOOKUP($A256, Stat!$A$1:$C$1000, 3,0)","v":0},1,null,null,null,null,null,null,50,-1]
[376,"Harmony","Perfect consonance","Parallel 5ths: < measure apart","last contrary",7,1,null,null,null,"!fn!",{"$f":"VLOOKUP($A257, Stat!$A$1:$C$1000, 2,0)","v":0},{"$f":"VLOOKUP($A257, Stat!$A$1:$C$1000, 3,0)","v":0},1,null,null,null,null,null,null,0,-1,null,">4","Two same non-close perfect consonances in neighboring measures less one measure length apart","Contrary movement to last interval in counterpoint"]
[377,"Harmony","Melodic minor","False chromatic relation: in outer voices","VI<->VI#",1,null,null,null,null,null,{"$f":"VLOOKUP($A258, Stat!$A$1:$C$1000, 2,0)","v":6},{"$f":"VLOOKUP($A258, Stat!$A$1:$C$1000, 3,0)","v":1},null,null,null,null,null,null,null,100,-1,null,null,"These two notes are harmonic tones in neighboring harmonies, but are in different voices"]
[378,"Harmony","Melodic minor","False chromatic relation: in outer voices","VII<->VII#",null,null,null,null,null,null,{"$f":"VLOOKUP($A259, Stat!$A$1:$C$1000, 2,0)","v":7},{"$f":"VLOOKUP($A259, Stat!$A$1:$C$1000, 3,0)","v":0},1,null,null,null,null,null,null,100,-1,null,null,"These two notes are harmonic tones in neighboring harmonies, but are in different voices"]
[379,"Harmony","Dissonance","Unresolved harmonic tritone","/unresolved",12,null,"2",null,null,"Tri.",{"$f":"VLOOKUP($A260, Stat!$A$1:$C$1000, 2,0)","v":21},{"$f":"VLOOKUP($A260, Stat!$A$1:$C$1000, 3,0)","v":4},null,null,null,null,null,null,null,50,-1]
[383,"Harmony","Harmony","Six-four chord",":audible",1,null,"1",null,null,null,{"$f":"VLOOKUP($A261, Stat!$A$1:$C$1000, 2,0)","v":20},{"$f":"VLOOKUP($A261, Stat!$A$1:$C$1000, 3,0)","v":0},1,null,null,null,null,null,null,50,-1,null,null,null,"6/4 chord with non-repeating 5th on beat 2 or 4"]
[385,"Harmony","Perfect consonance","Parallel 5ths: < measure apart","sus harm",7,1,null,null,null,"!fn!",{"$f":"VLOOKUP($A262, Stat!$A$1:$C$1000, 2,0)","v":22},{"$f":"VLOOKUP($A262, Stat!$A$1:$C$1000, 3,0)","v":2},1,null,null,null,null,null,null,50,-1,null,">4","Two same non-close perfect consonances in neighboring measures less one measure length apart","Second interval is formed by harmonic suspension on downbeat"]
[386,"Melody","Compensated leap","Uncompensated leap: compensation deviation to 2nd",">5th long",5,null,"1",null,null,null,{"$f":"VLOOKUP($A263, Stat!$A$1:$C$1000, 2,0)","v":0},{"$f":"VLOOKUP($A263, Stat!$A$1:$C$1000, 3,0)","v":0},null,null,null,null,null,null,null,100,0,null,"E","Compensation can be deviated one 2nd interval above last leap note","Deviation longer than 1/4 note"]
[387,"Harmony","Suspension","Wrong usage of sus. in 2nd sp.","I -> LT penultimate measure",null,null,"1",null,null,null,{"$f":"VLOOKUP($A264, Stat!$A$1:$C$1000, 2,0)","v":8},{"$f":"VLOOKUP($A264, Stat!$A$1:$C$1000, 3,0)","v":0},1,null,null,null,null,null,null,0,-1,null,null,null,"Suspension of LT by I note in penultimate measure in sp2"]
[388,"Harmony","Suspension","Wrong usage of sus. in 2nd sp.","not I -> LT penultimate measure",null,null,"1",null,null,null,{"$f":"VLOOKUP($A265, Stat!$A$1:$C$1000, 2,0)","v":14},{"$f":"VLOOKUP($A265, Stat!$A$1:$C$1000, 3,0)","v":4},null,null,null,null,null,null,null,50,-1,null,null,null,"Other suspension than LT by I note in penultimate measure in sp2"]
[391,"Melody","Change of melodic direction around leap","No change of direction before and after the leap: 1skip + >1skip","3rd","5",null,"1",null,null,null,{"$f":"VLOOKUP($A266, Stat!$A$1:$C$1000, 2,0)","v":15},{"$f":"VLOOKUP($A266, Stat!$A$1:$C$1000, 3,0)","v":0},null,null,null,null,"59,63,414,506",null,null,0,-1,null,"E","There is one note going in the same direction before leap and more than one note going in the same direction after leap"]
[392,"Melody","Change of melodic direction around leap","No change of direction before and after the leap: 1skip + >1skip","4th","5",null,"1",null,null,null,{"$f":"VLOOKUP($A267, Stat!$A$1:$C$1000, 2,0)","v":1},{"$f":"VLOOKUP($A267, Stat!$A$1:$C$1000, 3,0)","v":0},null,null,null,null,"60,64,415,507",null,null,0,-1,null,"E","There is one note going in the same direction before leap and more than one note going in the same direction after leap"]
[393,"Melody","Change of melodic direction around leap","No change of direction before and after the leap: 1skip + >1skip","5th","5",null,"1",null,null,null,{"$f":"VLOOKUP($A268, Stat!$A$1:$C$1000, 2,0)","v":5},{"$f":"VLOOKUP($A268, Stat!$A$1:$C$1000, 3,0)","v":1},null,null,null,null,"61,65,416,508",null,null,50,0,null,"E","There is one note going in the same direction before leap and more than one note going in the same direction after leap"]
[394,"Melody","Change of melodic direction around leap","No change of direction before and after the leap: 1skip + >1skip",">5th","5",null,"1",null,null,null,{"$f":"VLOOKUP($A269, Stat!$A$1:$C$1000, 2,0)","v":1},{"$f":"VLOOKUP($A269, Stat!$A$1:$C$1000, 3,0)","v":0},null,null,null,null,"62,66,417,509",null,null,100,0,null,"E","There is one note going in the same direction before leap and more than one note going in the same direction after leap"]
[398,"Melody","Change of melodic direction around leap","No change of direction before and after the leap: >1skip + >1skip","3rd","5",null,"1",null,null,null,{"$f":"VLOOKUP($A270, Stat!$A$1:$C$1000, 2,0)","v":6},{"$f":"VLOOKUP($A270, Stat!$A$1:$C$1000, 3,0)","v":0},null,null,null,null,"132,148",null,null,0,-1,null,"E","There is more than one note going in the same direction before leap and more than one note going in the same direction after leap"]
[399,"Melody","Change of melodic direction around leap","No change of direction before and after the leap: >1skip + >1skip","4th","5",null,"1",null,null,null,{"$f":"VLOOKUP($A271, Stat!$A$1:$C$1000, 2,0)","v":1},{"$f":"VLOOKUP($A271, Stat!$A$1:$C$1000, 3,0)","v":1},null,null,null,null,"133,149",null,null,0,-1,null,"E","There is more than one note going in the same direction before leap and more than one note going in the same direction after leap"]
[400,"Melody","Change of melodic direction around leap","No change of direction before and after the leap: >1skip + >1skip","5th","5",null,"1",null,null,null,{"$f":"VLOOKUP($A272, Stat!$A$1:$C$1000, 2,0)","v":3},{"$f":"VLOOKUP($A272, Stat!$A$1:$C$1000, 3,0)","v":3},null,null,null,null,"134,150",null,null,100,0,null,"E","There is more than one note going in the same direction before leap and more than one note going in the same direction after leap"]
[401,"Melody","Change of melodic direction around leap","No change of direction before and after the leap: >1skip + >1skip",">5th","5",null,"1",null,null,null,{"$f":"VLOOKUP($A273, Stat!$A$1:$C$1000, 2,0)","v":1},{"$f":"VLOOKUP($A273, Stat!$A$1:$C$1000, 3,0)","v":1},null,null,null,null,"135,151",null,null,100,0,null,"E","There is more than one note going in the same direction before leap and more than one note going in the same direction after leap"]
[402,"Melody","Melodic repeats","Repetition - 2 notes are repeated: immediate","uniform",3,null,"1",null,null,null,{"$f":"VLOOKUP($A274, Stat!$A$1:$C$1000, 2,0)","v":97},{"$f":"VLOOKUP($A274, Stat!$A$1:$C$1000, 3,0)","v":41},1,null,null,null,null,null,null,0,1,5,"E","Two adjacent notes are immediately repeated","Length of first three notes is the same"]
[403,"Melody","Melodic repeats","Repetition - 2 notes are repeated: immediate","same rhythm",3,null,"1",null,null,null,{"$f":"VLOOKUP($A275, Stat!$A$1:$C$1000, 2,0)","v":12},{"$f":"VLOOKUP($A275, Stat!$A$1:$C$1000, 3,0)","v":4},1,null,null,null,null,null,null,0,1,5,"E","Two adjacent notes are immediately repeated","Length of first and third notes is the same"]
[404,"Melody","Melodic repeats","Repetition - 2 notes are repeated: immediate","any rhythm",3,null,"1",null,null,null,{"$f":"VLOOKUP($A276, Stat!$A$1:$C$1000, 2,0)","v":35},{"$f":"VLOOKUP($A276, Stat!$A$1:$C$1000, 3,0)","v":12},1,null,null,null,null,null,null,0,1,5,"E","Two adjacent notes are immediately repeated"]
[405,"Melody","Melodic repeats","Repetition - 3 notes are repeated 2 times","symmetric",3,null,"1",null,null,null,null,null,null,null,null,null,null,null,null,0,1,null,"E","Repeat with the same rhythm (last note length is ignored)","Non-adjacent repeat in sp2-5"]
[406,"Melody","Melodic repeats","Repetition - 4 notes are repeated 2 times","symmetric",3,null,"1",null,null,null,null,null,null,null,null,null,null,null,null,0,1,null,"E","Repeat with the same rhythm (last note length is ignored)","Non-adjacent repeat in sp2-5"]
[407,"Melody","Melodic repeats","Repetition - 3 notes are repeated 3 times","symmetric",3,null,"1",null,null,null,null,null,null,null,null,null,311.40499999999997,null,null,50,0,null,"E","Repeat with the same rhythm (last note length is ignored)","Non-adjacent repeat in sp2-5"]
[408,"Melody","Melodic repeats","Repetition - 4 notes are repeated 3 times","symmetric",3,null,"1",null,null,null,null,null,null,null,null,null,312.40600000000001,null,null,50,0,null,"E","Repeat with the same rhythm (last note length is ignored)","Non-adjacent repeat in sp2-5"]
[411,"Melody","Melodic repeats","Repetition - 2 notes are repeated: immediate IM","uniform",3,null,"1",null,null,null,{"$f":"VLOOKUP($A281, Stat!$A$1:$C$1000, 2,0)","v":7},{"$f":"VLOOKUP($A281, Stat!$A$1:$C$1000, 3,0)","v":4},1,null,null,null,null,null,null,50,0,5,"E","Two adjacent notes are immediately repeated inside one measure","Length of first three notes is the same"]
[412,"Melody","Melodic repeats","Repetition - 2 notes are repeated: immediate IM","same rhythm",3,null,"1",null,null,null,{"$f":"VLOOKUP($A282, Stat!$A$1:$C$1000, 2,0)","v":0},{"$f":"VLOOKUP($A282, Stat!$A$1:$C$1000, 3,0)","v":0},1,null,null,null,null,null,null,50,0,5,"E","Two adjacent notes are immediately repeated inside one measure","Length of first and third notes is the same"]
[413,"Melody","Melodic repeats","Repetition - 2 notes are repeated: immediate IM","any rhythm",3,null,"1",null,null,null,{"$f":"VLOOKUP($A283, Stat!$A$1:$C$1000, 2,0)","v":2},{"$f":"VLOOKUP($A283, Stat!$A$1:$C$1000, 3,0)","v":1},1,null,999,null,null,null,null,0,1,5,"E","Two adjacent notes are immediately repeated inside one measure"]
[414,"Melody","Change of melodic direction around leap","No change of direction before and after the leap: neigh + neigh","3rd",5,null,"1",null,null,null,{"$f":"VLOOKUP($A284, Stat!$A$1:$C$1000, 2,0)","v":72},{"$f":"VLOOKUP($A284, Stat!$A$1:$C$1000, 3,0)","v":5},null,null,null,null,506,null,null,0,-1,35,"E","Before and after leap there is neighbor tone, then ending leap note repeats and then there is movement inside leap."]
[415,"Melody","Change of melodic direction around leap","No change of direction before and after the leap: neigh + neigh","4th",5,null,"1",null,null,null,{"$f":"VLOOKUP($A285, Stat!$A$1:$C$1000, 2,0)","v":35},{"$f":"VLOOKUP($A285, Stat!$A$1:$C$1000, 3,0)","v":0},null,null,null,null,507,null,null,0,-1,35,"E","Before and after leap there is neighbor tone, then ending leap note repeats and then there is movement inside leap."]
[416,"Melody","Change of melodic direction around leap","No change of direction before and after the leap: neigh + neigh","5th",5,null,"1",null,null,null,{"$f":"VLOOKUP($A286, Stat!$A$1:$C$1000, 2,0)","v":23},{"$f":"VLOOKUP($A286, Stat!$A$1:$C$1000, 3,0)","v":0},null,null,null,null,508,null,null,0,-1,35,"E","Before and after leap there is neighbor tone, then ending leap note repeats and then there is movement inside leap."]
[417,"Melody","Change of melodic direction around leap","No change of direction before and after the leap: neigh + neigh",">5th",5,null,"1",null,null,null,{"$f":"VLOOKUP($A287, Stat!$A$1:$C$1000, 2,0)","v":11},{"$f":"VLOOKUP($A287, Stat!$A$1:$C$1000, 3,0)","v":4},null,null,null,null,509,null,null,0,-1,35,"E","Before and after leap there is neighbor tone, then ending leap note repeats and then there is movement inside leap."]
[418,"Harmony","Harmony","Repeated harmony","in changed inversion",1,null,"1",null,null,null,{"$f":"VLOOKUP($A288, Stat!$A$1:$C$1000, 2,0)","v":130},{"$f":"VLOOKUP($A288, Stat!$A$1:$C$1000, 3,0)","v":3},null,null,null,null,null,null,null,0,-1,null,null,"Harmonic stagnation","Chord is repeated, but inversion is changed"]
[419,"Harmony","Suspension","Wrong resolution of suspension","on beat 2",null,null,"1",null,null,null,{"$f":"VLOOKUP($A289, Stat!$A$1:$C$1000, 2,0)","v":0},{"$f":"VLOOKUP($A289, Stat!$A$1:$C$1000, 3,0)","v":0},null,null,null,null,null,null,null,0,-1,null,null,null,"Allows resolution to beat 2"]
[420,"Harmony","Suspension","Wrong resolution of suspension","on beat 4",null,null,"1",null,null,null,{"$f":"VLOOKUP($A290, Stat!$A$1:$C$1000, 2,0)","v":0},{"$f":"VLOOKUP($A290, Stat!$A$1:$C$1000, 3,0)","v":0},null,null,null,null,null,null,null,0,-1,null,null,null,"Allows resolution to beat 4"]
[427,"Rhythm","Rhythm","Wrong suspension rhythm","prep < sus",null,null,"1",null,null,null,{"$f":"VLOOKUP($A291, Stat!$A$1:$C$1000, 2,0)","v":24},{"$f":"VLOOKUP($A291, Stat!$A$1:$C$1000, 3,0)","v":0},1,null,null,null,null,null,null,100,-1,null,null,"Suspension preparation and suspension","Suspension preparation is shorter than suspension"]
[428,"Harmony","Harmony","Repeating functions in a row",">4 D","9",null,"1",null,null,"Weak prog.",{"$f":"VLOOKUP($A292, Stat!$A$1:$C$1000, 2,0)","v":1},{"$f":"VLOOKUP($A292, Stat!$A$1:$C$1000, 3,0)","v":0},null,1,null,null,null,null,"17,20,23,48,57,77,92,99,428,429,430,431",0,-1,null,null,"More than AA consecutive harmonies all have this letter"]
[429,"Harmony","Harmony","Repeating functions in a row",">4 S","9",null,"1",null,null,"Weak prog.",{"$f":"VLOOKUP($A293, Stat!$A$1:$C$1000, 2,0)","v":1},{"$f":"VLOOKUP($A293, Stat!$A$1:$C$1000, 3,0)","v":0},null,1,null,null,null,null,"17,20,23,48,57,77,92,99,428,429,430,431",0,-1,null,null,"More than AA consecutive harmonies all have this letter"]
[430,"Harmony","Harmony","Missing functions in a row",">5 without D","9",null,"1",null,null,"No D",{"$f":"VLOOKUP($A294, Stat!$A$1:$C$1000, 2,0)","v":10},{"$f":"VLOOKUP($A294, Stat!$A$1:$C$1000, 3,0)","v":0},null,1,null,null,null,null,"17,20,23,48,57,77,92,99,428,429,430,431",0,-1,null,null,"More than AA consecutive harmonies do not have this letter"]
[431,"Harmony","Harmony","Missing functions in a row",">6 without S","9",null,"1",null,null,"No S",{"$f":"VLOOKUP($A295, Stat!$A$1:$C$1000, 2,0)","v":3},{"$f":"VLOOKUP($A295, Stat!$A$1:$C$1000, 3,0)","v":0},null,1,null,null,null,null,"17,20,23,48,57,77,92,99,428,429,430,431",0,-1,null,null,"More than AA consecutive harmonies do not have this letter"]
[432,"Melody","Melodic minor","Dim or aug melodic interval","III-VII#-I down",8,null,"1",null,null,"!srn!",{"$f":"VLOOKUP($A296, Stat!$A$1:$C$1000, 2,0)","v":2},{"$f":"VLOOKUP($A296, Stat!$A$1:$C$1000, 3,0)","v":0},1,null,null,null,157,null,null,0,-1,null,null,null,"III-VII# downward notes, then I note"]
[433,"Harmony","Harmony","Six-four chord","real",1,null,"1",null,null,null,{"$f":"VLOOKUP($A297, Stat!$A$1:$C$1000, 2,0)","v":172},{"$f":"VLOOKUP($A297, Stat!$A$1:$C$1000, 3,0)","v":0},1,null,null,null,null,null,null,100,-1,null,null,null,"6/4 chord with 5th on beat 1 or 3"]
[434,"Melody","Range","Stagnation","5 notes <m3",9,null,"1",null,null,"Stagnation",{"$f":"VLOOKUP($A298, Stat!$A$1:$C$1000, 2,0)","v":2},{"$f":"VLOOKUP($A298, Stat!$A$1:$C$1000, 3,0)","v":0},null,null,null,null,null,null,null,50,0,5,"E",null,"AA consecutive notes have total range less than interval BB"]
[435,"Melody","Range","Stagnation","9 notes <4th",9,null,"1",null,null,"Stagnation",{"$f":"VLOOKUP($A299, Stat!$A$1:$C$1000, 2,0)","v":7},{"$f":"VLOOKUP($A299, Stat!$A$1:$C$1000, 3,0)","v":0},null,null,null,null,null,null,null,50,-1,5,"E",null,"AA consecutive notes have total pitch range less than interval BB"]
[436,"Melody","Range","Stagnation","14 notes <5th",9,null,"1",null,null,"Stagnation",{"$f":"VLOOKUP($A300, Stat!$A$1:$C$1000, 2,0)","v":3},{"$f":"VLOOKUP($A300, Stat!$A$1:$C$1000, 3,0)","v":0},null,null,null,null,null,null,null,50,-1,5,"E",null,"AA consecutive notes have total pitch range less than interval BB"]
[437,"Melody","Range","Stagnation","19 notes <m6",9,null,"1",null,null,"Stagnation",{"$f":"VLOOKUP($A301, Stat!$A$1:$C$1000, 2,0)","v":3},{"$f":"VLOOKUP($A301, Stat!$A$1:$C$1000, 3,0)","v":0},null,null,null,null,null,null,null,0,-1,5,"E",null,"AA consecutive notes have total pitch range less than interval BB"]
[458,"Harmony","Suspension","Suspension prepared by dissonance","/diss. prep",null,null,"1",null,null,null,{"$f":"VLOOKUP($A302, Stat!$A$1:$C$1000, 2,0)","v":23},{"$f":"VLOOKUP($A302, Stat!$A$1:$C$1000, 3,0)","v":6},null,null,null,null,null,null,null,100,-1,null,null,null,"Suspension starts with dissonance"]
[460,"Melody","Change of melodic direction around leap","No change of direction before the leap between measures: 1skip + 1skip","3rd",5,null,"1",null,null,null,{"$f":"VLOOKUP($A303, Stat!$A$1:$C$1000, 2,0)","v":0},{"$f":"VLOOKUP($A303, Stat!$A$1:$C$1000, 3,0)","v":0},1,null,null,null,"476",null,null,50,-1,null,"E","Turns around leap on measure border. There is one note going in the same direction before and after leap"]
[461,"Melody","Change of melodic direction around leap","No change of direction before the leap between measures: 1skip + 1skip","4th",5,null,"1",null,null,null,{"$f":"VLOOKUP($A304, Stat!$A$1:$C$1000, 2,0)","v":0},{"$f":"VLOOKUP($A304, Stat!$A$1:$C$1000, 3,0)","v":0},1,null,null,null,"477",null,null,50,-1,null,"E","Turns around leap on measure border. There is one note going in the same direction before and after leap"]
[462,"Melody","Change of melodic direction around leap","No change of direction before the leap between measures: 1skip + 1skip","5th",5,null,"1",null,null,null,{"$f":"VLOOKUP($A305, Stat!$A$1:$C$1000, 2,0)","v":0},{"$f":"VLOOKUP($A305, Stat!$A$1:$C$1000, 3,0)","v":0},1,null,null,null,"478",null,null,50,0,null,"E","Turns around leap on measure border. There is one note going in the same direction before and after leap"]
[463,"Melody","Change of melodic direction around leap","No change of direction before the leap between measures: 1skip + 1skip",">5th",5,null,"1",null,null,null,{"$f":"VLOOKUP($A306, Stat!$A$1:$C$1000, 2,0)","v":1},{"$f":"VLOOKUP($A306, Stat!$A$1:$C$1000, 3,0)","v":1},1,null,null,null,"479",null,null,100,0,null,"E","Turns around leap on measure border. There is one note going in the same direction before and after leap"]
[464,"Melody","Change of melodic direction around leap","No change of direction before the leap between measures: 1skip + >1skip","3rd",5,null,"1",null,null,null,{"$f":"VLOOKUP($A307, Stat!$A$1:$C$1000, 2,0)","v":1},{"$f":"VLOOKUP($A307, Stat!$A$1:$C$1000, 3,0)","v":1},1,null,null,null,"460,476",null,null,50,-1,null,"E","Turns around leap on measure border. There is one note going in the same direction before leap and more than one note going in the same direction after leap"]
[465,"Melody","Change of melodic direction around leap","No change of direction before the leap between measures: 1skip + >1skip","4th",5,null,"1",null,null,null,{"$f":"VLOOKUP($A308, Stat!$A$1:$C$1000, 2,0)","v":1},{"$f":"VLOOKUP($A308, Stat!$A$1:$C$1000, 3,0)","v":0},1,null,null,null,"461,477",null,null,50,-1,null,"E","Turns around leap on measure border. There is one note going in the same direction before leap and more than one note going in the same direction after leap"]
[466,"Melody","Change of melodic direction around leap","No change of direction before the leap between measures: 1skip + >1skip","5th",5,null,"1",null,null,null,{"$f":"VLOOKUP($A309, Stat!$A$1:$C$1000, 2,0)","v":0},{"$f":"VLOOKUP($A309, Stat!$A$1:$C$1000, 3,0)","v":0},1,null,null,null,"462,478",null,null,50,0,null,"E","Turns around leap on measure border. There is one note going in the same direction before leap and more than one note going in the same direction after leap"]
[467,"Melody","Change of melodic direction around leap","No change of direction before the leap between measures: 1skip + >1skip",">5th",5,null,"1",null,null,null,{"$f":"VLOOKUP($A310, Stat!$A$1:$C$1000, 2,0)","v":0},{"$f":"VLOOKUP($A310, Stat!$A$1:$C$1000, 3,0)","v":0},1,null,null,null,"463,479",null,null,100,0,null,"E","Turns around leap on measure border. There is one note going in the same direction before leap and more than one note going in the same direction after leap"]
[468,"Melody","Change of melodic direction around leap","No change of direction before the leap between measures: >1skip + 1skip","3rd",5,null,"1",null,null,null,{"$f":"VLOOKUP($A311, Stat!$A$1:$C$1000, 2,0)","v":6},{"$f":"VLOOKUP($A311, Stat!$A$1:$C$1000, 3,0)","v":3},1,null,null,null,"25",null,null,50,-1,null,"E","Turns around leap on measure border. There is more than one note going in the same direction before leap and one note going in the same direction after leap"]
[469,"Melody","Change of melodic direction around leap","No change of direction before the leap between measures: >1skip + 1skip","4th",5,null,"1",null,null,null,{"$f":"VLOOKUP($A312, Stat!$A$1:$C$1000, 2,0)","v":0},{"$f":"VLOOKUP($A312, Stat!$A$1:$C$1000, 3,0)","v":0},1,null,null,null,"26",null,null,50,-1,null,"E","Turns around leap on measure border. There is more than one note going in the same direction before leap and one note going in the same direction after leap"]
[470,"Melody","Change of melodic direction around leap","No change of direction before the leap between measures: >1skip + 1skip","5th",5,null,"1",null,null,null,{"$f":"VLOOKUP($A313, Stat!$A$1:$C$1000, 2,0)","v":1},{"$f":"VLOOKUP($A313, Stat!$A$1:$C$1000, 3,0)","v":1},1,null,null,null,"27",null,null,100,0,null,"E","Turns around leap on measure border. There is more than one note going in the same direction before leap and one note going in the same direction after leap"]
[471,"Melody","Change of melodic direction around leap","No change of direction before the leap between measures: >1skip + 1skip",">5th",5,null,"1",null,null,null,{"$f":"VLOOKUP($A314, Stat!$A$1:$C$1000, 2,0)","v":0},{"$f":"VLOOKUP($A314, Stat!$A$1:$C$1000, 3,0)","v":0},1,null,null,null,"28",null,null,100,0,null,"E","Turns around leap on measure border. There is more than one note going in the same direction before leap and one note going in the same direction after leap"]
[472,"Melody","Change of melodic direction around leap","No change of direction before the leap between measures: >1skip + >1skip","3rd",5,null,"1",null,null,null,{"$f":"VLOOKUP($A315, Stat!$A$1:$C$1000, 2,0)","v":1},{"$f":"VLOOKUP($A315, Stat!$A$1:$C$1000, 3,0)","v":0},1,null,null,null,"25,468",null,null,50,-1,null,"E","Turns around leap on measure border. There is more than one note going in the same direction before leap and more than one note going in the same direction after leap"]
[473,"Melody","Change of melodic direction around leap","No change of direction before the leap between measures: >1skip + >1skip","4th",5,null,"1",null,null,null,{"$f":"VLOOKUP($A316, Stat!$A$1:$C$1000, 2,0)","v":0},{"$f":"VLOOKUP($A316, Stat!$A$1:$C$1000, 3,0)","v":0},1,null,null,null,"26,469",null,null,50,-1,null,"E","Turns around leap on measure border. There is more than one note going in the same direction before leap and more than one note going in the same direction after leap"]
[474,"Melody","Change of melodic direction around leap","No change of direction before the leap between measures: >1skip + >1skip","5th",5,null,"1",null,null,null,{"$f":"VLOOKUP($A317, Stat!$A$1:$C$1000, 2,0)","v":0},{"$f":"VLOOKUP($A317, Stat!$A$1:$C$1000, 3,0)","v":0},1,null,null,null,"27,470",null,null,100,0,null,"E","Turns around leap on measure border. There is more than one note going in the same direction before leap and more than one note going in the same direction after leap"]
[475,"Melody","Change of melodic direction around leap","No change of direction before the leap between measures: >1skip + >1skip",">5th",5,null,"1",null,null,null,{"$f":"VLOOKUP($A318, Stat!$A$1:$C$1000, 2,0)","v":0},{"$f":"VLOOKUP($A318, Stat!$A$1:$C$1000, 3,0)","v":0},1,null,null,null,"28,471",null,null,100,0,null,"E","Turns around leap on measure border. There is more than one note going in the same direction before leap and more than one note going in the same direction after leap"]
[476,"Melody","Change of melodic direction around leap","No change of direction before the leap between measures: 1skip + close","3rd",5,null,"1",null,null,null,null,null,1,null,null,null,null,null,null,50,-1,null,"E","There is immediate melody direction change after leap, but before leap melody direction changes after one note, which goes in the same direction as leap"]
[477,"Melody","Change of melodic direction around leap","No change of direction before the leap between measures: 1skip + close","4th",5,null,"1",null,null,null,null,null,1,null,null,null,null,null,null,50,-1,null,"E","There is immediate melody direction change after leap, but before leap melody direction changes after one note, which goes in the same direction as leap"]
[478,"Melody","Change of melodic direction around leap","No change of direction before the leap between measures: 1skip + close","5th",5,null,"1",null,null,null,null,null,1,null,null,null,null,null,null,100,-1,null,"E","There is immediate melody direction change after leap, but before leap melody direction changes after one note, which goes in the same direction as leap"]
[479,"Melody","Change of melodic direction around leap","No change of direction before the leap between measures: 1skip + close",">5th",5,null,"1",null,null,null,null,null,1,null,null,null,null,null,null,100,0,null,"E","There is immediate melody direction change after leap, but before leap melody direction changes after one note, which goes in the same direction as leap"]
[481,"Harmony","Perfect consonance","Consecutive 8ves or unisons","parallel","7","1",null,null,null,"!fn!",{"$f":"VLOOKUP($A323, Stat!$A$1:$C$1000, 2,0)","v":65},{"$f":"VLOOKUP($A323, Stat!$A$1:$C$1000, 3,0)","v":37},1,null,null,null,null,null,null,100,0]
[482,"Harmony","Perfect consonance","Consecutive 8ves or unisons","contrary","7","1",null,null,null,"!fn!",{"$f":"VLOOKUP($A324, Stat!$A$1:$C$1000, 2,0)","v":9},{"$f":"VLOOKUP($A324, Stat!$A$1:$C$1000, 3,0)","v":4},1,null,null,null,null,null,null,50,0,null,"E",null,"Contrary octaves are possible in cadence"]
[484,"Harmony","Perfect consonance","Parallel 8ves / unisons: < measure apart","upbeat contrary",7,1,null,null,null,"!fn!",{"$f":"VLOOKUP($A325, Stat!$A$1:$C$1000, 2,0)","v":22},{"$f":"VLOOKUP($A325, Stat!$A$1:$C$1000, 3,0)","v":3},1,null,null,null,null,null,null,0,-1,null,">4","Two same non-close perfect consonances in neighboring measures less than one measure length apart","Contrary movement between the two intervals, second interval is on upbeat, both notes of second interval do not start simultaneously"]
[485,"Harmony","Perfect consonance","Parallel 8ves / unisons: < measure apart","last contrary",7,1,null,null,null,"!fn!",{"$f":"VLOOKUP($A326, Stat!$A$1:$C$1000, 2,0)","v":8},{"$f":"VLOOKUP($A326, Stat!$A$1:$C$1000, 3,0)","v":4},1,null,null,null,null,null,null,0,-1,null,">4","Two same non-close perfect consonances in neighboring measures less than one measure length apart","Contrary movement to last interval in counterpoint"]
[488,"Harmony","Perfect consonance","Parallel 8ves / unisons: < measure apart","non-chord",7,1,null,null,null,"!fn!",{"$f":"VLOOKUP($A327, Stat!$A$1:$C$1000, 2,0)","v":81},{"$f":"VLOOKUP($A327, Stat!$A$1:$C$1000, 3,0)","v":28},1,null,null,null,null,null,null,0,-1,null,">4","Two same non-close perfect consonances in neighboring measures less than one measure length apart","One of intervals is created by non-chord tone or chord tone in melodic position, second interval is on upbeat, both notes of second interval do not start simultaneously, species 3 or 5"]
[490,"Harmony","Perfect consonance","Parallel 8ves / unisons: < measure apart","downbeat",7,1,null,null,null,"!fn!",{"$f":"VLOOKUP($A328, Stat!$A$1:$C$1000, 2,0)","v":42},{"$f":"VLOOKUP($A328, Stat!$A$1:$C$1000, 3,0)","v":12},1,null,null,null,null,null,null,100,-1,null,">4","Two same non-close perfect consonances in neighboring measures less than one measure length apart","Second interval is on downbeat"]
[491,"Harmony","Perfect consonance","Parallel 8ves / unisons: < measure apart","sus harm",7,1,null,null,null,"!fn!",{"$f":"VLOOKUP($A329, Stat!$A$1:$C$1000, 2,0)","v":4},{"$f":"VLOOKUP($A329, Stat!$A$1:$C$1000, 3,0)","v":2},1,null,null,null,null,null,null,50,-1,null,">4","Two same non-close perfect consonances in neighboring measures less than one measure length apart","Second interval is formed by harmonic suspension on downbeat"]
[492,"Harmony","Perfect consonance","Parallel 8ves / unisons: < measure apart","upbeat",7,1,null,null,null,"!fn!",{"$f":"VLOOKUP($A330, Stat!$A$1:$C$1000, 2,0)","v":43},{"$f":"VLOOKUP($A330, Stat!$A$1:$C$1000, 3,0)","v":12},1,null,null,null,488,null,null,0,-1,null,">4","Two same non-close perfect consonances in neighboring measures less than one measure length apart","If other rules for second interval on upbeat did not apply"]
[493,"Melody","Leaps","Abuse of disjunct motion: within 9 notes",">7 leaps","10",null,"1",null,null,"Many leaps",{"$f":"VLOOKUP($A331, Stat!$A$1:$C$1000, 2,0)","v":10},{"$f":"VLOOKUP($A331, Stat!$A$1:$C$1000, 3,0)","v":0},null,null,null,1,null,null,null,0,-1,5]
[494,"Melody","Leaps","Abuse of disjunct motion: within 9 notes",">30 leaped","10",null,"1",null,null,"Many leaps",{"$f":"VLOOKUP($A332, Stat!$A$1:$C$1000, 2,0)","v":11},{"$f":"VLOOKUP($A332, Stat!$A$1:$C$1000, 3,0)","v":0},null,null,null,1,null,null,null,0,-1,5,null,null,"Total leaps length more than AA notes:  3 is third, 4 is fourth and so on"]
[495,"Melody","Leaps","Abuse of disjunct motion: within 9 notes",">8 leaps","10",null,"1",null,null,"Many leaps",{"$f":"VLOOKUP($A333, Stat!$A$1:$C$1000, 2,0)","v":0},{"$f":"VLOOKUP($A333, Stat!$A$1:$C$1000, 3,0)","v":0},null,null,null,1,"493",null,null,50,-1,5]
[496,"Melody","Leaps","Abuse of disjunct motion: within 9 notes",">36 leaped","10",null,"1",null,null,"Many leaps",{"$f":"VLOOKUP($A334, Stat!$A$1:$C$1000, 2,0)","v":0},{"$f":"VLOOKUP($A334, Stat!$A$1:$C$1000, 3,0)","v":0},null,null,null,1,"494",null,null,50,-1,5,null,null,"Total leaps length more than AA notes:  3 is third, 4 is fourth and so on"]
[497,"Melody","Leaps","Abuse of disjunct motion: within 14 notes",">9 leaps","10",null,"1",null,null,"Many leaps",{"$f":"VLOOKUP($A335, Stat!$A$1:$C$1000, 2,0)","v":6},{"$f":"VLOOKUP($A335, Stat!$A$1:$C$1000, 3,0)","v":0},null,null,null,1,null,null,null,0,-1,5]
[498,"Melody","Leaps","Abuse of disjunct motion: within 14 notes",">40 leaped","10",null,"1",null,null,"Many leaps",{"$f":"VLOOKUP($A336, Stat!$A$1:$C$1000, 2,0)","v":5},{"$f":"VLOOKUP($A336, Stat!$A$1:$C$1000, 3,0)","v":0},null,null,null,1,null,null,null,0,-1,5,null,null,"Total leaps length more than AA notes:  3 is third, 4 is fourth and so on"]
[499,"Melody","Leaps","Abuse of disjunct motion: within 14 notes",">10 leaps","10",null,"1",null,null,"Many leaps",{"$f":"VLOOKUP($A337, Stat!$A$1:$C$1000, 2,0)","v":0},{"$f":"VLOOKUP($A337, Stat!$A$1:$C$1000, 3,0)","v":0},null,null,null,1,"497",null,null,50,-1,5]
[500,"Melody","Leaps","Abuse of disjunct motion: within 14 notes",">46 leaped","10",null,"1",null,null,"Many leaps",{"$f":"VLOOKUP($A338, Stat!$A$1:$C$1000, 2,0)","v":0},{"$f":"VLOOKUP($A338, Stat!$A$1:$C$1000, 3,0)","v":0},null,null,null,1,"498",null,null,50,-1,5,null,null,"Total leaps length more than AA notes:  3 is third, 4 is fourth and so on"]
[501,"Melody","Leaps","Consecutive leaps",4,"10",null,"1",null,null,"Consecutive leaps",{"$f":"VLOOKUP($A339, Stat!$A$1:$C$1000, 2,0)","v":28},{"$f":"VLOOKUP($A339, Stat!$A$1:$C$1000, 3,0)","v":0},null,null,null,1,null,null,null,50,-1,5,null,"1x3rd ignored"]
[502,"Melody","Leaps","Consecutive leaps","more than 4","10",null,"1",null,null,"Consecutive leaps",{"$f":"VLOOKUP($A340, Stat!$A$1:$C$1000, 2,0)","v":8},{"$f":"VLOOKUP($A340, Stat!$A$1:$C$1000, 3,0)","v":0},null,null,null,1,501,null,null,100,-1,5,null,"1x3rd ignored"]
[503,"Melody","Leaps","Consecutive unidirectional leaps","Two 3rds","10",null,"1",null,null,"!srn!",{"$f":"VLOOKUP($A341, Stat!$A$1:$C$1000, 2,0)","v":92},{"$f":"VLOOKUP($A341, Stat!$A$1:$C$1000, 3,0)","v":30},1,null,null,null,null,null,null,0,-1,45]
[504,"Melody","Leaps","Consecutive unidirectional leaps","Three 3rds","10",null,"1",null,null,"!srn!",{"$f":"VLOOKUP($A342, Stat!$A$1:$C$1000, 2,0)","v":10},{"$f":"VLOOKUP($A342, Stat!$A$1:$C$1000, 3,0)","v":0},1,null,null,null,"503",null,null,100,-1,45]
[505,"Melody","Leaps","Consecutive unidirectional leaps","Two >3rds","10",null,"1",null,null,"Unidir. leaps",{"$f":"VLOOKUP($A343, Stat!$A$1:$C$1000, 2,0)","v":64},{"$f":"VLOOKUP($A343, Stat!$A$1:$C$1000, 3,0)","v":34},1,null,null,null,null,null,null,100,-1,45,null,null,"Two consecutive unidirectional leaps, while one of them is longer than 3rd"]
[506,"Melody","Change of melodic direction around leap","No change of direction before the leap: neigh + close","3rd",5,null,"1",null,null,null,null,null,1,null,null,null,null,null,null,0,-1,35,"E","There is immediate melody direction change after leap. Before leap there is neighbor tone, then ending leap note repeats and then there is movement inside leap."]
[507,"Melody","Change of melodic direction around leap","No change of direction before the leap: neigh + close","4th",5,null,"1",null,null,null,null,null,1,null,null,null,null,null,null,0,-1,35,"E","There is immediate melody direction change after leap. Before leap there is neighbor tone, then ending leap note repeats and then there is movement inside leap."]
[508,"Melody","Change of melodic direction around leap","No change of direction before the leap: neigh + close","5th",5,null,"1",null,null,null,null,null,1,null,null,null,null,null,null,0,-1,35,"E","There is immediate melody direction change after leap. Before leap there is neighbor tone, then ending leap note repeats and then there is movement inside leap."]
[509,"Melody","Change of melodic direction around leap","No change of direction before the leap: neigh + close",">5th",5,null,"1",null,null,null,null,null,1,null,null,null,null,null,null,0,-1,35,"E","There is immediate melody direction change after leap. Before leap there is neighbor tone, then ending leap note repeats and then there is movement inside leap."]
[510,"Melody","Change of melodic direction around leap","No change of direction after the leap: close + neigh","3rd",5,null,"1",null,null,null,null,null,1,null,null,null,null,null,null,0,-1,35,"E","There is immediate melody direction change before leap. After leap there is neighbor tone, then ending leap note repeats and then there is movement inside leap."]
[511,"Melody","Change of melodic direction around leap","No change of direction after the leap: close + neigh","4th",5,null,"1",null,null,null,null,null,1,null,null,null,null,null,null,0,-1,35,"E","There is immediate melody direction change before leap. After leap there is neighbor tone, then ending leap note repeats and then there is movement inside leap."]
[512,"Melody","Change of melodic direction around leap","No change of direction after the leap: close + neigh","5th",5,null,"1",null,null,null,null,null,1,null,null,null,null,null,null,0,-1,35,"E","There is immediate melody direction change before leap. After leap there is neighbor tone, then ending leap note repeats and then there is movement inside leap."]
[513,"Melody","Change of melodic direction around leap","No change of direction after the leap: close + neigh",">5th",5,null,"1",null,null,null,null,null,1,null,null,null,null,null,null,0,-1,35,"E","There is immediate melody direction change before leap. After leap there is neighbor tone, then ending leap note repeats and then there is movement inside leap."]
[514,"Rhythm","Rhythm","Wrong note value for this species","/value",null,null,"1",null,null,null,null,null,null,null,null,null,null,null,null,50,-1,null,null,"Except last note"]
[515,"Rhythm","Rhythm","Wrong positioning of note for this species","/position",null,null,"1",null,null,null,null,null,null,null,null,null,null,null,null,50,-1]
[516,"Rhythm","Repeats and ties","Note repeat","inside measure",null,null,"1",null,null,null,null,null,null,null,null,null,null,null,null,50,-1]
[517,"Rhythm","Rhythm","Misuse of rest","rest inside",null,null,"1",null,null,null,null,null,null,null,null,null,null,null,null,50,-1,null,null,null,"Rest inside counterpoint - not before first note"]
[518,"Harmony","Voice motion","Voice crossing is too long","> 1.5 measures",12,null,"1",null,null,"Cross.",null,null,null,null,null,null,null,null,null,0,-1,null,">4"]
[519,"Harmony","Voice motion","Voice crossing is too long","> 2.5 measures",12,null,"1",null,null,"Cross.",null,null,null,null,null,null,null,null,null,50,-1,null,">4"]
[520,"Harmony","Voice motion","Voice crossing between non-adjacent voices","/non-adjacent",12,null,"1",null,null,"Cross.",null,null,null,null,null,null,null,null,null,100,-1]
[521,"Melody","Melodic minor","Note is not part of the mode","/wrong alteration",null,null,"1",null,null,null,null,null,null,null,null,null,null,null,null,100,-1,null,null,null,"Used alterations are not part of current mode (major I#, II# or VI# notes)."]
[522,"Melody","Range","Out of vocal range","/out of range",12,null,"1",null,null,"Vocal range",null,null,null,null,null,null,null,null,null,50,-1,null,null,null,"Notes are too high or too low for vocal range specified for this voice"]
[523,"Melody","Range","Wrong order of vocal ranges","/above higher",null,null,"1",null,null,null,null,null,null,null,null,null,null,null,null,50,-1,null,null,null,"This vocal range should not be above higher vocal range"]
[524,"Melody","Range","Imbalance between vocal ranges",">7 quarters",12,null,"1",null,null,"Imbalance",null,null,null,null,null,null,null,null,null,50,-1,null,null,"One voice is in its highest third of range, while the other voice is in its lowest third range for AA quarters"]
[525,"Rhythm","Rhythm","Wrong time signature for this species","/measure len",null,null,"1",null,null,null,null,null,null,null,null,null,null,null,null,50,-1]
[526,"Melody","Range","Imbalance between vocal ranges",">12 quarters",12,null,"1",null,null,"Imbalance",null,null,null,null,null,null,null,null,null,100,-1,null,null,"One voice is in its highest third of range, while the other voice is in its lowest third range for AA quarters"]
[527,"Rhythm","Rhythm","Misuse of rest","late entrance",null,null,"1",null,null,null,null,null,null,null,null,null,null,null,null,50,-1,null,null,null,"Voice is entering too late. For species 2-5, one or two voices should enter in each measure"]
[530,"Rhythm","Rhythm","Simultaneous entries of voices","/simultaneous",null,null,"1",null,null,null,null,null,null,null,null,null,null,null,null,50,-1]
[531,"Harmony","Border","Non-permitted last harmony","not T",1,null,"1",null,null,null,null,null,null,null,null,null,null,null,null,50,-1,null,null,null,"Also prohibits T6"]
[532,"Harmony","Border","Non-permitted first note","V",null,null,"1",null,null,null,null,null,null,null,null,null,null,null,null,0,-1]
[533,"Harmony","Border","Non-permitted first note","III syncope",null,null,"1",null,null,null,null,null,null,null,null,null,null,null,null,0,-1]
[534,"Harmony","Border","Non-permitted first note","III",null,null,"1",null,null,null,null,null,null,null,null,null,null,null,null,0,-1]
[535,"Harmony","Border","Non-permitted first note","Other",null,null,"1",null,null,null,null,null,null,null,null,null,null,null,null,0,-1]
[536,"Harmony","Border","Non-permitted last note","V",null,null,"1",null,null,null,null,null,null,null,null,null,null,null,null,0,-1,null,"N","For this rule E voice means highest voice, B means lowest voice, N means non-outer voice"]
[537,"Harmony","Border","Non-permitted last note","III",null,null,"1",null,null,null,null,null,null,null,null,null,null,null,null,0,-1,null,"N","For this rule E voice means highest voice, B means lowest voice, N means non-outer voice"]
[538,"Harmony","Border","Non-permitted last note","Other",null,null,"1",null,null,null,null,null,null,null,null,null,null,null,null,0,-1,null,"N","For this rule E voice means highest voice, B means lowest voice, N means non-outer voice"]
[541,"Harmony","Voice motion","Voice crossing is prohibited","first measure",12,null,"1",null,null,"Cross.",null,null,null,null,null,null,null,null,null,50,0]
[542,"Harmony","Voice motion","Voice crossing is prohibited","last measure",12,null,"1",null,null,"Cross.",null,null,null,null,null,null,null,null,null,50,0]
[543,"Harmony","Voice motion","Voice crossing is prohibited","any",12,null,"1",null,null,"Cross.",null,null,null,null,null,null,null,null,null,100,0]
[544,"Harmony","Voice motion","2nd interval during voice crossing","/2nd interval",null,null,"1",null,null,null,null,null,null,null,null,null,null,null,null,0,-1,null,null,null,"Second interval at crossing"]
[545,"Harmony","Voice motion","Consecutive 2nd intervals during voice crossing","/Two 2nd intervals",12,null,"1",null,null,"Cons. 2nds",null,null,null,null,null,null,null,null,null,50,-1,null,null,"Two consecutive harmonic 2nd intervals","Second interval before and at crossing"]
[546,"Harmony","Voice motion","Similar motion with crossing voices",":one voice leaps",12,null,"1",null,null,"Cross.",null,null,null,null,null,null,null,null,null,0,-1,null,null,null,"Direct motion to crossing if one of voices leaps"]
[547,"Harmony","Voice motion","Similar motion with crossing voices",":both voices leap",12,null,"1",null,null,"Cross.",null,null,null,null,null,null,null,null,null,50,-1,null,null,null,"Direct motion to crossing if both voices leap"]
[548,"Harmony","Voice motion","Voice overlapping","non-adjacent",10,null,"1",null,null,"Overlap",null,null,null,null,null,null,null,null,null,100,0]
[549,"Rhythm","Rhythm","Identical rhythm in two parts","/same",12,null,"1",null,null,"Same rhythm",null,null,null,null,null,null,null,null,null,0,-1,null,null,null,"One measure has same rhythm in two voices in species 5"]
[550,"Harmony","Voice motion","Parallel motion in all parts","two times",10,null,null,null,null,"Parallelism",null,null,null,null,null,null,null,null,null,50,-1,null,">2"]
[551,"Harmony","Dissonance","Misuse of a non-chord tone",":first note",null,null,"1",null,null,null,null,null,null,null,null,null,null,null,null,100,-1]
[555,"Harmony","Harmony","Convoluted harmony","/convoluted",1,null,"1",null,null,null,null,null,null,null,null,null,null,null,null,100,-1,null,null,"Cannot detect harmony"]
[557,"Rhythm","Repeats and ties","Simultaneous repeats of notes in multiple parts","/multivoice",null,null,"1",null,null,null,null,null,null,null,null,null,null,null,null,50,-1]
[558,"Harmony","Harmony","Ambiguous harmony","/ambiguous",1,null,"1",null,null,null,null,null,null,null,null,null,null,null,null,100,-1,null,null,"Chord should have at least one chord tone starting on the first beat of this chord"]
[559,"Harmony","Harmony","Incomplete harmony","any - no 3rd",1,null,"1",null,null,null,null,null,null,null,null,null,null,null,null,50,-1,null,null,null,"Starting from 3 voices chord should have (tonic and 3rd) or (5th and 3rd) on first beat or suspension resolution or PDD resolution note"]
[139,"Harmony","Harmony","Modulating progression","II-III (m)",1,null,"1",null,null,null,null,null,null,null,null,null,null,null,null,50,-1,null,null,null,"Prohibit III (CEG) in root position after II (BDF) in minor because it is modulating"]
[161,"Harmony","Dissonance","Similar motion to tritone","tritone",7,3,null,null,null,"!fn!",null,null,null,null,null,null,null,null,null,0,-1,null,null,null,"Direct movement to tritone"]
[162,"Harmony","Dissonance","Consecutive tritones","parallel",7,1,null,null,null,"!fn!",null,null,null,null,null,null,null,null,null,0,-1]
[163,"Harmony","Dissonance","Consecutive tritones","contrary",7,1,null,null,null,"!fn!",null,null,null,null,null,null,null,null,null,0,-1,null,"6E"]
[166,"Harmony","Perfect consonance","Similar motion to 5th in outer voices","upbeat, not cadence","7","3",null,null,null,"!fn!",null,null,null,null,null,null,null,null,null,50,0,null,null,null,"Direct movement to 5th: not in cadence"]
[167,"Harmony","Perfect consonance","Similar motion to unison","upbeat, not cadence","7","3",null,null,null,"!fn!",null,null,null,null,null,null,null,null,null,50,0,null,null,null,"Direct movement to unison: not in cadence"]
[168,"Harmony","Perfect consonance","Similar motion to 8ve in outer voices","upbeat, not cadence","7","3",null,null,null,"!fn!",null,null,null,null,null,null,null,null,null,50,0,null,null,null,"Direct movement to 8ve: not in cadence"]
[194,"Harmony","Harmony","7th chord","/7th",1,null,null,null,null,null,null,null,null,null,null,null,null,null,null,50,-1,null,">2"]
[237,"Rhythm","Rhythm","Missing rest","/no starting rest",null,null,null,null,null,null,null,null,null,null,null,null,null,null,null,50,-1,null,null,null,"This species should start with a rest"]
[195,"Harmony","Dissonance","Harmonic tritone","in archaic mode",null,null,1,null,null,null,null,null,null,null,null,null,null,null,null,50,-1,null,null,null,"In ancient modes, tritone is prohibited between any voices"]
[214,"Harmony","Voice motion","Similar motion in all parts","/same direction",10,null,null,null,null,"SMAP",null,null,null,null,null,null,null,null,null,50,0]
[215,"Rhythm","Rhythm","Identical rhythm in all parts","/same",null,null,null,null,null,null,null,null,null,null,null,null,null,null,null,50,-1,null,null,"For any species except species 1","One measure has same rhythm in all voices"]
[238,"Harmony","Consecutive 3rds, 4ths and 6ths","Too many consecutive harmonic 4ths","> 3",9,1,1,null,null,"Parallel 4ths",null,null,null,null,null,null,null,null,null,50,-1,null,null,"More than AA 4ths in a row"]
[251,"Harmony","Harmony","Two consecutive incomplete harmonies","/2",1,null,1,null,null,null,null,null,null,null,null,null,null,null,null,50,-1,null,">2",null,"There should not be two consecutive harmonies, both lacking one of three chord tones on downbeat or PDD resolution or sus resolution"]
[241,"Harmony","Border","Non-permitted first harmonic interval","M2",null,null,null,null,null,null,null,null,null,null,null,null,null,null,null,0,-1]
[242,"Harmony","Border","Non-permitted first harmonic interval","m7",null,null,null,null,null,null,null,null,null,null,null,null,null,null,null,0,-1]
[243,"Harmony","Border","Non-permitted first harmonic interval","M9",null,null,null,null,null,null,null,null,null,null,null,null,null,null,null,0,-1]
[252,"Harmony","Border","Non-permitted first harmonic interval","m2",null,null,null,null,null,null,null,null,null,null,null,null,null,null,null,50,-1]
[253,"Harmony","Border","Non-permitted first harmonic interval","M7",null,null,null,null,null,null,null,null,null,null,null,null,null,null,null,50,-1]
[254,"Harmony","Border","Non-permitted first harmonic interval","m9",null,null,null,null,null,null,null,null,null,null,null,null,null,null,null,50,-1]
[257,"Harmony","Nonchord tones","Neighbor tone dissonance on first beat","chord repeat",null,null,null,null,null,null,null,null,null,null,null,null,null,null,null,0,-1]
[304,"Melody","Compensated leap","8ve compensated to 4th","8ve",5,null,1,null,null,null,null,null,null,null,null,null,null,null,null,50,0,null,"E"]
[224,"Harmony","Perfect consonance","Parallel 5ths: < measure apart","2 oblique",7,1,null,null,null,"!fn!",null,null,null,null,null,null,null,null,null,0,-1,null,">4","Two same non-close perfect consonances in neighboring measures less one measure length apart","Both intervals start in different voices on upbeat"]
[225,"Harmony","Perfect consonance","Parallel 8ves / unisons: < measure apart","2 oblique",7,1,null,null,null,"!fn!",null,null,null,null,null,null,null,null,null,0,-1,null,">4","Two same non-close perfect consonances in neighboring measures less than one measure length apart","Both intervals start in different voices on upbeat"]
[259,"Harmony","Perfect consonance","Parallel 5ths: < measure apart","different beats",7,1,null,null,null,"!fn!",null,null,null,null,null,null,null,null,null,0,-1,null,">4","Two same non-close perfect consonances in neighboring measures less one measure length apart","Both intervals start in different voices on upbeat"]
[260,"Harmony","Perfect consonance","Parallel 8ves / unisons: < measure apart","different beats",7,1,null,null,null,"!fn!",null,null,null,null,null,null,null,null,null,0,-1,null,">4","Two same non-close perfect consonances in neighboring measures less than one measure length apart","Both intervals start in different voices on upbeat"]
[293,"Melody","Range","Voices are too far apart","> 12 semitones",null,null,null,null,null,null,null,null,null,null,null,null,null,null,null,0,-1,null,"B"]
[294,"Melody","Range","Voices are too far apart","> 16 semitones",null,null,null,null,null,null,null,null,null,null,null,null,null,null,null,0,-1,null,"B"]

{"sheet":"Shapes","index":2,"n_rows":21,"n_cols":3,"rows_kept":21,"cut":false,"hidden":false,"merged":[]}
[null,"Text","ABCjs alternative"]
["0. Just flag number","yes"]
["1. Harmony","no"]
["2. Interval","no"]
["3. Vertical brackets","no","no color"]
["4. Volta repeat","yes"]
["5. Slurs","no","no color"]
["6. Phrasing slurs","no"]
["7. Glissando","yes (if neighboring notes)"]
["8. Analysis brackets","yes"]
["9. Trills","yes","issue created"]
["10. TextSpanner","yes"]
["11. Ottava bracket","yes"]
["12. Pedal bracket","yes"]
["13. Note name","no"]
["14. Staccato"]
["15. Staccattissimo"]
["16. Note color","no"]
["17. Petrucci notehead"]
["18. Cross on a stem"]
["19. Circle around notehead","no","muted note (x)"]

{"sheet":"Temp","index":3,"n_rows":16,"n_cols":23,"rows_kept":16,"cut":false,"hidden":false,"merged":[]}
["Rid","Class","Group","Rule","Subrule","VIZ","VI","V2","VT","FQ","CF","GFP","IFP","DEU","MEI","ER","UE","R","Severity","Flag","GComment","Comment","Set"]
[3,"Melody","Leaps","Many leaps within 9 notes",">8 leaps","10",null,null,"!srn!",{"$f":"VLOOKUP($A2, Stat!$A$1:$C$501, 2,0)","v":0},{"$f":"VLOOKUP($A2, Stat!$A$1:$C$501, 3,0)","v":0},null,null,null,1,"311",null,null,60,0,null,null,1]
[25,"Melody","Leaps","Many leaps within 9 notes",">30 notes","10",null,null,"Many leaps",{"$f":"VLOOKUP($A3, Stat!$A$1:$C$501, 2,0)","v":0},{"$f":"VLOOKUP($A3, Stat!$A$1:$C$501, 3,0)","v":0},null,null,null,1,"312",null,null,60,0,null,"Total leaps length more than X notes:  3 is third, 4 is fourth and so on",1]
[202,"Melody","Leaps","Many leaps within 15 notes",">12 leaps","10",null,null,"!srn!",{"$f":"VLOOKUP($A4, Stat!$A$1:$C$501, 2,0)","v":0},{"$f":"VLOOKUP($A4, Stat!$A$1:$C$501, 3,0)","v":0},null,null,null,1,"313",null,null,60,0,null,null,1]
[203,"Melody","Leaps","Many leaps within 15 notes",">42 notes","10",null,null,"Many leaps",{"$f":"VLOOKUP($A5, Stat!$A$1:$C$501, 2,0)","v":0},{"$f":"VLOOKUP($A5, Stat!$A$1:$C$501, 3,0)","v":0},null,null,null,1,"314",null,null,60,0,null,"Total leaps length more than X notes:  3 is third, 4 is fourth and so on",1]
[302,"Melody","Stepwise","Stepwise motion",">14 any direction",10,null,null,"Long stepwise",{"$f":"VLOOKUP($A6, Stat!$A$1:$C$501, 2,0)","v":15},{"$f":"VLOOKUP($A6, Stat!$A$1:$C$501, 3,0)","v":0},null,null,null,null,null,null,null,60,0,"There are more than X notes going stepwize in the same direction in this counterpoint","Stepwise motion more than X notes in any direction",1]
[303,"Melody","Stepwise","Stepwise motion",">7 one direction",10,null,null,"Long stepwise",{"$f":"VLOOKUP($A7, Stat!$A$1:$C$501, 2,0)","v":6},{"$f":"VLOOKUP($A7, Stat!$A$1:$C$501, 3,0)","v":0},null,null,null,null,null,null,null,60,0,"There are more than X notes going stepwize in the same direction in this counterpoint","Stepwise motion more than X notes in one direction",1]
[311,"Melody","Leaps","Many leaps within 9 notes",">5 leaps","10",null,null,"!srn!",{"$f":"VLOOKUP($A8, Stat!$A$1:$C$501, 2,0)","v":0},{"$f":"VLOOKUP($A8, Stat!$A$1:$C$501, 3,0)","v":0},null,1,null,1,null,null,null,0,0,null,null,1]
[312,"Melody","Leaps","Many leaps within 9 notes",">18 notes","10",null,null,"Many leaps",{"$f":"VLOOKUP($A9, Stat!$A$1:$C$501, 2,0)","v":0},{"$f":"VLOOKUP($A9, Stat!$A$1:$C$501, 3,0)","v":0},null,1,null,1,null,null,null,0,0,null,"Total leaps length more than X notes:  3 is third, 4 is fourth and so on",1]
[313,"Melody","Leaps","Many leaps within 15 notes",">7 leaps","10",null,null,"!srn!",{"$f":"VLOOKUP($A10, Stat!$A$1:$C$501, 2,0)","v":0},{"$f":"VLOOKUP($A10, Stat!$A$1:$C$501, 3,0)","v":0},null,1,null,1,null,null,null,0,0,null,null,1]
[314,"Melody","Leaps","Many leaps within 15 notes",">26 notes","10",null,null,"Many leaps",{"$f":"VLOOKUP($A11, Stat!$A$1:$C$501, 2,0)","v":0},{"$f":"VLOOKUP($A11, Stat!$A$1:$C$501, 3,0)","v":0},null,1,null,1,null,null,null,0,0,null,"Total leaps length more than X notes:  3 is third, 4 is fourth and so on",1]
[6,"Melody","Leaps","Consecutive unidirectional 3rds","without 6/8","10",null,null,"2 x 3rds",{"$f":"VLOOKUP($A12, Stat!$A$1:$C$501, 2,0)","v":0},{"$f":"VLOOKUP($A12, Stat!$A$1:$C$501, 3,0)","v":0},1,null,null,null,null,null,null,60,0,"There are two immediately adjacent 3rd leaps going in the same direction","There is no 6th or 8va leap before in an opposite direction",1]
[27,"Melody","Leaps","Consecutive unidirectional leaps","Sum >5th","10",null,null,"Leaps",{"$f":"VLOOKUP($A13, Stat!$A$1:$C$501, 2,0)","v":0},{"$f":"VLOOKUP($A13, Stat!$A$1:$C$501, 3,0)","v":0},null,null,null,null,null,null,null,100,0,"There are two immediately adjacent leaps going in the same direction",null,1]
[28,"Melody","Leaps","Consecutive unidirectional 3rds","after 6/8","10",null,null,"2 x 3rds",{"$f":"VLOOKUP($A14, Stat!$A$1:$C$501, 2,0)","v":0},{"$f":"VLOOKUP($A14, Stat!$A$1:$C$501, 3,0)","v":0},1,null,null,null,null,null,null,0,-1,"There are two immediately adjacent 3rd leaps going in the same direction","After 6th or 8va leap in an opposite direction",1]
[70,"Melody","Leaps","Consecutive leaps: 1x3rd ignored","3","10",null,null,"Consecutive leaps",{"$f":"VLOOKUP($A15, Stat!$A$1:$C$501, 2,0)","v":0},{"$f":"VLOOKUP($A15, Stat!$A$1:$C$501, 3,0)","v":0},null,null,null,1,null,null,null,60,0,"There are more than X leaps. Several Y specified 3rd leaps are allowed and not counted. Not idiomatic for voice.",null,1]
[71,"Melody","Leaps","Consecutive leaps: 1x3rd ignored",">3","10",null,null,"Consecutive leaps",{"$f":"VLOOKUP($A16, Stat!$A$1:$C$501, 2,0)","v":0},{"$f":"VLOOKUP($A16, Stat!$A$1:$C$501, 3,0)","v":0},null,null,null,1,"70",null,null,100,0,"There are more than X leaps. Several Y specified 3rd leaps are allowed and not counted. Not idiomatic for voice.",null,1]

{"sheet":"viz","index":4,"n_rows":59,"n_cols":4,"rows_kept":59,"cut":false,"hidden":false,"merged":[]}
["Rule group","Shape","Text in staff","Shegolev"]
["Compensated leap","Slur","-"]
["Uncompensated leap","Slur","-"]
["Leap melody direction change","Slur","-"]
["Leap back","Slur","-"]
["Leap size","Slur","-"]
["Many leaps","Text spanner","Many leaps","Bracket"]
["2 consecutive 3rds","Text spanner","2 x 3rds","Bracket"]
["Long stepwize motion","Text spanner","Long stepwise","Bracket"]
["Multiple culminations","-","-"]
["Repeats","Vertical bracket","Repeat"]
["Many tonic notes / chords","Trill","Many tonics"]
["Stagnation, constrained local range, no development","Trill","Stagnation"]
["Letter repeat/miss","Trill","Repeat/miss"]
["Melodic tritone","Interval text","tri"]
["Skipped notes","-","-"]
["Voice range","-","-"]
["Total range","-","-"]
["Interval between voices","Pedal bracket","int >16th"]
["Harmonic mistakes","Harmony text","-"]
["First/last intervals","Interval text","-"]
["Unaltered VII before Im","Bracket","VII before Im","Text spanner"]
["Unaltered VII 10 after VII#","Bracket","VII after VII#","Text spanner"]
["VII near VI#","Bracket","VII near VI#","Text spanner"]
["VI# without VII#","-","-"]
["Leap to VI#","Slur","-"]
["Altered neighbor","Bracket","VI# (or VII#)","Text spanner"]
["Altered far neighbor","Bracket","VI# (or VII#)","Text spanner"]
["False cross relation","-","-"]
["Altered harmonic interval","Interval text","-"]
["Duplicate LT","Interval text","-"]
["PCo long culmination","Interval text","-"]
["Adjacent Pco","Glis","-"]
["PCo <whole apart","Glis","-"]
["Virtual 4th","Pedal bracket","sounds 6/4"]
["Direct movement to Pco","Glis","-"]
["Suspension resolution (including insertion)","Pedal bracket","sus"]
["Harmonic dissonance","Interval text","-"]
["Long parallel imperfect consonances","Trill","parall"]
["Missing/uneven/long starting pause","-","-"]
["Unison downbeat","Interval text","-"]
["Unison near 2nd","Bracket + interval text","-"]
["No LT in penultimate measure","-","-"]
["Allowed suspension in sp2","-","-"]
["Slurs in cantus, excessive slurs in sp1/2/3/5","-","-"]
["Missing slurs in sp4/5","-","-"]
["Voices overlap","Text spanner","ovl"]
["1/2 with dot upbeat","Ottava bracket","1/2. upbeat"]
["1/4, 1/8 syncope","-","-"]
["Whole note inside counterpoint","-","-"]
["Uneven starting rhythm","Ottava bracket","Uneven"]
["Rhythm repeat","Vertical bracket","-"]
["1/8 downbeat","-","-"]
["1/8 leap","Slur","-"]
["1/2 after 1/4","Ottava bracket","1/2 upbeat"]
["Note too long","-","-"]
["Last note is not whole","-","-"]
["Wrong suspension rhythm (1/4 or 1/2 with dot)","-","-"]
["Many notes in measure","Ottava bracket","Many notes"]

{"sheet":"viz2","index":5,"n_rows":17,"n_cols":2,"rows_kept":17,"cut":false,"hidden":false,"merged":[]}
[]
[]
["Названия строк","Количество по полю Rule group"]
["-",13]
["Ottava bracket",7]
["Slur",7]
["Interval text",6]
["Bracket",6]
["Pedal bracket",4]
["Trill",3]
["Glis",3]
["Text spanner",3]
["Vertical bracket",2]
["Bracket + interval text",1]
["Volta",1]
["Harmony text",1]
["Общий итог",57]

{"sheet":"Missing","index":6,"n_rows":145,"n_cols":1,"rows_kept":145,"cut":false,"hidden":false,"merged":[]}
["Rid"]
[4]
[5]
[6]
[7]
[9]
[11]
[13]
[14]
[32]
[33]
[34]
[35]
[37]
[38]
[40]
[46]
[49]
[50]
[51]
[52]
[75]
[80]
[81]
[82]
[86]
[87]
[96]
[98]
[261]
[262]
[263]
[264]
[265]
[266]
[268]
[269]
[270]
[271]
[272]
[273]
[278]
[279]
[280]
[281]
[283]
[284]
[285]
[288]
[289]
[290]
[297]
[298]
[299]
[300]
[306]
[307]
[315]
[317]
[318]
[319]
[320]
[322]
[323]
[327]
[328]
[329]
[330]
[332]
[333]
[334]
[336]
[337]
[338]
[339]
[340]
[347]
[351]
[352]
[353]
[354]
[355]
[356]
[357]
[358]
[359]
[362]
[363]
[364]
[367]
[370]
[373]
[374]
[380]
[381]
[382]
[384]
[389]
[390]
[395]
[396]
[397]
[409]
[410]
[421]
[422]
[423]
[424]
[425]
[426]
[438]
[439]
[440]
[441]
[442]
[443]
[444]
[445]
[446]
[447]
[448]
[449]
[450]
[451]
[452]
[453]
[454]
[455]
[456]
[457]
[459]
[480]
[483]
[486]
[487]
[489]
[528]
[529]
[539]
[540]
[552]
[553]
[554]
[556]
[560]

{"sheet":"Colors","index":7,"n_rows":0,"n_cols":0,"rows_kept":0,"cut":false,"hidden":false,"merged":[]}

{"sheet":"Stat","index":8,"n_rows":1001,"n_cols":3,"rows_kept":1001,"cut":false,"hidden":false,"merged":[]}
["Rule ID","Freq","Confirmed"]
[0,0,0]
[1,15,1]
[2,8,2]
[3,0,0]
[4,0,0]
[5,0,0]
[6,0,0]
[7,2,1]
[8,491,1]
[9,0,0]
[10,39,1]
[11,29,1]
[12,108,39]
[13,55,10]
[14,185,26]
[15,36,2]
[16,20,1]
[17,6,0]
[18,4,0]
[19,33,21]
[20,5,0]
[21,198,1]
[22,24,12]
[23,19,1]
[24,54,9]
[25,0,0]
[26,30,1]
[27,0,0]
[28,0,0]
[29,330,0]
[30,0,0]
[31,29,3]
[32,17,5]
[33,55,5]
[34,40,5]
[35,177,0]
[36,46,1]
[37,28,1]
[38,96,2]
[39,21,0]
[40,54,2]
[41,15,12]
[42,199,0]
[43,88,0]
[44,76,0]
[45,3,0]
[46,70,0]
[47,108,5]
[48,1,1]
[49,5,1]
[50,17,1]
[51,17,2]
[52,12,1]
[53,44,0]
[54,28,0]
[55,41,0]
[56,32,0]
[57,535,1]
[58,175,33]
[59,170,0]
[60,44,6]
[61,38,5]
[62,23,10]
[63,18,5]
[64,6,2]
[65,7,2]
[66,2,2]
[67,174,45]
[68,20,10]
[69,69,24]
[70,0,0]
[71,0,0]
[72,25,0]
[73,23,0]
[74,31,4]
[75,32,19]
[76,51,1]
[77,612,0]
[78,71,1]
[79,94,0]
[80,338,2]
[81,66,2]
[82,48,11]
[83,219,21]
[84,32,5]
[85,0,0]
[86,167,4]
[87,48,1]
[88,47,12]
[89,27,0]
[90,5,1]
[91,6,2]
[92,103,1]
[93,36,0]
[94,6,0]
[95,22,0]
[96,4,0]
[97,3,0]
[98,0,0]
[99,28,1]
[100,0,0]
[101,94,0]
[102,69,0]
[103,39,0]
[104,0,0]
[105,0,0]
[106,0,0]
[107,0,0]
[108,73,0]
[109,11,5]
[110,9,3]
[111,2,1]
[112,151,0]
[113,19,0]
[114,8,0]
[115,24,0]
[116,43,0]
[117,45,0]
[118,25,0]
[119,20,0]
[120,84,0]
[121,58,0]
[122,23,0]
[123,0,0]
[124,36,1]
[125,39,1]
[126,60,1]
[127,88,1]
[128,126,0]
[129,55,9]
[130,38,5]
[131,27,12]
[132,185,0]
[133,70,7]
[134,36,6]
[135,13,4]
[136,0,0]
[137,0,0]
[138,0,0]
[139,17,11]
[140,69,1]
[141,29,1]
[142,13,3]
[143,6,4]
[144,0,0]
[145,92,0]
[146,127,0]
[147,40,0]
[148,20,1]
[149,5,2]
[150,4,2]
[151,0,0]
[152,1,1]
[153,3,2]
[154,15,3]
[155,4,1]
[156,7,3]
[157,3,1]
[158,7,3]
[159,3,1]
[160,16,3]
[161,27,4]
[162,9,1]
[163,20,2]
[164,25,4]
[165,30,6]
[166,41,3]
[167,37,3]
[168,80,5]
[169,904,3]
[170,6,1]
[171,8,2]
[172,0,0]
[173,0,0]
[174,0,0]
[175,64,7]
[176,71,6]
[177,7,4]
[178,6,4]
[179,33,6]
[180,6,6]
[181,53,8]
[182,36,5]
[183,6,4]
[184,3,1]
[185,31,6]
[186,4,4]
[187,195,8]
[188,21,2]
[189,15,0]
[190,3,0]
[191,0,0]
[192,0,0]
[193,192,0]
[194,0,0]
[195,0,0]
[196,7,0]
[197,4,3]
[198,0,0]
[199,65,2]
[200,28,7]
[201,9,2]
[202,0,0]
[203,0,0]
[204,78,0]
[205,4,0]
[206,2,0]
[207,8,0]
[208,1,1]
[209,26,3]
[210,19,9]
[211,8,4]
[212,5,1]
[213,23,8]
[214,17,6]
[215,9,8]
[216,1,1]
[217,5,4]
[218,1,1]
[219,24,4]
[220,6,2]
[221,16,7]
[222,0,0]
[223,14,7]
[224,0,0]
[225,400,4]
[226,12,7]
[227,47,5]
[228,25,8]
[229,57,9]
[230,19,3]
[231,4,3]
[232,3,3]
[233,23,4]
[234,8,8]
[235,22,19]
[236,38,12]
[237,21,18]
[238,21,6]
[239,71,18]
[240,11,9]
[241,76,16]
[242,34,10]
[243,15,3]
[244,3,3]
[245,36,10]
[246,13,2]
[247,48,16]
[248,9,1]
[249,72,9]
[250,18,5]
[251,8,8]
[252,29,8]
[253,1,1]
[254,18,14]
[255,19,6]
[256,37,0]
[257,9,0]
[258,35,0]
[259,8,0]
[260,5,0]
[261,17,0]
[262,0,0]
[263,3,0]
[264,1,0]
[265,11,0]
[266,5,0]
[267,54,21]
[268,318,3]
[269,51,7]
[270,25,5]
[271,11,2]
[272,39,15]
[273,55,8]
[274,5,5]
[275,10,2]
[276,6,3]
[277,1,1]
[278,6,1]
[279,19,0]
[280,3,0]
[281,1,0]
[282,50,1]
[283,0,0]
[284,0,0]
[285,0,0]
[286,7,7]
[287,52,14]
[288,2,2]
[289,16,4]
[290,27,11]
[291,2,1]
[292,1,1]
[293,7,5]
[294,1,1]
[295,0,0]
[296,0,0]
[297,6,0]
[298,18,1]
[299,0,0]
[300,0,0]
[301,22,3]
[302,15,0]
[303,6,0]
[304,4,1]
[305,47,13]
[306,92,11]
[307,184,9]
[308,2,1]
[309,2,1]
[310,3,0]
[311,0,0]
[312,0,0]
[313,0,0]
[314,0,0]
[315,4,2]
[316,19,5]
[317,21,4]
[318,26,10]
[319,0,0]
[320,0,0]
[321,7,1]
[322,15,4]
[323,0,0]
[324,23,9]
[325,0,0]
[326,3,0]
[327,3,0]
[328,4,0]
[329,33,1]
[330,5,3]
[331,0,0]
[332,10,9]
[333,8,6]
[334,11,9]
[335,146,1]
[336,3,2]
[337,6,6]
[338,47,6]
[339,2,2]
[340,5,4]
[341,43,0]
[342,0,0]
[343,7,2]
[344,17,0]
[345,27,0]
[346,3,0]
[347,0,0]
[348,2,2]
[349,52,1]
[350,43,0]
[351,0,0]
[352,0,0]
[353,0,0]
[354,361,1]
[355,27,7]
[356,19,4]
[357,8,4]
[358,35,2]
[359,18,12]
[360,1,0]
[361,8,3]
[362,4,1]
[363,8,2]
[364,1,1]
[365,18,4]
[366,20,5]
[367,7,4]
[368,3,1]
[369,6,2]
[370,2,2]
[371,19,2]
[372,38,2]
[373,33,4]
[374,4,3]
[375,11,0]
[376,0,0]
[377,6,1]
[378,7,0]
[379,21,4]
[380,10,4]
[381,12,4]
[382,2,2]
[383,20,0]
[384,8,1]
[385,22,2]
[386,0,0]
[387,8,0]
[388,14,4]
[389,19,0]
[390,6,0]
[391,15,0]
[392,1,0]
[393,5,1]
[394,1,0]
[395,0,0]
[396,0,0]
[397,0,0]
[398,6,0]
[399,1,1]
[400,3,3]
[401,1,1]
[402,97,41]
[403,12,4]
[404,35,12]
[405,0,0]
[406,0,0]
[407,0,0]
[408,0,0]
[409,0,0]
[410,0,0]
[411,7,4]
[412,0,0]
[413,2,1]
[414,72,5]
[415,35,0]
[416,23,0]
[417,11,4]
[418,130,3]
[419,0,0]
[420,0,0]
[421,0,0]
[422,10,0]
[423,4,1]
[424,3,0]
[425,4,0]
[426,0,0]
[427,24,0]
[428,1,0]
[429,1,0]
[430,10,0]
[431,3,0]
[432,2,0]
[433,172,0]
[434,2,0]
[435,7,0]
[436,3,0]
[437,3,0]
[438,4,0]
[439,2,0]
[440,0,0]
[441,1,0]
[442,1,0]
[443,2,0]
[444,2,0]
[445,0,0]
[446,3,0]
[447,2,0]
[448,1,0]
[449,0,0]
[450,2,0]
[451,1,0]
[452,1,0]
[453,1,0]
[454,5,0]
[455,5,0]
[456,6,0]
[457,6,0]
[458,23,6]
[459,11,1]
[460,0,0]
[461,0,0]
[462,0,0]
[463,1,1]
[464,1,1]
[465,1,0]
[466,0,0]
[467,0,0]
[468,6,3]
[469,0,0]
[470,1,1]
[471,0,0]
[472,1,0]
[473,0,0]
[474,0,0]
[475,0,0]
[476,0,0]
[477,0,0]
[478,0,0]
[479,0,0]
[480,0,0]
[481,65,37]
[482,9,4]
[483,0,0]
[484,22,3]
[485,8,4]
[486,2,2]
[487,20,6]
[488,81,28]
[489,7,7]
[490,42,12]
[491,4,2]
[492,43,12]
[493,10,0]
[494,11,0]
[495,0,0]
[496,0,0]
[497,6,0]
[498,5,0]
[499,0,0]
[500,0,0]
[501,28,0]
[502,8,0]
[503,92,30]
[504,10,0]
[505,64,34]
[506,0,0]
[507,0,0]
[508,0,0]
[509,0,0]
[510,0,0]
[511,0,0]
[512,0,0]
[513,0,0]
[514,0,0]
[515,0,0]
[516,0,0]
[517,0,0]
[518,0,0]
[519,0,0]
[520,0,0]
[521,0,0]
[522,0,0]
[523,0,0]
[524,0,0]
[525,0,0]
[526,0,0]
[527,0,0]
[528,0,0]
[529,0,0]
[530,0,0]
[531,0,0]
[532,0,0]
[533,0,0]
[534,0,0]
[535,0,0]
[536,0,0]
[537,0,0]
[538,0,0]
[539,0,0]
[540,0,0]
[541,0,0]
[542,0,0]
[543,0,0]
[544,0,0]
[545,0,0]
[546,0,0]
[547,0,0]
[548,0,0]
[549,0,0]
[550,0,0]
[551,0,0]
[552,0,0]
[553,0,0]
[554,0,0]
[555,0,0]
[556,0,0]
[557,0,0]
[558,0,0]
[559,0,0]
[560,0,0]
[561,0,0]
[562,0,0]
[563,0,0]
[564,0,0]
[565,0,0]
[566,0,0]
[567,0,0]
[568,0,0]
[569,0,0]
[570,0,0]
[571,12,0]
[572,0,0]
[573,0,0]
[574,0,0]
[575,0,0]
[576,0,0]
[577,0,0]
[578,0,0]
[579,0,0]
[580,0,0]
[581,0,0]
[582,0,0]
[583,0,0]
[584,0,0]
[585,0,0]
[586,0,0]
[587,0,0]
[588,0,0]
[589,0,0]
[590,0,0]
[591,0,0]
[592,0,0]
[593,0,0]
[594,0,0]
[595,0,0]
[596,0,0]
[597,0,0]
[598,0,0]
[599,0,0]
[600,0,0]
[601,0,0]
[602,0,0]
[603,0,0]
[604,0,0]
[605,0,0]
[606,0,0]
[607,0,0]
[608,0,0]
[609,0,0]
[610,0,0]
[611,0,0]
[612,0,0]
[613,0,0]
[614,0,0]
[615,0,0]
[616,0,0]
[617,0,0]
[618,0,0]
[619,0,0]
[620,0,0]
[621,0,0]
[622,0,0]
[623,0,0]
[624,0,0]
[625,0,0]
[626,0,0]
[627,0,0]
[628,0,0]
[629,0,0]
[630,0,0]
[631,0,0]
[632,0,0]
[633,0,0]
[634,0,0]
[635,0,0]
[636,0,0]
[637,0,0]
[638,0,0]
[639,0,0]
[640,0,0]
[641,0,0]
[642,0,0]
[643,0,0]
[644,0,0]
[645,0,0]
[646,0,0]
[647,0,0]
[648,0,0]
[649,0,0]
[650,0,0]
[651,0,0]
[652,0,0]
[653,0,0]
[654,0,0]
[655,0,0]
[656,0,0]
[657,0,0]
[658,0,0]
[659,0,0]
[660,0,0]
[661,0,0]
[662,0,0]
[663,0,0]
[664,0,0]
[665,0,0]
[666,0,0]
[667,0,0]
[668,0,0]
[669,0,0]
[670,0,0]
[671,0,0]
[672,0,0]
[673,0,0]
[674,0,0]
[675,0,0]
[676,0,0]
[677,0,0]
[678,0,0]
[679,0,0]
[680,0,0]
[681,0,0]
[682,0,0]
[683,0,0]
[684,0,0]
[685,0,0]
[686,0,0]
[687,0,0]
[688,0,0]
[689,0,0]
[690,0,0]
[691,0,0]
[692,0,0]
[693,0,0]
[694,0,0]
[695,0,0]
[696,0,0]
[697,0,0]
[698,0,0]
[699,0,0]
[700,0,0]
[701,0,0]
[702,0,0]
[703,0,0]
[704,0,0]
[705,0,0]
[706,0,0]
[707,0,0]
[708,0,0]
[709,0,0]
[710,0,0]
[711,0,0]
[712,0,0]
[713,0,0]
[714,0,0]
[715,0,0]
[716,0,0]
[717,0,0]
[718,0,0]
[719,0,0]
[720,0,0]
[721,0,0]
[722,0,0]
[723,0,0]
[724,0,0]
[725,0,0]
[726,0,0]
[727,0,0]
[728,0,0]
[729,0,0]
[730,0,0]
[731,0,0]
[732,0,0]
[733,0,0]
[734,0,0]
[735,0,0]
[736,0,0]
[737,0,0]
[738,0,0]
[739,0,0]
[740,0,0]
[741,0,0]
[742,0,0]
[743,0,0]
[744,0,0]
[745,0,0]
[746,0,0]
[747,0,0]
[748,0,0]
[749,0,0]
[750,0,0]
[751,0,0]
[752,0,0]
[753,0,0]
[754,0,0]
[755,0,0]
[756,0,0]
[757,0,0]
[758,0,0]
[759,0,0]
[760,0,0]
[761,0,0]
[762,0,0]
[763,0,0]
[764,0,0]
[765,0,0]
[766,0,0]
[767,0,0]
[768,0,0]
[769,0,0]
[770,0,0]
[771,0,0]
[772,0,0]
[773,0,0]
[774,0,0]
[775,0,0]
[776,0,0]
[777,0,0]
[778,0,0]
[779,0,0]
[780,0,0]
[781,0,0]
[782,0,0]
[783,0,0]
[784,0,0]
[785,0,0]
[786,0,0]
[787,0,0]
[788,0,0]
[789,0,0]
[790,0,0]
[791,0,0]
[792,0,0]
[793,0,0]
[794,0,0]
[795,0,0]
[796,0,0]
[797,0,0]
[798,0,0]
[799,0,0]
[800,0,0]
[801,0,0]
[802,0,0]
[803,0,0]
[804,0,0]
[805,0,0]
[806,0,0]
[807,0,0]
[808,0,0]
[809,0,0]
[810,0,0]
[811,0,0]
[812,0,0]
[813,0,0]
[814,0,0]
[815,0,0]
[816,0,0]
[817,0,0]
[818,0,0]
[819,0,0]
[820,0,0]
[821,0,0]
[822,0,0]
[823,0,0]
[824,0,0]
[825,0,0]
[826,0,0]
[827,0,0]
[828,0,0]
[829,0,0]
[830,0,0]
[831,0,0]
[832,0,0]
[833,0,0]
[834,0,0]
[835,0,0]
[836,0,0]
[837,0,0]
[838,0,0]
[839,0,0]
[840,0,0]
[841,0,0]
[842,0,0]
[843,0,0]
[844,0,0]
[845,0,0]
[846,0,0]
[847,0,0]
[848,0,0]
[849,0,0]
[850,0,0]
[851,0,0]
[852,0,0]
[853,0,0]
[854,0,0]
[855,0,0]
[856,0,0]
[857,0,0]
[858,0,0]
[859,0,0]
[860,0,0]
[861,0,0]
[862,0,0]
[863,0,0]
[864,0,0]
[865,0,0]
[866,0,0]
[867,0,0]
[868,0,0]
[869,0,0]
[870,0,0]
[871,0,0]
[872,0,0]
[873,0,0]
[874,0,0]
[875,0,0]
[876,0,0]
[877,0,0]
[878,0,0]
[879,0,0]
[880,0,0]
[881,0,0]
[882,0,0]
[883,0,0]
[884,0,0]
[885,0,0]
[886,0,0]
[887,0,0]
[888,0,0]
[889,0,0]
[890,0,0]
[891,0,0]
[892,0,0]
[893,0,0]
[894,0,0]
[895,0,0]
[896,0,0]
[897,0,0]
[898,0,0]
[899,0,0]
[900,0,0]
[901,0,0]
[902,0,0]
[903,0,0]
[904,0,0]
[905,0,0]
[906,0,0]
[907,0,0]
[908,0,0]
[909,0,0]
[910,0,0]
[911,0,0]
[912,0,0]
[913,0,0]
[914,0,0]
[915,0,0]
[916,0,0]
[917,0,0]
[918,0,0]
[919,0,0]
[920,0,0]
[921,0,0]
[922,0,0]
[923,0,0]
[924,0,0]
[925,0,0]
[926,0,0]
[927,0,0]
[928,0,0]
[929,0,0]
[930,0,0]
[931,0,0]
[932,0,0]
[933,0,0]
[934,0,0]
[935,0,0]
[936,0,0]
[937,0,0]
[938,0,0]
[939,0,0]
[940,0,0]
[941,0,0]
[942,0,0]
[943,0,0]
[944,0,0]
[945,0,0]
[946,0,0]
[947,0,0]
[948,0,0]
[949,0,0]
[950,0,0]
[951,0,0]
[952,0,0]
[953,0,0]
[954,0,0]
[955,0,0]
[956,0,0]
[957,0,0]
[958,0,0]
[959,0,0]
[960,0,0]
[961,0,0]
[962,0,0]
[963,0,0]
[964,0,0]
[965,0,0]
[966,0,0]
[967,0,0]
[968,0,0]
[969,0,0]
[970,0,0]
[971,0,0]
[972,0,0]
[973,0,0]
[974,0,0]
[975,0,0]
[976,0,0]
[977,0,0]
[978,0,0]
[979,0,0]
[980,0,0]
[981,0,0]
[982,0,0]
[983,0,0]
[984,0,0]
[985,0,0]
[986,0,0]
[987,0,0]
[988,0,0]
[989,0,0]
[990,0,0]
[991,0,0]
[992,0,0]
[993,0,0]
[994,0,0]
[995,0,0]
[996,0,0]
[997,0,0]
[998,0,0]
[999,0,0]

{"sheet":"vp","index":9,"n_rows":11,"n_cols":3,"rows_kept":11,"cut":false,"hidden":false,"merged":[]}
["E","B","N"]
["H+B","nH+B","nB"]
["Extreme","With bass","Non-bass"]
[1,1,1]
[2,2,2]
[3,3,3]
[4,4,4]
[5,5,5]
[6,6,6]
[7,7,7]
[8,8,8]

{"sheet":"Cursed","index":10,"n_rows":6,"n_cols":1,"rows_kept":6,"cut":false,"hidden":false,"merged":[]}
["Cursed augmented chord"]
["Damned augmented chord"]
["Goddamn augmented chord"]
["Fucking augmented chord"]
["WTF! Augmented chord"]
["Stupid augmented chord"]

{"sheet":"Dis","index":11,"n_rows":12,"n_cols":13,"rows_kept":12,"cut":false,"hidden":false,"merged":[[0,5,0,8],[0,1,0,4],[0,9,0,12]]}
["Диссонансы за исключениям задержаний и PDD","Секунда / септима / нона",null,null,null,"Кварта / тритон с басом",null,null,null,"Кварта / тритон без баса"]
[null,"Сильн","Прям","Прот","Косв","Сильн","Прям","Прот","Косв","Сильн","Прям","Прот","Косв"]
["Между двумя аккордовыми звуками, вступление скачками"]
["Между двумя аккордовыми звуками, вступление скачком"]
["Между двумя аккордовыми звуками, вступление поступенно"]
["Между аккордовым и неаккордовым звуками, вступление скачками"]
["Между аккордовым и неаккордовым звуками, вступление скачком к аккордовому"]
["Между аккордовым и неаккордовым звуками, вступление скачком к неаккордовому"]
["Между аккордовым и неаккордовым звуками, вступление поступенно"]
["Между двумя неаккордовыми звуками, вступление скачками"]
["Между двумя неаккордовыми звуками, вступление скачком"]
["Между двумя неаккордовыми звуками, вступление поступенно"]

{"sheet":"Ivls","index":12,"n_rows":13,"n_cols":12,"rows_kept":13,"cut":false,"hidden":false,"merged":[[1,3,1,11],[1,0,1,2],[2,0,3,2]]}
["LN1","LN2","LN3",9,11,0,2,4,5,6,7,8]
["Lower note",null,null,"Upper melodic minor note"]
[null,null,null,"I","II","III","IV","V","VI","VI#","VII","VII#"]
[null,null,null,"A","B","C","D","E","F","F#","G","G#"]
[9,"I","A","1|8","M2|M9","m3","4","5","m6","M6","m7","M7"]
[11,"II","B","m7","1|8","m2|m9","m3","4","dim5","5","m6","M6"]
[0,"III","C","M6","M7","1|8","M2|M9","m3","4","aug4","5","aug5"]
[2,"IV","D","5","M6","m7","1|8","M2|M9","m3","M3","4","aug4"]
[4,"V","E","4","5","m6","m7","1|8","m2|m9","M2|M9","m3","M3"]
[5,"VI","F","M3","aug4","5","M6","M7","1|8","aug1|aug8","M2|M9","aug2|aug9"]
[6,"VI#","F#","m3","4","dim5","m6","m7","M7","1|8","m2|m9","M2|M9"]
[7,"VII","G","M2|M9","M3","4","5","M6","m7","M7","1|8","aug1|aug8"]
[8,"VII#","G#","m2|m9","m3","dim4","dim5","m6","dim7","m7","dim8","1|8"]